Effective Date ,Department ,Supplier Name,Payment Date ,Amount,Purpose of Spend,Merchant Category ,Card Transaction
18/01/19 to 18/02/19,Adults and Communities,3c_*blaby District Cou,13/02/19,1.25,Casual/Essential-General,Automobile Parking Lots and Garages,GPC
18/01/19 to 18/02/19,Adults and Communities,Absoluteproduct.Co,31/01/19,117.07,Display/Conservn/Exhibitions-Exhibitions,Commercial Furniture,GPC
18/01/19 to 18/02/19,Adults and Communities,Aldi 30 772,26/01/19,5.52,Materials-General,"Grocery Stores, Supermarkets",GPC
18/01/19 to 18/02/19,Adults and Communities,Aldi 30 772,10/02/19,12.02,Materials-General,"Grocery Stores, Supermarkets",GPC
18/01/19 to 18/02/19,Adults and Communities,Amazon Prime*mi9ky6t94 Am,05/02/19,6.66,Subscriptions-General,Continuity/Subscription Merchants,GPC
18/01/19 to 18/02/19,Adults and Communities,Amazon.Co.Uk*mb07j38s4 Am,17/01/19,57.97,Other Expenditure-General,Miscellaneous and Specialty Retail Stores,GPC
18/01/19 to 18/02/19,Adults and Communities,Amazon.Co.Uk*mb0mt2dq4 Am,20/01/19,29.69,Materials-General,Miscellaneous and Specialty Retail Stores,GPC
18/01/19 to 18/02/19,Adults and Communities,Amazon.Co.Uk*mb18f9y34,28/01/19,49.99,Other Expenditure-General,Direct Marketers - Other,GPC
18/01/19 to 18/02/19,Adults and Communities,Amazon.Co.Uk*mb2u68df4,20/01/19,60.95,Other Expenditure-General,Direct Marketers - Other,GPC
18/01/19 to 18/02/19,Adults and Communities,Amazon.Co.Uk*mb6819yu4,28/01/19,49.99,Other Expenditure-General,Direct Marketers - Other,GPC
18/01/19 to 18/02/19,Adults and Communities,Amazon.Co.Uk*mb6w47dq4 Am,20/01/19,15.97,Materials-General,Miscellaneous and Specialty Retail Stores,GPC
18/01/19 to 18/02/19,Adults and Communities,Amazon.Co.Uk*mb7l39il4 Am,25/01/19,13.53,Materials-General,Miscellaneous and Specialty Retail Stores,GPC
18/01/19 to 18/02/19,Adults and Communities,Amazon.Co.Uk*mb7ms4wd4 Am,27/01/19,15.20,Materials-General,Miscellaneous and Specialty Retail Stores,GPC
18/01/19 to 18/02/19,Adults and Communities,Amazon.Co.Uk*mb7v92kd4 Am,22/01/19,13.44,Stationery-General,Miscellaneous and Specialty Retail Stores,GPC
18/01/19 to 18/02/19,Adults and Communities,Amazon.Co.Uk*mb8351df4,20/01/19,39.24,General Equipment-General,Direct Marketers - Other,GPC
18/01/19 to 18/02/19,Adults and Communities,Amazon.Co.Uk*mb97a48c4 Am,17/01/19,57.30,IT Equipment-General,Miscellaneous and Specialty Retail Stores,GPC
18/01/19 to 18/02/19,Adults and Communities,Amazon.Co.Uk*mi04e5474,31/01/19,64.50,Other Expenditure-General,Direct Marketers - Other,GPC
18/01/19 to 18/02/19,Adults and Communities,Amazon.Co.Uk*mi13r5cf4,29/01/19,10.53,Other Expenditure-General,Direct Marketers - Other,GPC
18/01/19 to 18/02/19,Adults and Communities,Amazon.Co.Uk*mi14m6g54,10/02/19,17.62,IT Equipment-General,Direct Marketers - Other,GPC
18/01/19 to 18/02/19,Adults and Communities,Amazon.Co.Uk*mi2434bo4 Am,14/02/19,13.32,Other Expenditure-General,Miscellaneous and Specialty Retail Stores,GPC
18/01/19 to 18/02/19,Adults and Communities,Amazon.Co.Uk*mi3ih90y4 Am,07/02/19,10.21,Educational Visits-General,Miscellaneous and Specialty Retail Stores,GPC
18/01/19 to 18/02/19,Adults and Communities,Amazon.Co.Uk*mi3j358o4 Am,15/02/19,9.89,Other Expenditure-General,Miscellaneous and Specialty Retail Stores,GPC
18/01/19 to 18/02/19,Adults and Communities,Amazon.Co.Uk*mi3yb3mb4 Am,11/02/19,35.77,Materials-General,Miscellaneous and Specialty Retail Stores,GPC
18/01/19 to 18/02/19,Adults and Communities,Amazon.Co.Uk*mi4o813p4,04/02/19,15.16,Other Expenditure-General,Direct Marketers - Other,GPC
18/01/19 to 18/02/19,Adults and Communities,Amazon.Co.Uk*mi4qs4bl4,13/02/19,32.90,Other Expenditure-General,Direct Marketers - Other,GPC
18/01/19 to 18/02/19,Adults and Communities,Amazon.Co.Uk*mi5fs2o54,29/01/19,42.32,Other Expenditure-General,Direct Marketers - Other,GPC
18/01/19 to 18/02/19,Adults and Communities,Amazon.Co.Uk*mi8cu5mw4 Am,11/02/19,13.77,Materials-General,Miscellaneous and Specialty Retail Stores,GPC
18/01/19 to 18/02/19,Adults and Communities,Amazon.Co.Uk*mi8e410x4 Am,07/02/19,65.29,Materials-General,Miscellaneous and Specialty Retail Stores,GPC
18/01/19 to 18/02/19,Adults and Communities,Amazon.Co.Uk*mi8ko4or4 Am,30/01/19,40.83,Consultants & Specialists-General,Miscellaneous and Specialty Retail Stores,GPC
18/01/19 to 18/02/19,Adults and Communities,Amazon.Co.Uk*mi8qx2ve4 Am,12/02/19,7.19,Materials-General,Miscellaneous and Specialty Retail Stores,GPC
18/01/19 to 18/02/19,Adults and Communities,Amazon.Co.Uk*mi94p10p4 Am,07/02/19,15.04,Other Expenditure-General,Miscellaneous and Specialty Retail Stores,GPC
18/01/19 to 18/02/19,Adults and Communities,Amazon.Co.Uk*mi9q81zn4,02/02/19,15.94,Stationery-General,Direct Marketers - Other,GPC
18/01/19 to 18/02/19,Adults and Communities,Amazon.Co.Uk*mi9s28064 Am,07/02/19,73.38,IT Equipment-General,Miscellaneous and Specialty Retail Stores,GPC
18/01/19 to 18/02/19,Adults and Communities,Amz*scarva,11/02/19,197.68,General Equipment-General,Computer Network/Information Services,GPC
18/01/19 to 18/02/19,Adults and Communities,Amzn Mktp UK Amazon.Co.Uk,13/02/19,-50.96,Protective Clothing & Uniforms-General,Book Stores,GPC
18/01/19 to 18/02/19,Adults and Communities,Amzn Mktp Uk*mb06f2qb4,18/01/19,175.60,Operational Equipment-DDA,Book Stores,GPC
18/01/19 to 18/02/19,Adults and Communities,Amzn Mktp Uk*mb07a8d64,20/01/19,8.36,Other Equipment & Materials-General,Book Stores,GPC
18/01/19 to 18/02/19,Adults and Communities,Amzn Mktp Uk*mb0bx5264,21/01/19,11.57,Other Equipment & Materials-General,Book Stores,GPC
18/01/19 to 18/02/19,Adults and Communities,Amzn Mktp Uk*mb0hs6u04,25/01/19,16.23,Books-General,Book Stores,GPC
18/01/19 to 18/02/19,Adults and Communities,Amzn Mktp Uk*mb0kv5us4,25/01/19,14.15,Other Equipment & Materials-General,Book Stores,GPC
18/01/19 to 18/02/19,Adults and Communities,Amzn Mktp Uk*mb12u8u24 Am,25/01/19,40.79,Stationery-General,Book Stores,GPC
18/01/19 to 18/02/19,Adults and Communities,Amzn Mktp Uk*mb1im37m4,23/01/19,10.48,General Equipment-General,Book Stores,GPC
18/01/19 to 18/02/19,Adults and Communities,Amzn Mktp Uk*mb1ru8bc4,17/01/19,88.56,Furniture-General,Book Stores,GPC
18/01/19 to 18/02/19,Adults and Communities,Amzn Mktp Uk*mb1wi8qj4,18/01/19,2.88,Other Equipment & Materials-General,Book Stores,GPC
18/01/19 to 18/02/19,Adults and Communities,Amzn Mktp Uk*mb24k7u04 Am,25/01/19,59.95,Stationery-General,Book Stores,GPC
18/01/19 to 18/02/19,Adults and Communities,Amzn Mktp Uk*mb2540qu4 Am,18/01/19,13.22,Other Equipment & Materials-General,Book Stores,GPC
18/01/19 to 18/02/19,Adults and Communities,Amzn Mktp Uk*mb26p6kq4,22/01/19,36.46,Cleaning Materials-General,Book Stores,GPC
18/01/19 to 18/02/19,Adults and Communities,Amzn Mktp Uk*mb2r177q4 Am,23/01/19,20.63,General Equipment-General,Book Stores,GPC
18/01/19 to 18/02/19,Adults and Communities,Amzn Mktp Uk*mb2ti7yq4,28/01/19,14.42,Operational Equipment-General,Book Stores,GPC
18/01/19 to 18/02/19,Adults and Communities,Amzn Mktp Uk*mb2y57s84,21/01/19,7.49,Other Equipment & Materials-General,Book Stores,GPC
18/01/19 to 18/02/19,Adults and Communities,Amzn Mktp Uk*mb37938n4,17/01/19,10.82,IT Equipment-General,Book Stores,GPC
18/01/19 to 18/02/19,Adults and Communities,Amzn Mktp Uk*mb3bb06v4,19/01/19,18.74,Stationery-General,Book Stores,GPC
18/01/19 to 18/02/19,Adults and Communities,Amzn Mktp Uk*mb3bx4dp4 Am,20/01/19,11.41,Books-General,Book Stores,GPC
18/01/19 to 18/02/19,Adults and Communities,Amzn Mktp Uk*mb4i60q94,18/01/19,8.71,Stationery-General,Book Stores,GPC
18/01/19 to 18/02/19,Adults and Communities,Amzn Mktp Uk*mb4r79754,23/01/19,19.83,Books-General,Book Stores,GPC
18/01/19 to 18/02/19,Adults and Communities,Amzn Mktp Uk*mb4r79754,23/01/19,39.66,IT Equipment-General,Book Stores,GPC
18/01/19 to 18/02/19,Adults and Communities,Amzn Mktp Uk*mb4vd7dr4,20/01/19,11.24,Stationery-General,Book Stores,GPC
18/01/19 to 18/02/19,Adults and Communities,Amzn Mktp Uk*mb50w72w4,22/01/19,17.21,Other Expenditure-General,Book Stores,GPC
18/01/19 to 18/02/19,Adults and Communities,Amzn Mktp Uk*mb55c9rz4,26/01/19,20.97,Stationery-General,Book Stores,GPC
18/01/19 to 18/02/19,Adults and Communities,Amzn Mktp Uk*mb5ry0964 Am,24/01/19,9.36,Personal Protective Equip-General,Book Stores,GPC
18/01/19 to 18/02/19,Adults and Communities,Amzn Mktp Uk*mb5vr6y94,29/01/19,8.98,Books-General,Book Stores,GPC
18/01/19 to 18/02/19,Adults and Communities,Amzn Mktp Uk*mb64o0s04,21/01/19,9.33,Stationery-General,Book Stores,GPC
18/01/19 to 18/02/19,Adults and Communities,Amzn Mktp Uk*mb6620w14,27/01/19,13.52,Stationery-General,Book Stores,GPC
18/01/19 to 18/02/19,Adults and Communities,Amzn Mktp Uk*mb6cf3ic4,25/01/19,11.32,Other Equipment & Materials-General,Book Stores,GPC
18/01/19 to 18/02/19,Adults and Communities,Amzn Mktp Uk*mb6gb6qi4,18/01/19,9.57,Stationery-General,Book Stores,GPC
18/01/19 to 18/02/19,Adults and Communities,Amzn Mktp Uk*mb6rp37u4,23/01/19,15.52,Other Equipment & Materials-General,Book Stores,GPC
18/01/19 to 18/02/19,Adults and Communities,Amzn Mktp Uk*mb72869d4 Am,24/01/19,47.50,Stationery-General,Book Stores,GPC
18/01/19 to 18/02/19,Adults and Communities,Amzn Mktp Uk*mb7jx4u54,25/01/19,9.11,Other Equipment & Materials-General,Book Stores,GPC
18/01/19 to 18/02/19,Adults and Communities,Amzn Mktp Uk*mb7kq6yo4,28/01/19,25.98,Books-General,Book Stores,GPC
18/01/19 to 18/02/19,Adults and Communities,Amzn Mktp Uk*mb8ct8yo4,28/01/19,12.76,Books-General,Book Stores,GPC
18/01/19 to 18/02/19,Adults and Communities,Amzn Mktp Uk*mb8d82ds4 Am,20/01/19,21.99,Books-General,Book Stores,GPC
18/01/19 to 18/02/19,Adults and Communities,Amzn Mktp Uk*mb8z90k04,22/01/19,74.97,Books-General,Book Stores,GPC
18/01/19 to 18/02/19,Adults and Communities,Amzn Mktp Uk*mb9091rf4,27/01/19,18.94,Other Equipment & Materials-General,Book Stores,GPC
18/01/19 to 18/02/19,Adults and Communities,Amzn Mktp Uk*mb9cp7qv4 Am,18/01/19,37.50,Books-General,Book Stores,GPC
18/01/19 to 18/02/19,Adults and Communities,Amzn Mktp Uk*mb9vl3s64,21/01/19,16.66,General Equipment-General,Book Stores,GPC
18/01/19 to 18/02/19,Adults and Communities,Amzn Mktp Uk*mi00x75i4,13/02/19,13.73,Publicity/Marketing-General,Book Stores,GPC
18/01/19 to 18/02/19,Adults and Communities,Amzn Mktp Uk*mi0256ma4,12/02/19,11.88,Furniture-General,Book Stores,GPC
18/01/19 to 18/02/19,Adults and Communities,Amzn Mktp Uk*mi05i0114,08/02/19,91.50,IT Equipment-General,Book Stores,GPC
18/01/19 to 18/02/19,Adults and Communities,Amzn Mktp Uk*mi0rv9xb4 Am,11/02/19,99.90,Books-General,Book Stores,GPC
18/01/19 to 18/02/19,Adults and Communities,Amzn Mktp Uk*mi0vj1ed4 Am,06/02/19,14.98,IT Equipment-General,Book Stores,GPC
18/01/19 to 18/02/19,Adults and Communities,Amzn Mktp Uk*mi0vj1ed4 Am,06/02/19,3.74,Postal Services-General,Book Stores,GPC
18/01/19 to 18/02/19,Adults and Communities,Amzn Mktp Uk*mi13m2mx4 Am,12/02/19,52.67,Books-General,Book Stores,GPC
18/01/19 to 18/02/19,Adults and Communities,Amzn Mktp Uk*mi19135l4 Am,12/02/19,3.24,Books-General,Book Stores,GPC
18/01/19 to 18/02/19,Adults and Communities,Amzn Mktp Uk*mi19s4f24 Am,30/01/19,110.20,Books-General,Book Stores,GPC
18/01/19 to 18/02/19,Adults and Communities,Amzn Mktp Uk*mi1b94v74,11/02/19,35.20,Other Expenditure-General,Book Stores,GPC
18/01/19 to 18/02/19,Adults and Communities,Amzn Mktp Uk*mi1ii1ct4,29/01/19,22.77,Stationery-General,Book Stores,GPC
18/01/19 to 18/02/19,Adults and Communities,Amzn Mktp Uk*mi1kv0o24,30/01/19,6.36,Books-General,Book Stores,GPC
18/01/19 to 18/02/19,Adults and Communities,Amzn Mktp Uk*mi1qz5ph4 Am,08/02/19,79.00,Books-General,Book Stores,GPC
18/01/19 to 18/02/19,Adults and Communities,Amzn Mktp Uk*mi1yb4md4 Am,11/02/19,94.46,Books-General,Book Stores,GPC
18/01/19 to 18/02/19,Adults and Communities,Amzn Mktp Uk*mi2454os4,30/01/19,5.99,Stationery-General,Book Stores,GPC
18/01/19 to 18/02/19,Adults and Communities,Amzn Mktp Uk*mi27m45x4,13/02/19,8.50,Stationery-General,Book Stores,GPC
18/01/19 to 18/02/19,Adults and Communities,Amzn Mktp Uk*mi33495z4 Am,12/02/19,0.01,Books-General,Book Stores,GPC
18/01/19 to 18/02/19,Adults and Communities,Amzn Mktp Uk*mi3az1er4 Am,07/02/19,23.74,Educational Visits-General,Book Stores,GPC
18/01/19 to 18/02/19,Adults and Communities,Amzn Mktp Uk*mi3c06mf4 Am,11/02/19,32.60,Books-General,Book Stores,GPC
18/01/19 to 18/02/19,Adults and Communities,Amzn Mktp Uk*mi3oj0xd4 Am,11/02/19,58.41,Books-General,Book Stores,GPC
18/01/19 to 18/02/19,Adults and Communities,Amzn Mktp Uk*mi3y13zc4,02/02/19,50.99,Other Equipment & Materials-General,Book Stores,GPC
18/01/19 to 18/02/19,Adults and Communities,Amzn Mktp Uk*mi4076mf4,12/02/19,45.75,Protective Clothing & Uniforms-General,Book Stores,GPC
18/01/19 to 18/02/19,Adults and Communities,Amzn Mktp Uk*mi4fe0v24 Am,11/02/19,179.25,Books-General,Book Stores,GPC
18/01/19 to 18/02/19,Adults and Communities,Amzn Mktp Uk*mi4se4b34,14/02/19,189.98,Display/Conservn/Exhibitions-Exhibitions,Book Stores,GPC
18/01/19 to 18/02/19,Adults and Communities,Amzn Mktp Uk*mi4zj6404,31/01/19,7.46,Stationery-General,Book Stores,GPC
18/01/19 to 18/02/19,Adults and Communities,Amzn Mktp Uk*mi5b29oe4,29/01/19,18.31,Other Equipment & Materials-General,Book Stores,GPC
18/01/19 to 18/02/19,Adults and Communities,Amzn Mktp Uk*mi5gj3vf4 Am,11/02/19,62.52,Books-General,Book Stores,GPC
18/01/19 to 18/02/19,Adults and Communities,Amzn Mktp Uk*mi5h32cv4 Am,29/01/19,50.96,Books-General,Book Stores,GPC
18/01/19 to 18/02/19,Adults and Communities,Amzn Mktp Uk*mi5t02cw4,29/01/19,2.16,Books-General,Book Stores,GPC
18/01/19 to 18/02/19,Adults and Communities,Amzn Mktp Uk*mi5ub7he4 Am,13/02/19,6.99,Stationery-General,Book Stores,GPC
18/01/19 to 18/02/19,Adults and Communities,Amzn Mktp Uk*mi63p6ma4,12/02/19,46.81,General Equipment-General,Book Stores,GPC
18/01/19 to 18/02/19,Adults and Communities,Amzn Mktp Uk*mi63p9ma4,12/02/19,13.48,General Equipment-General,Book Stores,GPC
18/01/19 to 18/02/19,Adults and Communities,Amzn Mktp Uk*mi66l9m04 Am,12/02/19,32.55,Stationery-General,Book Stores,GPC
18/01/19 to 18/02/19,Adults and Communities,Amzn Mktp Uk*mi6b86cc4 Am,29/01/19,17.45,Consultants & Specialists-General,Book Stores,GPC
18/01/19 to 18/02/19,Adults and Communities,Amzn Mktp Uk*mi6jg3pb4 Am,09/02/19,62.57,Books-General,Book Stores,GPC
18/01/19 to 18/02/19,Adults and Communities,Amzn Mktp Uk*mi6wz5hv4,13/02/19,31.76,Books-General,Book Stores,GPC
18/01/19 to 18/02/19,Adults and Communities,Amzn Mktp Uk*mi6yt7zn4,02/02/19,22.79,IT Equipment-General,Book Stores,GPC
18/01/19 to 18/02/19,Adults and Communities,Amzn Mktp Uk*mi7d37t04,05/02/19,25.97,Stationery-General,Book Stores,GPC
18/01/19 to 18/02/19,Adults and Communities,Amzn Mktp Uk*mi7gc8484,31/01/19,51.96,Other Expenditure-General,Book Stores,GPC
18/01/19 to 18/02/19,Adults and Communities,Amzn Mktp Uk*mi7k74ao4 Am,06/02/19,20.81,Publicity/Marketing-General,Book Stores,GPC
18/01/19 to 18/02/19,Adults and Communities,Amzn Mktp Uk*mi7ko6vo4 Am,12/02/19,16.50,Books-General,Book Stores,GPC
18/01/19 to 18/02/19,Adults and Communities,Amzn Mktp Uk*mi7ov9gp4 Am,09/02/19,154.62,Books-General,Book Stores,GPC
18/01/19 to 18/02/19,Adults and Communities,Amzn Mktp Uk*mi7ro2554,13/02/19,9.95,Stationery-General,Book Stores,GPC
18/01/19 to 18/02/19,Adults and Communities,Amzn Mktp Uk*mi8355v54,11/02/19,14.89,Stationery-General,Book Stores,GPC
18/01/19 to 18/02/19,Adults and Communities,Amzn Mktp Uk*mi84n94u4,31/01/19,76.49,Operational Equipment-DDA,Book Stores,GPC
18/01/19 to 18/02/19,Adults and Communities,Amzn Mktp Uk*mi8am6584 Am,12/02/19,52.67,Books-General,Book Stores,GPC
18/01/19 to 18/02/19,Adults and Communities,Amzn Mktp Uk*mi8d74554 Am,12/02/19,170.86,Books-General,Book Stores,GPC
18/01/19 to 18/02/19,Adults and Communities,Amzn Mktp Uk*mi8lr88w4,14/02/19,30.32,Other Expenditure-General,Book Stores,GPC
18/01/19 to 18/02/19,Adults and Communities,Amzn Mktp Uk*mi8r73444,31/01/19,16.66,General Equipment-General,Book Stores,GPC
18/01/19 to 18/02/19,Adults and Communities,Amzn Mktp Uk*mi8ts0c64,29/01/19,27.30,Stationery-General,Book Stores,GPC
18/01/19 to 18/02/19,Adults and Communities,Amzn Mktp Uk*mi91v36q4,17/02/19,36.23,Other Expenditure-General,Book Stores,GPC
18/01/19 to 18/02/19,Adults and Communities,Amzn Mktp Uk*mi93o7oo4,30/01/19,3.32,Stationery-General,Book Stores,GPC
18/01/19 to 18/02/19,Adults and Communities,Amzn Mktp Uk*mi96j5554 Am,12/02/19,4.86,Books-General,Book Stores,GPC
18/01/19 to 18/02/19,Adults and Communities,Amzn Mktp Uk*mi9lp7b94 Am,14/02/19,18.26,Other Expenditure-General,Book Stores,GPC
18/01/19 to 18/02/19,Adults and Communities,Amzn Mktp Uk*mi9re1ha4,13/02/19,109.98,Stationery-General,Book Stores,GPC
18/01/19 to 18/02/19,Adults and Communities,Amzn Mktp Uk*mi9sn0m14 Am,12/02/19,52.67,Books-General,Book Stores,GPC
18/01/19 to 18/02/19,Adults and Communities,Argos Retail Group,28/01/19,224.99,Display/Conservn/Exhibitions-Exhibitions,Discount Stores,GPC
18/01/19 to 18/02/19,Adults and Communities,Argos Retail Group,15/02/19,25.00,General Equipment-General,Discount Stores,GPC
18/01/19 to 18/02/19,Adults and Communities,Argos Retail Group,31/01/19,68.98,Materials-General,Discount Stores,GPC
18/01/19 to 18/02/19,Adults and Communities,Asda Max,10/02/19,27.00,Provisions-General,Photographic Studios,GPC
18/01/19 to 18/02/19,Adults and Communities,Asda Stores,19/01/19,15.66,Materials-General,"Grocery Stores, Supermarkets",GPC
18/01/19 to 18/02/19,Adults and Communities,Asda Stores,26/01/19,15.95,Materials-General,"Grocery Stores, Supermarkets",GPC
18/01/19 to 18/02/19,Adults and Communities,Asda Stores,31/01/19,29.55,Materials-General,"Grocery Stores, Supermarkets",GPC
18/01/19 to 18/02/19,Adults and Communities,Asda Stores,02/02/19,16.97,Materials-General,"Grocery Stores, Supermarkets",GPC
18/01/19 to 18/02/19,Adults and Communities,Asda Stores 4477,17/02/19,2.00,Educational Visits-General,"Grocery Stores, Supermarkets",GPC
18/01/19 to 18/02/19,Adults and Communities,Asda Stores 4477,07/02/19,15.69,Materials-General,"Grocery Stores, Supermarkets",GPC
18/01/19 to 18/02/19,Adults and Communities,Asda Stores 4477,22/01/19,3.00,Other Equipment & Materials-General,"Grocery Stores, Supermarkets",GPC
18/01/19 to 18/02/19,Adults and Communities,Asda Superstore,17/01/19,23.85,Materials-General,"Grocery Stores, Supermarkets",GPC
18/01/19 to 18/02/19,Adults and Communities,Asda Superstore,23/01/19,12.09,Materials-General,"Grocery Stores, Supermarkets",GPC
18/01/19 to 18/02/19,Adults and Communities,Asda Superstore,31/01/19,23.90,Materials-General,"Grocery Stores, Supermarkets",GPC
18/01/19 to 18/02/19,Adults and Communities,Asda Superstore,07/02/19,20.50,Materials-General,"Grocery Stores, Supermarkets",GPC
18/01/19 to 18/02/19,Adults and Communities,Asda Superstore,11/02/19,72.22,Provisions-General,"Grocery Stores, Supermarkets",GPC
18/01/19 to 18/02/19,Adults and Communities,Axminster.Co.Uk,14/02/19,49.82,Aids & Adaptations-Minor Adaptations,"Building Materials, Lumber Stores",GPC
18/01/19 to 18/02/19,Adults and Communities,Axminstertoolsmach,07/02/19,7.48,R & M of Buildings-General,"Building Materials, Lumber Stores",GPC
18/01/19 to 18/02/19,Adults and Communities,B&m Retail,12/02/19,32.40,Other Expenditure-General,Discount Stores,GPC
18/01/19 to 18/02/19,Adults and Communities,B&m Retail,12/02/19,31.94,Other Expenditure-General,Discount Stores,GPC
18/01/19 to 18/02/19,Adults and Communities,B&m Retail Ltd,30/01/19,7.98,Other Expenditure-General,Discount Stores,GPC
18/01/19 to 18/02/19,Adults and Communities,Battery Station,28/01/19,36.85,Materials-General,Household Appliance Stores,GPC
18/01/19 to 18/02/19,Adults and Communities,Bc.Basecamp 2 2997305,04/02/19,15.35,IT Equipment-Licences,Membership Organizations-Not Elsewhere Classified,GPC
18/01/19 to 18/02/19,Adults and Communities,Cartridge Save,08/02/19,30.26,Educational Visits-General,"Stationary, Office Supplies, Printing and Writing",GPC
18/01/19 to 18/02/19,Adults and Communities,Central Eng Coop,28/01/19,5.00,Other Equipment & Materials-General,Department Stores,GPC
18/01/19 to 18/02/19,Adults and Communities,Charnwood Borough Council,04/02/19,3.20,Casual/Essential-General,Automobile Parking Lots and Garages,GPC
18/01/19 to 18/02/19,Adults and Communities,Colemans Of Market Har,21/01/19,30.75,Other Expenditure-General,"Stationery, Office, and School Supply Stores",GPC
18/01/19 to 18/02/19,Adults and Communities,Colemans Of Market Har,23/01/19,4.98,Other Expenditure-General,"Stationery, Office, and School Supply Stores",GPC
18/01/19 to 18/02/19,Adults and Communities,Colemans Of Market Har,25/01/19,7.48,Other Expenditure-General,"Stationery, Office, and School Supply Stores",GPC
18/01/19 to 18/02/19,Adults and Communities,Cp Plus,31/01/19,10.42,Casual/Essential-General,Automobile Parking Lots and Garages,GPC
18/01/19 to 18/02/19,Adults and Communities,Cupsdirect.Co.Uk,21/01/19,43.90,Stationery-General,Miscellaneous and Specialty Retail Stores,GPC
18/01/19 to 18/02/19,Adults and Communities,Currys Superstore,23/01/19,66.67,Furniture-General,"RADIO, TELEVISION, AND STEREO STORES (ELECTRONIC STORES)",GPC
18/01/19 to 18/02/19,Adults and Communities,Derby Museum Enterprises,29/01/19,15.54,Other Expenditure-General,Tourist Attractions and Exhibits,GPC
18/01/19 to 18/02/19,Adults and Communities,Digital Id,06/02/19,31.08,Stationery-General,"Computers, Computer Peripheral Equipment, Software",GPC
18/01/19 to 18/02/19,Adults and Communities,Dlt Media Ltd,21/01/19,479.88,Publicity/Marketing-Information Provision,Advertising Services,GPC
18/01/19 to 18/02/19,Adults and Communities,East Midlands Trai,30/01/19,142.10,Casual/Essential-General,Passenger Railways,GPC
18/01/19 to 18/02/19,Adults and Communities,East Midlands Trai,24/01/19,7.95,Public Transport -  Staff-General,Passenger Railways,GPC
18/01/19 to 18/02/19,Adults and Communities,East Midlands Trains,22/01/19,125.10,Casual/Essential-General,Passenger Railways,GPC
18/01/19 to 18/02/19,Adults and Communities,East Midlands Trains,23/01/19,6.00,Casual/Essential-General,Passenger Railways,GPC
18/01/19 to 18/02/19,Adults and Communities,East Midlands Trains,23/01/19,10.80,Casual/Essential-General,Passenger Railways,GPC
18/01/19 to 18/02/19,Adults and Communities,East Midlands Trains,23/01/19,12.40,Casual/Essential-General,Passenger Railways,GPC
18/01/19 to 18/02/19,Adults and Communities,East Midlands Trains,24/01/19,72.00,Casual/Essential-General,Passenger Railways,GPC
18/01/19 to 18/02/19,Adults and Communities,East Midlands Trains,24/01/19,44.67,Casual/Essential-General,Passenger Railways,GPC
18/01/19 to 18/02/19,Adults and Communities,East Midlands Trains,29/01/19,-89.10,Casual/Essential-General,Passenger Railways,GPC
18/01/19 to 18/02/19,Adults and Communities,East Midlands Trains,30/01/19,-56.00,Casual/Essential-General,Passenger Railways,GPC
18/01/19 to 18/02/19,Adults and Communities,East Midlands Trains,17/01/19,129.10,Public Transport -  Staff-General,Passenger Railways,GPC
18/01/19 to 18/02/19,Adults and Communities,East Midlands Trains,30/01/19,29.05,Public Transport -  Staff-General,Passenger Railways,GPC
18/01/19 to 18/02/19,Adults and Communities,East Midlands Trains,06/02/19,11.00,Public Transport -  Staff-General,Passenger Railways,GPC
18/01/19 to 18/02/19,Adults and Communities,East Midlands Trains Ltd,30/01/19,8.00,Casual/Essential-General,Automobile Parking Lots and Garages,GPC
18/01/19 to 18/02/19,Adults and Communities,Electro Supplies.C,23/01/19,41.94,General Equipment-General,"RADIO, TELEVISION, AND STEREO STORES (ELECTRONIC STORES)",GPC
18/01/19 to 18/02/19,Adults and Communities,Espo,23/01/19,72.99,Stationery-General,Government Services-Not Elsewhere Classified,GPC
18/01/19 to 18/02/19,Adults and Communities,Espo,29/01/19,91.49,Stationery-General,Government Services-Not Elsewhere Classified,GPC
18/01/19 to 18/02/19,Adults and Communities,Espo,01/02/19,38.92,Stationery-General,Government Services-Not Elsewhere Classified,GPC
18/01/19 to 18/02/19,Adults and Communities,Euroffice.Co.Uk,23/01/19,307.18,Furniture-General,"Stationery, Office, and School Supply Stores",GPC
18/01/19 to 18/02/19,Adults and Communities,Euroffice.Co.Uk,23/01/19,163.19,Furniture-General,"Stationery, Office, and School Supply Stores",GPC
18/01/19 to 18/02/19,Adults and Communities,Facebk *94vfeka8r2,31/01/19,18.92,Publicity/Marketing-General,Advertising Services,GPC
18/01/19 to 18/02/19,Adults and Communities,Facebk *983vmknyr2,07/02/19,5.36,Publicity/Marketing-Information Provision,Advertising Services,GPC
18/01/19 to 18/02/19,Adults and Communities,Facebk *9cqeqknyr2,09/02/19,40.00,Publicity/Marketing-Information Provision,Advertising Services,GPC
18/01/19 to 18/02/19,Adults and Communities,Facebk *djfrzjezr2,07/02/19,17.00,Publicity/Marketing-Information Provision,Advertising Services,GPC
18/01/19 to 18/02/19,Adults and Communities,Facebk *egp43kezr2,11/02/19,90.00,Publicity/Marketing-Information Provision,Advertising Services,GPC
18/01/19 to 18/02/19,Adults and Communities,Facebk *gpk92l2zr2,13/02/19,125.00,Publicity/Marketing-Information Provision,Advertising Services,GPC
18/01/19 to 18/02/19,Adults and Communities,Facebk *v24eyk2zr2,08/02/19,25.00,Publicity/Marketing-Information Provision,Advertising Services,GPC
18/01/19 to 18/02/19,Adults and Communities,Facebk *vbc52kezr2,08/02/19,25.00,Publicity/Marketing-Information Provision,Advertising Services,GPC
18/01/19 to 18/02/19,Adults and Communities,Facebk *ve43zk2zr2,10/02/19,60.00,Publicity/Marketing-Information Provision,Advertising Services,GPC
18/01/19 to 18/02/19,Adults and Communities,Facebk *yqapnkazr2,08/02/19,17.00,Publicity/Marketing-Information Provision,Advertising Services,GPC
18/01/19 to 18/02/19,Adults and Communities,Fast Key Services Limi,05/02/19,7.26,Consultants & Specialists-General,Business Services-Not Elsewhere Classified,GPC
18/01/19 to 18/02/19,Adults and Communities,Fast Key Services Limi,22/01/19,6.05,General Equipment-General,Business Services-Not Elsewhere Classified,GPC
18/01/19 to 18/02/19,Adults and Communities,Fast Key Services Limi,07/02/19,7.26,Other Expenditure-General,Business Services-Not Elsewhere Classified,GPC
18/01/19 to 18/02/19,Adults and Communities,Fast Key Services Limi,01/02/19,7.26,Printing-General,Business Services-Not Elsewhere Classified,GPC
18/01/19 to 18/02/19,Adults and Communities,Fast Key Services Limi,05/02/19,32.17,Stationery-General,Business Services-Not Elsewhere Classified,GPC
18/01/19 to 18/02/19,Adults and Communities,Fosse Taxis,08/02/19,7.00,Personal Needs of Clients-Holidays & Outings,Taxicabs and Limousines,GPC
18/01/19 to 18/02/19,Adults and Communities,Gen Register Office,25/01/19,9.25,Other Expenditure-General,Government Services-Not Elsewhere Classified,GPC
18/01/19 to 18/02/19,Adults and Communities,Grays Coffee Shop And K,17/01/19,5.17,Other Expenditure-General,"Eating Places, Restaurants",GPC
18/01/19 to 18/02/19,Adults and Communities,Grays Coffee Shop And K,22/01/19,5.00,Other Expenditure-General,"Eating Places, Restaurants",GPC
18/01/19 to 18/02/19,Adults and Communities,Grays Coffee Shop And K,25/01/19,4.60,Other Expenditure-General,"Eating Places, Restaurants",GPC
18/01/19 to 18/02/19,Adults and Communities,Grays Coffee Shop And K,13/02/19,9.25,Other Expenditure-General,"Eating Places, Restaurants",GPC
18/01/19 to 18/02/19,Adults and Communities,Grays Coffee Shop And K,13/02/19,10.00,Other Expenditure-General,"Eating Places, Restaurants",GPC
18/01/19 to 18/02/19,Adults and Communities,Halfords 0813,29/01/19,10.00,R&M of Vehicles-Non Contract-General,Bicycle Shops-Sales and Service,GPC
18/01/19 to 18/02/19,Adults and Communities,Harborough Dc Moto Cv2,14/02/19,20.00,Other Expenditure-General,Government Services-Not Elsewhere Classified,GPC
18/01/19 to 18/02/19,Adults and Communities,Harborough District Co,17/01/19,6.00,Casual/Essential-General,Government Services-Not Elsewhere Classified,GPC
18/01/19 to 18/02/19,Adults and Communities,Harborough District Co,28/01/19,5.00,Other Expenditure-General,Government Services-Not Elsewhere Classified,GPC
18/01/19 to 18/02/19,Adults and Communities,Hire Education Limited,17/01/19,59.00,Other Equipment & Materials-General,Schools and Educational Services-Not Elsewhere Cla,GPC
18/01/19 to 18/02/19,Adults and Communities,Hmcourts-Service.G,31/01/19,70.00,Other Expenditure-General,Fines,GPC
18/01/19 to 18/02/19,Adults and Communities,Homebase Ltd,12/02/19,17.92,Other Expenditure-General,"Building Materials, Lumber Stores",GPC
18/01/19 to 18/02/19,Adults and Communities,Hotel Indigo Newcastle,10/02/19,96.00,Other Expenditure-General,"Lodging-Hotels, Motels, Resorts",GPC
18/01/19 to 18/02/19,Adults and Communities,Ibis Styles Hotel,17/02/19,71.00,Subsistence-General,"Lodging-Hotels, Motels, Resorts",GPC
18/01/19 to 18/02/19,Adults and Communities,Ibis Styles Hotel,17/02/19,71.00,Subsistence-General,"Lodging-Hotels, Motels, Resorts",GPC
18/01/19 to 18/02/19,Adults and Communities,Ibis Styles Hotel,17/02/19,71.00,Subsistence-General,"Lodging-Hotels, Motels, Resorts",GPC
18/01/19 to 18/02/19,Adults and Communities,Ikea Limited,13/02/19,171.67,Display/Conservn/Exhibitions-General,"Furniture, Home Furnishings and Equipment Stores,",GPC
18/01/19 to 18/02/19,Adults and Communities,Indeed Tel+35312545907,06/02/19,15.70,Publicity/Marketing-General,Business Services-Not Elsewhere Classified,GPC
18/01/19 to 18/02/19,Adults and Communities,Iz *stage 2 Coffee House,05/02/19,4.75,Other Expenditure-General,"Eating Places, Restaurants",GPC
18/01/19 to 18/02/19,Adults and Communities,Kings College Camb,24/01/19,31.80,Other Expenditure-General,"Colleges, Universities, Professional Schools, and",GPC
18/01/19 to 18/02/19,Adults and Communities,Lakeland.Limited,07/02/19,32.98,Publicity/Marketing-General,Miscellaneous General Merchandise Stores,GPC
18/01/19 to 18/02/19,Adults and Communities,Lcc Online,16/01/19,-16.00,Personal Needs of Clients-General,Government Services-Not Elsewhere Classified,GPC
18/01/19 to 18/02/19,Adults and Communities,Lidl UK Coalville,24/01/19,12.81,Materials-General,"Grocery Stores, Supermarkets",GPC
18/01/19 to 18/02/19,Adults and Communities,Morplan Ltd,07/02/19,72.00,Materials-General,"Stationery, Office, and School Supply Stores",GPC
18/01/19 to 18/02/19,Adults and Communities,Morplan Ltd,07/02/19,138.00,Materials-General,"Stationery, Office, and School Supply Stores",GPC
18/01/19 to 18/02/19,Adults and Communities,Morplan Ltd,07/02/19,138.00,Materials-General,"Stationery, Office, and School Supply Stores",GPC
18/01/19 to 18/02/19,Adults and Communities,Morplan Ltd,07/02/19,138.00,Materials-General,"Stationery, Office, and School Supply Stores",GPC
18/01/19 to 18/02/19,Adults and Communities,Mothercare Direct-E-Co,18/01/19,104.00,Materials-General,Department Stores,GPC
18/01/19 to 18/02/19,Adults and Communities,Museum,17/01/19,260.00,Training Expenses-General,Business Services-Not Elsewhere Classified,GPC
18/01/19 to 18/02/19,Adults and Communities,Museum,17/01/19,190.00,Training Expenses-General,Business Services-Not Elsewhere Classified,GPC
18/01/19 to 18/02/19,Adults and Communities,Museums Asctn,28/01/19,95.83,Training Expenses-General,Art Dealers and Galleries,GPC
18/01/19 to 18/02/19,Adults and Communities,Museums Asctn,01/02/19,95.83,Training Expenses-General,Art Dealers and Galleries,GPC
18/01/19 to 18/02/19,Adults and Communities,National Space Center,23/01/19,3.00,Other Expenditure-General,Automobile Parking Lots and Garages,GPC
18/01/19 to 18/02/19,Adults and Communities,Ncp Limited,16/01/19,5.20,Casual/Essential-General,Automobile Parking Lots and Garages,GPC
18/01/19 to 18/02/19,Adults and Communities,Ncp Limited,16/01/19,5.20,Casual/Essential-General,Automobile Parking Lots and Garages,GPC
18/01/19 to 18/02/19,Adults and Communities,Ncp Limited,17/01/19,5.20,Public Transport -  Staff-General,Automobile Parking Lots and Garages,GPC
18/01/19 to 18/02/19,Adults and Communities,Ncp Limited,22/01/19,13.00,Public Transport -  Staff-General,Automobile Parking Lots and Garages,GPC
18/01/19 to 18/02/19,Adults and Communities,Ncp Limited,07/02/19,4.90,Public Transport -  Staff-General,Automobile Parking Lots and Garages,GPC
18/01/19 to 18/02/19,Adults and Communities,Ncp Ringo M Offst,14/02/19,4.50,Public Transport -  Staff-General,Automobile Parking Lots and Garages,GPC
18/01/19 to 18/02/19,Adults and Communities,Nott Emt Carpark,05/02/19,4.17,Public Transport -  Staff-General,Automobile Parking Lots and Garages,GPC
18/01/19 to 18/02/19,Adults and Communities,Ntu Conference Caterin,28/01/19,3.80,Other Expenditure-General,Fast-Food Restaurants (Quick Payment Service Pilot,GPC
18/01/19 to 18/02/19,Adults and Communities,Oakhouse Foods Ltd,28/01/19,79.12,Provisions-General,"Miscellaneous Food Stores-Convenience Stores, Mark",GPC
18/01/19 to 18/02/19,Adults and Communities,Ocado,21/01/19,104.02,Materials-General,"Grocery Stores, Supermarkets",GPC
18/01/19 to 18/02/19,Adults and Communities,Ocado,25/01/19,61.49,Materials-General,"Grocery Stores, Supermarkets",GPC
18/01/19 to 18/02/19,Adults and Communities,Ocado,28/01/19,110.48,Materials-General,"Grocery Stores, Supermarkets",GPC
18/01/19 to 18/02/19,Adults and Communities,Ocado,01/02/19,104.86,Materials-General,"Grocery Stores, Supermarkets",GPC
18/01/19 to 18/02/19,Adults and Communities,Ocado,08/02/19,189.02,Materials-General,"Grocery Stores, Supermarkets",GPC
18/01/19 to 18/02/19,Adults and Communities,Ocado Ltd.,18/01/19,125.95,Provisions-General,"Miscellaneous Food Stores-Convenience Stores, Mark",GPC
18/01/19 to 18/02/19,Adults and Communities,Ocado Ltd.,18/01/19,102.00,Provisions-General,"Miscellaneous Food Stores-Convenience Stores, Mark",GPC
18/01/19 to 18/02/19,Adults and Communities,Ocado Ltd.,18/01/19,46.07,Provisions-General,"Miscellaneous Food Stores-Convenience Stores, Mark",GPC
18/01/19 to 18/02/19,Adults and Communities,Ocado Ltd.,05/02/19,10.99,Provisions-General,"Miscellaneous Food Stores-Convenience Stores, Mark",GPC
18/01/19 to 18/02/19,Adults and Communities,Ocado Retail Limit,04/02/19,234.21,Materials-General,"Grocery Stores, Supermarkets",GPC
18/01/19 to 18/02/19,Adults and Communities,Ocado Retail Limit,10/02/19,130.93,Materials-General,"Grocery Stores, Supermarkets",GPC
18/01/19 to 18/02/19,Adults and Communities,Ocado Retail Limit,15/02/19,92.55,Materials-General,"Grocery Stores, Supermarkets",GPC
18/01/19 to 18/02/19,Adults and Communities,Oxfam F2511,26/01/19,3.99,Display/Conservn/Exhibitions-Exhibitions,Charitable and Social Service Organizations,GPC
18/01/19 to 18/02/19,Adults and Communities,Parking Leic Cc,30/01/19,2.50,Casual/Essential-General,Government Services-Not Elsewhere Classified,GPC
18/01/19 to 18/02/19,Adults and Communities,Paypal *autobarn,30/01/19,1.95,Materials-General,"Artist Supply Stores, Craft Shops",GPC
18/01/19 to 18/02/19,Adults and Communities,Paypal *b M Cross,21/01/19,23.60,Other Equipment & Materials-General,"Used Merchandise Stores, Second Hand Stores",GPC
18/01/19 to 18/02/19,Adults and Communities,Paypal *bragvintage,25/01/19,15.00,Materials-General,Men's and Boy's Clothing and Furnishings Store,GPC
18/01/19 to 18/02/19,Adults and Communities,Paypal *chicksrule,23/01/19,19.97,Materials-General,Children's and Infants' Wear Stores,GPC
18/01/19 to 18/02/19,Adults and Communities,Paypal *crazyladies,22/01/19,25.99,Other Equipment & Materials-General,Children's and Infants' Wear Stores,GPC
18/01/19 to 18/02/19,Adults and Communities,Paypal *crs Records,01/02/19,3.34,Materials-General,Miscellaneous and Specialty Retail Stores,GPC
18/01/19 to 18/02/19,Adults and Communities,Paypal *easimed,08/02/19,4.48,Operational Equipment-General,Miscellaneous and Specialty Retail Stores,GPC
18/01/19 to 18/02/19,Adults and Communities,Paypal *goodswagon,25/01/19,62.07,General Equipment-General,Durable Goods Not Elsewhere Classified,GPC
18/01/19 to 18/02/19,Adults and Communities,Paypal *jaytrade,30/01/19,2.25,Materials-General,Miscellaneous House Furnishing Specialty Shops,GPC
18/01/19 to 18/02/19,Adults and Communities,Paypal *mdestore,31/01/19,75.00,General Equipment-General,Laboratory/Medical/Dental/Ophthalmic Hospital Equi,GPC
18/01/19 to 18/02/19,Adults and Communities,Paypal *museumident,29/01/19,274.00,Other Expenditure-General,Book Stores,GPC
18/01/19 to 18/02/19,Adults and Communities,Paypal *natsca,05/02/19,33.33,Subscriptions-General,Charitable and Social Service Organizations,GPC
18/01/19 to 18/02/19,Adults and Communities,Paypal *photoexpres,31/01/19,5.95,Materials-General,Camera and Photographic Supply Stores,GPC
18/01/19 to 18/02/19,Adults and Communities,Paypal *sewessentia,22/01/19,7.29,Other Equipment & Materials-General,Antique Shops,GPC
18/01/19 to 18/02/19,Adults and Communities,Paypal *somethingco,22/01/19,28.90,Other Expenditure-General,"Artist Supply Stores, Craft Shops",GPC
18/01/19 to 18/02/19,Adults and Communities,Paypal *stayuplate,24/01/19,54.48,Other Services-General,Charitable and Social Service Organizations,GPC
18/01/19 to 18/02/19,Adults and Communities,Paypal *thane1,05/02/19,39.00,Other Equipment & Materials-General,"Lodging-Hotels, Motels, Resorts",GPC
18/01/19 to 18/02/19,Adults and Communities,Pc World Online,21/01/19,44.99,Other Expenditure-General,"RADIO, TELEVISION, AND STEREO STORES (ELECTRONIC STORES)",GPC
18/01/19 to 18/02/19,Adults and Communities,Pc World Online,22/01/19,33.33,Other Expenditure-General,"RADIO, TELEVISION, AND STEREO STORES (ELECTRONIC STORES)",GPC
18/01/19 to 18/02/19,Adults and Communities,Pearson Ed Ltd,10/01/19,5.99,Books-General,Schools and Educational Services-Not Elsewhere Cla,GPC
18/01/19 to 18/02/19,Adults and Communities,Pearson Ed Ltd,18/01/19,5.99,Books-General,Schools and Educational Services-Not Elsewhere Cla,GPC
18/01/19 to 18/02/19,Adults and Communities,Poundstretcher 791,15/02/19,4.99,Other Equipment & Materials-General,Variety Stores,GPC
18/01/19 to 18/02/19,Adults and Communities,Poundstretcher 791,15/02/19,16.67,Other Expenditure-General,Variety Stores,GPC
18/01/19 to 18/02/19,Adults and Communities,Pp*anwarparaou,11/02/19,40.00,Personal Needs of Clients-Holidays & Outings,"Accounting, Auditing, and Bookkeeping Services",GPC
18/01/19 to 18/02/19,Adults and Communities,Premier Inn 44536665,23/01/19,63.50,Other Expenditure-General,PREMIER TRAVEL,GPC
18/01/19 to 18/02/19,Adults and Communities,Presentation Media Ltd,21/01/19,145.00,Stationery-General,"Stationery, Office, and School Supply Stores",GPC
18/01/19 to 18/02/19,Adults and Communities,Q Park Talbot Street,28/01/19,6.00,Public Transport -  Staff-General,Automobile Parking Lots and Garages,GPC
18/01/19 to 18/02/19,Adults and Communities,Quorn Grange Hotel,28/01/19,56.00,Personal Needs of Clients-General,"Lodging-Hotels, Motels, Resorts",GPC
18/01/19 to 18/02/19,Adults and Communities,Rnib Charity,28/01/19,178.43,Stationery-General,Laboratory/Medical/Dental/Ophthalmic Hospital Equi,GPC
18/01/19 to 18/02/19,Adults and Communities,Royal Mail Online Shop,23/01/19,125.00,Display/Conservn/Exhibitions-Exhibitions,Postage Stamps,GPC
18/01/19 to 18/02/19,Adults and Communities,Sainsburys S/mkt,21/01/19,43.90,Provisions-General,"Grocery Stores, Supermarkets",GPC
18/01/19 to 18/02/19,Adults and Communities,Sainsburys S/mkt,29/01/19,91.62,Provisions-General,"Grocery Stores, Supermarkets",GPC
18/01/19 to 18/02/19,Adults and Communities,Sainsburys S/mkts,20/01/19,5.90,Materials-General,"Grocery Stores, Supermarkets",GPC
18/01/19 to 18/02/19,Adults and Communities,Sainsburys S/mkts,28/01/19,7.00,Materials-General,"Grocery Stores, Supermarkets",GPC
18/01/19 to 18/02/19,Adults and Communities,Sainsburys S/mkts,28/01/19,6.30,Provisions-General,"Grocery Stores, Supermarkets",GPC
18/01/19 to 18/02/19,Adults and Communities,Sainsburys S/mkts,05/02/19,28.55,Provisions-General,"Grocery Stores, Supermarkets",GPC
18/01/19 to 18/02/19,Adults and Communities,Sarahs Leather Goods,01/02/19,77.50,Furniture-General,Women's Accessory and Specialty Stores,GPC
18/01/19 to 18/02/19,Adults and Communities,Screwfix Coalville,18/01/19,83.30,Aids & Adaptations-Minor Adaptations,"Building Materials, Lumber Stores",GPC
18/01/19 to 18/02/19,Adults and Communities,Screwfix Coalville,21/01/19,12.48,Aids & Adaptations-Minor Adaptations,"Building Materials, Lumber Stores",GPC
18/01/19 to 18/02/19,Adults and Communities,Screwfix Coalville,18/01/19,46.66,Protective Clothing & Uniforms-General,"Building Materials, Lumber Stores",GPC
18/01/19 to 18/02/19,Adults and Communities,Screwfix Direct,24/01/19,17.88,Materials-General,"Building Materials, Lumber Stores",GPC
18/01/19 to 18/02/19,Adults and Communities,Screwfix Direct,24/01/19,5.00,Postal Services-General,"Building Materials, Lumber Stores",GPC
18/01/19 to 18/02/19,Adults and Communities,Smugmug*online Photos,06/02/19,40.00,Other Expenditure-General,Continuity/Subscription Merchants,GPC
18/01/19 to 18/02/19,Adults and Communities,St John Ambulance,06/02/19,300.00,Training Expenses-General,Charitable and Social Service Organizations,GPC
18/01/19 to 18/02/19,Adults and Communities,T M B Systems Ltd,12/02/19,162.50,Other Premises Expenses-General,Telecommunication Equipment Including Telephone Sa,GPC
18/01/19 to 18/02/19,Adults and Communities,Takeaway Packaging,15/02/19,53.64,Other Equipment & Materials-General,Industrial Supplies Not Elsewhere Classified,GPC
18/01/19 to 18/02/19,Adults and Communities,Tesco Store 2846,07/02/19,63.99,Materials-General,"Grocery Stores, Supermarkets",GPC
18/01/19 to 18/02/19,Adults and Communities,Tesco Store 2846,12/02/19,142.96,Materials-General,"Grocery Stores, Supermarkets",GPC
18/01/19 to 18/02/19,Adults and Communities,Tesco Store 2846,16/02/19,89.65,Materials-General,"Grocery Stores, Supermarkets",GPC
18/01/19 to 18/02/19,Adults and Communities,Tesco Store 2846,17/02/19,-2.00,Materials-General,"Grocery Stores, Supermarkets",GPC
18/01/19 to 18/02/19,Adults and Communities,Tesco Store 2846,17/01/19,129.08,Provisions-General,"Grocery Stores, Supermarkets",GPC
18/01/19 to 18/02/19,Adults and Communities,Tesco Store 2846,18/01/19,209.76,Provisions-General,"Grocery Stores, Supermarkets",GPC
18/01/19 to 18/02/19,Adults and Communities,Tesco Store 2846,24/01/19,149.03,Provisions-General,"Grocery Stores, Supermarkets",GPC
18/01/19 to 18/02/19,Adults and Communities,Tesco Store 2846,31/01/19,104.19,Provisions-General,"Grocery Stores, Supermarkets",GPC
18/01/19 to 18/02/19,Adults and Communities,Tesco Stores 5182,15/02/19,105.39,Materials-General,"Grocery Stores, Supermarkets",GPC
18/01/19 to 18/02/19,Adults and Communities,Tesco Stores 5182,18/01/19,113.93,Provisions-General,"Grocery Stores, Supermarkets",GPC
18/01/19 to 18/02/19,Adults and Communities,Tesco Stores 5182,24/01/19,125.89,Provisions-General,"Grocery Stores, Supermarkets",GPC
18/01/19 to 18/02/19,Adults and Communities,Tesco Stores 5182,07/02/19,112.34,Provisions-General,"Grocery Stores, Supermarkets",GPC
18/01/19 to 18/02/19,Adults and Communities,Tesco Stores 6223,10/02/19,4.39,Materials-General,"Grocery Stores, Supermarkets",GPC
18/01/19 to 18/02/19,Adults and Communities,Tesco Stores-2044,30/01/19,10.00,General Equipment-General,"Grocery Stores, Supermarkets",GPC
18/01/19 to 18/02/19,Adults and Communities,Tfg Copy Print,23/01/19,27.00,Operational Equipment-General,Miscellaneous Publishing and  Printing,GPC
18/01/19 to 18/02/19,Adults and Communities,The Works,15/02/19,8.33,Other Expenditure-General,Discount Stores,GPC
18/01/19 to 18/02/19,Adults and Communities,Theworks,10/02/19,12.84,Stationery-General,Discount Stores,GPC
18/01/19 to 18/02/19,Adults and Communities,Top Pot Supplies,05/02/19,219.14,Materials-General,"Artist Supply Stores, Craft Shops",GPC
18/01/19 to 18/02/19,Adults and Communities,Top Pot Supplies,05/02/19,10.71,Postal Services-General,"Artist Supply Stores, Craft Shops",GPC
18/01/19 to 18/02/19,Adults and Communities,Trainline,24/01/19,359.00,Casual/Essential-General,Passenger Railways,GPC
18/01/19 to 18/02/19,Adults and Communities,Trainline,25/01/19,140.10,Casual/Essential-General,Passenger Railways,GPC
18/01/19 to 18/02/19,Adults and Communities,Trainline,24/01/19,177.00,Public Transport -  Staff-General,Passenger Railways,GPC
18/01/19 to 18/02/19,Adults and Communities,Trainline,10/02/19,75.16,Public Transport -  Staff-General,Passenger Railways,GPC
18/01/19 to 18/02/19,Adults and Communities,Trainline,12/02/19,72.03,Public Transport -  Staff-General,Passenger Railways,GPC
18/01/19 to 18/02/19,Adults and Communities,Value Products Ltd,08/02/19,30.84,Materials-General,Miscellaneous and Specialty Retail Stores,GPC
18/01/19 to 18/02/19,Adults and Communities,Wh Smith,26/01/19,6.39,Display/Conservn/Exhibitions-Exhibitions,News Dealers and Newsstands,GPC
18/01/19 to 18/02/19,Adults and Communities,Wickes South Lecie,13/02/19,24.39,Aids & Adaptations-Minor Adaptations,"Building Materials, Lumber Stores",GPC
18/01/19 to 18/02/19,Adults and Communities,Wilko Retail Limit,05/02/19,3.33,Materials-General,Household Appliance Stores,GPC
18/01/19 to 18/02/19,Adults and Communities,Wilko Retail Limit,15/02/19,17.08,Other Expenditure-General,Household Appliance Stores,GPC
18/01/19 to 18/02/19,Adults and Communities,Wilko Retail Limit,26/01/19,4.63,Stationery-General,Household Appliance Stores,GPC
18/01/19 to 18/02/19,Adults and Communities,Wilko.Com,24/01/19,65.83,Publicity/Marketing-General,Miscellaneous General Merchandise Stores,GPC
18/01/19 to 18/02/19,Adults and Communities,Wm Morrisons Store,06/02/19,29.80,Materials-General,"Grocery Stores, Supermarkets",GPC
18/01/19 to 18/02/19,Adults and Communities,Wm Morrisons Store,06/02/19,3.58,Materials-General,"Grocery Stores, Supermarkets",GPC
18/01/19 to 18/02/19,Adults and Communities,Wm Morrisons Store,13/02/19,7.97,Materials-General,"Grocery Stores, Supermarkets",GPC
18/01/19 to 18/02/19,Adults and Communities,Wm Morrisons Store,30/01/19,24.25,Other Expenditure-General,"Grocery Stores, Supermarkets",GPC
18/01/19 to 18/02/19,Adults and Communities,Wm Morrisons Store,06/02/19,8.19,Provisions-General,"Grocery Stores, Supermarkets",GPC
18/01/19 to 18/02/19,Adults and Communities,Woodmansterne Publicat,12/02/19,149.77,Materials-General,"Gift, Card, Novelty, and Souvenir Shops",GPC
18/01/19 to 18/02/19,Adults and Communities,Www.Adass.Org.Uk,24/01/19,440.00,Conference-General,Charitable and Social Service Organizations,GPC
18/01/19 to 18/02/19,Adults and Communities,Www.Adass.Org.Uk,22/01/19,499.00,Other Services-General,Charitable and Social Service Organizations,GPC
18/01/19 to 18/02/19,Adults and Communities,Www.Adass.Org.Uk,28/01/19,468.00,Other Services-General,Charitable and Social Service Organizations,GPC
18/01/19 to 18/02/19,Adults and Communities,Www.Argos.Co.Uk,31/01/19,28.94,General Equipment-General,Discount Stores,GPC
18/01/19 to 18/02/19,Adults and Communities,Www.Argos.Co.Uk,06/02/19,38.93,General Equipment-General,Discount Stores,GPC
18/01/19 to 18/02/19,Adults and Communities,Www.Argos.Co.Uk,13/02/19,74.12,General Equipment-General,Discount Stores,GPC
18/01/19 to 18/02/19,Adults and Communities,Www.Bishopg.Ac.Uk,21/01/19,16.67,Other Equipment & Materials-General,"Colleges, Universities, Professional Schools, and",GPC
18/01/19 to 18/02/19,Adults and Communities,Www.Careshop.Co.Uk,31/01/19,48.94,Cleaning Materials-General,Miscellaneous and Specialty Retail Stores,GPC
18/01/19 to 18/02/19,Adults and Communities,Www.Cashregistergroup.,31/01/19,199.90,General Equipment-General,Commercial Equipment Not Elsewhere Classified,GPC
18/01/19 to 18/02/19,Adults and Communities,Www.Childs-Play.Co,22/01/19,10.42,Books-General,Book Stores,GPC
18/01/19 to 18/02/19,Adults and Communities,Www.Dyslexiaactionshop,24/01/19,80.11,Books-General,Vocational and Trade Schools,GPC
18/01/19 to 18/02/19,Adults and Communities,Www.Dyslexiaactionshop,24/01/19,195.00,Books-General,Vocational and Trade Schools,GPC
18/01/19 to 18/02/19,Adults and Communities,Www.Dyslexiaactionshop,24/01/19,7.56,Postal Services-General,Vocational and Trade Schools,GPC
18/01/19 to 18/02/19,Adults and Communities,Www.Hemashop.Com/Gb,07/02/19,19.17,Display/Conservn/Exhibitions-Exhibitions,Department Stores,GPC
18/01/19 to 18/02/19,Adults and Communities,Www.Lifeventure.Com,04/02/19,12.97,Provisions-General,Miscellaneous and Specialty Retail Stores,GPC
18/01/19 to 18/02/19,Adults and Communities,Www.Neopost.Co.Uk,13/02/19,480.00,Postal Services-General,"Stationary, Office Supplies, Printing and Writing",GPC
18/01/19 to 18/02/19,Adults and Communities,Www.Neopost.Co.Uk,13/02/19,480.00,Postal Services-General,"Stationary, Office Supplies, Printing and Writing",GPC
18/01/19 to 18/02/19,Adults and Communities,Www.Partypacks.Co.Uk,11/02/19,102.25,Materials-General,Miscellaneous General Merchandise Stores,GPC
18/01/19 to 18/02/19,Adults and Communities,Www.Pcofficechairs.Co.,06/02/19,182.00,Stationery-General,Commercial Furniture,GPC
18/01/19 to 18/02/19,Adults and Communities,Www.Postofficeshop.Co.Uk,28/01/19,140.70,Postal Services-General,"Stationary, Office Supplies, Printing and Writing",GPC
18/01/19 to 18/02/19,Adults and Communities,Www.Postofficeshop.Co.Uk,28/01/19,176.49,Postal Services-General,"Stationary, Office Supplies, Printing and Writing",GPC
18/01/19 to 18/02/19,Adults and Communities,Www.Postofficeshop.Co.Uk,28/01/19,203.49,Postal Services-General,"Stationary, Office Supplies, Printing and Writing",GPC
18/01/19 to 18/02/19,Adults and Communities,Www.Powertoolworld.Co.,23/01/19,113.21,Other Equipment & Materials-General,Hardware Equipment and Supplies,GPC
18/01/19 to 18/02/19,Adults and Communities,Www.Shaws.Co.Uk,05/02/19,58.14,Stationery-General,Miscellaneous Publishing and  Printing,GPC
18/01/19 to 18/02/19,Adults and Communities,Www.Shaws.Co.Uk,05/02/19,-58.14,Stationery-General,Miscellaneous Publishing and  Printing,GPC
18/01/19 to 18/02/19,Adults and Communities,Www.Staples.Co.Uk,24/01/19,31.47,Stationery-General,"Stationery, Office, and School Supply Stores",GPC
18/01/19 to 18/02/19,Adults and Communities,Www.Staples.Co.Uk,29/01/19,12.74,Stationery-General,"Stationery, Office, and School Supply Stores",GPC
18/01/19 to 18/02/19,Adults and Communities,Www.Talktalkbusiness.C,25/01/19,54.66,Telephones-General,Computer Network/Information Services,GPC
18/01/19 to 18/02/19,Adults and Communities,Www.Theworks.Co.Uk,11/02/19,22.94,Other Expenditure-General,Discount Stores,GPC
18/01/19 to 18/02/19,Adults and Communities,Www.Tts-Groups.Co.Uk,17/01/19,385.72,Other Equipment & Materials-General,"Stationery, Office, and School Supply Stores",GPC
18/01/19 to 18/02/19,Adults and Communities,Www.Tts-Groups.Co.Uk,11/02/19,35.94,Stationery-General,"Stationery, Office, and School Supply Stores",GPC
18/01/19 to 18/02/19,Adults and Communities,Www.Zen.Co.Uk,30/01/19,34.76,Telephones-General,Computer Network/Information Services,GPC
18/01/19 to 18/02/19,Adults and Communities,Information not known ,05/02/19,0.42,IT Equipment-Licences,Misc-Unknown,GPC
18/01/19 to 18/02/19,Adults and Communities,Information not known ,29/01/19,-36.56,Stationery-General,Misc-Unknown,GPC
18/01/19 to 18/02/19,C&YPS-Non Delegated,3c_*east Midlands - Lo,28/01/19,12.00,Client/Volunteers-General,Automobile Parking Lots and Garages,GPC
18/01/19 to 18/02/19,C&YPS-Non Delegated,Aldi 24 772,22/01/19,10.57,General Equipment-General,"Grocery Stores, Supermarkets",GPC
18/01/19 to 18/02/19,C&YPS-Non Delegated,Aldi 27 772,17/01/19,16.69,Other Transfer Payments-Section 24,"Grocery Stores, Supermarkets",GPC
18/01/19 to 18/02/19,C&YPS-Non Delegated,Aldi 27 772,28/01/19,12.98,Other Transfer Payments-Section 24,"Grocery Stores, Supermarkets",GPC
18/01/19 to 18/02/19,C&YPS-Non Delegated,Aldi 27 772,04/02/19,6.79,Other Transfer Payments-Section 24,"Grocery Stores, Supermarkets",GPC
18/01/19 to 18/02/19,C&YPS-Non Delegated,Aldi 27 772,14/02/19,31.93,Other Transfer Payments-Section 24,"Grocery Stores, Supermarkets",GPC
18/01/19 to 18/02/19,C&YPS-Non Delegated,Aldi 47 772,24/01/19,15.77,Other Equipment & Materials-General,"Grocery Stores, Supermarkets",GPC
18/01/19 to 18/02/19,C&YPS-Non Delegated,Aldi 47 772,07/02/19,8.76,Other Equipment & Materials-General,"Grocery Stores, Supermarkets",GPC
18/01/19 to 18/02/19,C&YPS-Non Delegated,Aldi 54 772,13/02/19,6.65,General Equipment-General,"Grocery Stores, Supermarkets",GPC
18/01/19 to 18/02/19,C&YPS-Non Delegated,Aldi 54 772,28/01/19,25.76,Other Expenditure-General,"Grocery Stores, Supermarkets",GPC
18/01/19 to 18/02/19,C&YPS-Non Delegated,Aldi 54 772,11/02/19,28.38,Other Expenditure-General,"Grocery Stores, Supermarkets",GPC
18/01/19 to 18/02/19,C&YPS-Non Delegated,Aldi 56 772,21/01/19,28.51,Other Expenditure-General,"Grocery Stores, Supermarkets",GPC
18/01/19 to 18/02/19,C&YPS-Non Delegated,Amazon Prime*mi3442pb4,09/02/19,6.66,Other Expenditure-General,Continuity/Subscription Merchants,GPC
18/01/19 to 18/02/19,C&YPS-Non Delegated,Amazon Prime*mi9uu4b74,14/02/19,65.83,Other Equipment & Materials-General,Continuity/Subscription Merchants,GPC
18/01/19 to 18/02/19,C&YPS-Non Delegated,Amazon.Co.Uk*mb1sa3bl4 Am,17/01/19,5.43,Other Equipment & Materials-General,Miscellaneous and Specialty Retail Stores,GPC
18/01/19 to 18/02/19,C&YPS-Non Delegated,Amazon.Co.Uk*mb3396y24,28/01/19,48.98,IT Equipment-Purchase - Hardware,Direct Marketers - Other,GPC
18/01/19 to 18/02/19,C&YPS-Non Delegated,Amazon.Co.Uk*mb5cb79q4,24/01/19,19.99,Other Expenditure-General,Direct Marketers - Other,GPC
18/01/19 to 18/02/19,C&YPS-Non Delegated,Amazon.Co.Uk*mb7ta79p4,24/01/19,20.48,IT Equipment-Purchase - Hardware,Direct Marketers - Other,GPC
18/01/19 to 18/02/19,C&YPS-Non Delegated,Amazon.Co.Uk*mi0db6ft4,30/01/19,38.16,Other Expenditure-General,Direct Marketers - Other,GPC
18/01/19 to 18/02/19,C&YPS-Non Delegated,Amazon.Co.Uk*mi18t6by4,14/02/19,93.94,General Equipment-General,Direct Marketers - Other,GPC
18/01/19 to 18/02/19,C&YPS-Non Delegated,Amazon.Co.Uk*mi2iu5424 Am,31/01/19,101.94,Other Expenditure-Assist/Conts to Schemes,Miscellaneous and Specialty Retail Stores,GPC
18/01/19 to 18/02/19,C&YPS-Non Delegated,Amazon.Co.Uk*mi2wd5nl4 Am,02/02/19,50.97,Other Expenditure-Assist/Conts to Schemes,Miscellaneous and Specialty Retail Stores,GPC
18/01/19 to 18/02/19,C&YPS-Non Delegated,Amazon.Co.Uk*mi2z24o74,29/01/19,79.29,Other Equipment & Materials-General,Direct Marketers - Other,GPC
18/01/19 to 18/02/19,C&YPS-Non Delegated,Amazon.Co.Uk*mi3dx9fi4,30/01/19,14.14,Other Expenditure-General,Direct Marketers - Other,GPC
18/01/19 to 18/02/19,C&YPS-Non Delegated,Amazon.Co.Uk*mi4an0at4,05/02/19,17.17,Other Equipment & Materials-General,Direct Marketers - Other,GPC
18/01/19 to 18/02/19,C&YPS-Non Delegated,Amazon.Co.Uk*mi4bu9lo4,31/01/19,96.96,Other Services-General,Direct Marketers - Other,GPC
18/01/19 to 18/02/19,C&YPS-Non Delegated,Amazon.Co.Uk*mi6mg3od4,29/01/19,20.90,Other Equipment & Materials-General,Direct Marketers - Other,GPC
18/01/19 to 18/02/19,C&YPS-Non Delegated,Amazon.Co.Uk*mi7t84cw4,29/01/19,10.12,Other Equipment & Materials-General,Direct Marketers - Other,GPC
18/01/19 to 18/02/19,C&YPS-Non Delegated,Amazon.Co.Uk*mi8ab04s4 Am,31/01/19,6.54,Other Expenditure-Assist/Conts to Schemes,Miscellaneous and Specialty Retail Stores,GPC
18/01/19 to 18/02/19,C&YPS-Non Delegated,Amazon.Co.Uk*mi98r1oq4,30/01/19,8.93,Other Equipment & Materials-General,Direct Marketers - Other,GPC
18/01/19 to 18/02/19,C&YPS-Non Delegated,Amazon.Co.Uk*mi98t6by4,14/02/19,15.22,General Equipment-General,Direct Marketers - Other,GPC
18/01/19 to 18/02/19,C&YPS-Non Delegated,Amazon.Co.Uk*mi9te3cn4,29/01/19,90.97,Materials-General,Direct Marketers - Other,GPC
18/01/19 to 18/02/19,C&YPS-Non Delegated,Amfbowling.Co.Uk,22/01/19,89.90,Public Transport -  Staff-General,Bowling Alleys,GPC
18/01/19 to 18/02/19,C&YPS-Non Delegated,Amzn Mktp Uk*mb14h1ie4,27/01/19,14.48,Stationery-General,Book Stores,GPC
18/01/19 to 18/02/19,C&YPS-Non Delegated,Amzn Mktp Uk*mb4z90ii4,25/01/19,2.98,Stationery-General,Book Stores,GPC
18/01/19 to 18/02/19,C&YPS-Non Delegated,Amzn Mktp Uk*mb5423sq4,21/01/19,8.34,Stationery-General,Book Stores,GPC
18/01/19 to 18/02/19,C&YPS-Non Delegated,Amzn Mktp Uk*mb5gk3qu4,18/01/19,4.67,Other Expenditure-General,Book Stores,GPC
18/01/19 to 18/02/19,C&YPS-Non Delegated,Amzn Mktp Uk*mb61r4ky4 Am,22/01/19,38.32,Provisions-General,Book Stores,GPC
18/01/19 to 18/02/19,C&YPS-Non Delegated,Amzn Mktp Uk*mb6rv2uc4,25/01/19,10.73,Stationery-General,Book Stores,GPC
18/01/19 to 18/02/19,C&YPS-Non Delegated,Amzn Mktp Uk*mb6u30y24,28/01/19,13.94,Printing-General,Book Stores,GPC
18/01/19 to 18/02/19,C&YPS-Non Delegated,Amzn Mktp Uk*mb7264ui4,25/01/19,27.48,Printing-General,Book Stores,GPC
18/01/19 to 18/02/19,C&YPS-Non Delegated,Amzn Mktp Uk*mb86d86a4,18/01/19,32.89,Books-General,Book Stores,GPC
18/01/19 to 18/02/19,C&YPS-Non Delegated,Amzn Mktp Uk*mb8os97o4,23/01/19,71.58,Stationery-General,Book Stores,GPC
18/01/19 to 18/02/19,C&YPS-Non Delegated,Amzn Mktp Uk*mb8t50bi4,17/01/19,1.50,Other Equipment & Materials-General,Book Stores,GPC
18/01/19 to 18/02/19,C&YPS-Non Delegated,Amzn Mktp Uk*mb9a62rh4,26/01/19,18.47,Printing-General,Book Stores,GPC
18/01/19 to 18/02/19,C&YPS-Non Delegated,Amzn Mktp Uk*mi0vt9eg4,06/02/19,19.96,IT Equipment-Purchase - Hardware,Book Stores,GPC
18/01/19 to 18/02/19,C&YPS-Non Delegated,Amzn Mktp Uk*mi12o5qd4,15/02/19,7.66,Other Equipment & Materials-General,Book Stores,GPC
18/01/19 to 18/02/19,C&YPS-Non Delegated,Amzn Mktp Uk*mi13j0cl4 Am,29/01/19,33.98,Other Equipment & Materials-General,Book Stores,GPC
18/01/19 to 18/02/19,C&YPS-Non Delegated,Amzn Mktp Uk*mi1bk6cr4,29/01/19,202.46,Other Equipment & Materials-General,Book Stores,GPC
18/01/19 to 18/02/19,C&YPS-Non Delegated,Amzn Mktp Uk*mi1u49ag4,05/02/19,2.49,Stationery-General,Book Stores,GPC
18/01/19 to 18/02/19,C&YPS-Non Delegated,Amzn Mktp Uk*mi1uc7bt4 Am,14/02/19,23.23,Books-General,Book Stores,GPC
18/01/19 to 18/02/19,C&YPS-Non Delegated,Amzn Mktp Uk*mi24a9ce4,29/01/19,9.97,Books-General,Book Stores,GPC
18/01/19 to 18/02/19,C&YPS-Non Delegated,Amzn Mktp Uk*mi2pl5pc4,08/02/19,8.28,Other Expenditure-Assist/Conts to Schemes,Book Stores,GPC
18/01/19 to 18/02/19,C&YPS-Non Delegated,Amzn Mktp Uk*mi3ga2n14,03/02/19,66.98,IT Equipment-General,Book Stores,GPC
18/01/19 to 18/02/19,C&YPS-Non Delegated,Amzn Mktp Uk*mi3zw30l4,06/02/19,20.04,Other Equipment & Materials-General,Book Stores,GPC
18/01/19 to 18/02/19,C&YPS-Non Delegated,Amzn Mktp Uk*mi4043p34,09/02/19,11.28,Other Equipment & Materials-General,Book Stores,GPC
18/01/19 to 18/02/19,C&YPS-Non Delegated,Amzn Mktp Uk*mi4w76oz4,29/01/19,1.97,Other Equipment & Materials-General,Book Stores,GPC
18/01/19 to 18/02/19,C&YPS-Non Delegated,Amzn Mktp Uk*mi51c7v94,11/02/19,4.96,Other Expenditure-Assist/Conts to Schemes,Book Stores,GPC
18/01/19 to 18/02/19,C&YPS-Non Delegated,Amzn Mktp Uk*mi69x4gw4 Am,09/02/19,15.94,Other Equipment & Materials-General,Book Stores,GPC
18/01/19 to 18/02/19,C&YPS-Non Delegated,Amzn Mktp Uk*mi6ce5al4,06/02/19,170.40,Other Expenditure-Assist/Conts to Schemes,Book Stores,GPC
18/01/19 to 18/02/19,C&YPS-Non Delegated,Amzn Mktp Uk*mi6ns7tm4,05/02/19,8.98,General Equipment-General,Book Stores,GPC
18/01/19 to 18/02/19,C&YPS-Non Delegated,Amzn Mktp Uk*mi6o795c4,13/02/19,8.32,Other Expenditure-General,Book Stores,GPC
18/01/19 to 18/02/19,C&YPS-Non Delegated,Amzn Mktp Uk*mi7549fe4 Am,30/01/19,42.42,Other Equipment & Materials-General,Book Stores,GPC
18/01/19 to 18/02/19,C&YPS-Non Delegated,Amzn Mktp Uk*mi8it6ed4,06/02/19,6.06,Books-General,Book Stores,GPC
18/01/19 to 18/02/19,C&YPS-Non Delegated,Amzn Mktp Uk*mi8zy8f74 Am,30/01/19,42.42,Other Equipment & Materials-General,Book Stores,GPC
18/01/19 to 18/02/19,C&YPS-Non Delegated,Amzn Mktp Uk*mi94d1c54,29/01/19,25.00,Other Equipment & Materials-General,Book Stores,GPC
18/01/19 to 18/02/19,C&YPS-Non Delegated,Amzn Mktp Uk*mi96b10e4,06/02/19,20.40,Books-General,Book Stores,GPC
18/01/19 to 18/02/19,C&YPS-Non Delegated,Amzn Mktp Uk*mi9bj7pc4,08/02/19,3.32,Other Equipment & Materials-General,Book Stores,GPC
18/01/19 to 18/02/19,C&YPS-Non Delegated,Amzn Mktp Uk*mi9jp5on4,30/01/19,20.83,Other Equipment & Materials-General,Book Stores,GPC
18/01/19 to 18/02/19,C&YPS-Non Delegated,Amzn Mktp Uk*mi9ow4q84,16/02/19,7.92,Other Equipment & Materials-General,Book Stores,GPC
18/01/19 to 18/02/19,C&YPS-Non Delegated,Amzn Mktp Uk*mi9wp0ad4,05/02/19,5.08,Other Equipment & Materials-General,Book Stores,GPC
18/01/19 to 18/02/19,C&YPS-Non Delegated,Amzn Mktp Uk*mi9xf2614,17/02/19,50.34,Other Equipment & Materials-General,Book Stores,GPC
18/01/19 to 18/02/19,C&YPS-Non Delegated,Ao Retail Limited,29/01/19,165.83,Provisions-General,Household Appliance Stores,GPC
18/01/19 to 18/02/19,C&YPS-Non Delegated,Argos Ltd,22/01/19,336.79,Other Transfer Payments-Leaving Care Grants,Discount Stores,GPC
18/01/19 to 18/02/19,C&YPS-Non Delegated,Arriva Mid Travel,23/01/19,22.00,Other Transfer Payments-General,"Bus Lines, Charters, Tour Buses",GPC
18/01/19 to 18/02/19,C&YPS-Non Delegated,Arriva Mid Travel,04/02/19,65.70,Other Transfer Payments-General,"Bus Lines, Charters, Tour Buses",GPC
18/01/19 to 18/02/19,C&YPS-Non Delegated,Arriva Mid Travel,07/02/19,54.00,Other Transfer Payments-General,"Bus Lines, Charters, Tour Buses",GPC
18/01/19 to 18/02/19,C&YPS-Non Delegated,Arriva Mid Travel,25/01/19,197.10,Other Transfer Payments-Section 24,"Bus Lines, Charters, Tour Buses",GPC
18/01/19 to 18/02/19,C&YPS-Non Delegated,Asda George Com Leeds,01/02/19,181.95,Other Transfer Payments-Leaving Care Grants,"Grocery Stores, Supermarkets",GPC
18/01/19 to 18/02/19,C&YPS-Non Delegated,Asda Groceries Online,04/02/19,33.54,Other Expenditure-General,"Grocery Stores, Supermarkets",GPC
18/01/19 to 18/02/19,C&YPS-Non Delegated,Asda Stores 4798,21/01/19,17.59,General Equipment-General,"Grocery Stores, Supermarkets",GPC
18/01/19 to 18/02/19,C&YPS-Non Delegated,Asda Superstore,20/01/19,6.00,Other Equipment & Materials-General,"Grocery Stores, Supermarkets",GPC
18/01/19 to 18/02/19,C&YPS-Non Delegated,Asda Superstore,05/02/19,45.00,Other Transfer Payments-General,"Grocery Stores, Supermarkets",GPC
18/01/19 to 18/02/19,C&YPS-Non Delegated,Asda Superstore,29/01/19,8.00,Other Transfer Payments-Leaving Care Grants,"Grocery Stores, Supermarkets",GPC
18/01/19 to 18/02/19,C&YPS-Non Delegated,B&m Retail,25/01/19,9.07,Other Transfer Payments-General,Discount Stores,GPC
18/01/19 to 18/02/19,C&YPS-Non Delegated,B&m Retail,13/02/19,7.99,Other Transfer Payments-Leaving Care Grants,Discount Stores,GPC
18/01/19 to 18/02/19,C&YPS-Non Delegated,B&m Retail Ltd,24/01/19,14.99,Other Transfer Payments-Leaving Care Grants,Discount Stores,GPC
18/01/19 to 18/02/19,C&YPS-Non Delegated,B&m Retail Ltd,14/02/19,35.96,Other Transfer Payments-Leaving Care Grants,Discount Stores,GPC
18/01/19 to 18/02/19,C&YPS-Non Delegated,Baker Ross,07/02/19,22.25,Materials-General,"Artist Supply Stores, Craft Shops",GPC
18/01/19 to 18/02/19,C&YPS-Non Delegated,Bcc Register Offic,08/02/19,18.50,Other Transfer Payments-Section 23 Grants,Government Services-Not Elsewhere Classified,GPC
18/01/19 to 18/02/19,C&YPS-Non Delegated,Bcc Register Offic,14/02/19,18.50,Other Transfer Payments-Section 23 Grants,Government Services-Not Elsewhere Classified,GPC
18/01/19 to 18/02/19,C&YPS-Non Delegated,Belvoir Lettings,28/01/19,400.00,Other Transfer Payments-Section 24,Professional Services-Not Elsewhere Classified,GPC
18/01/19 to 18/02/19,C&YPS-Non Delegated,Belvoir Lettings,28/01/19,150.00,Other Transfer Payments-Section 24,Professional Services-Not Elsewhere Classified,GPC
18/01/19 to 18/02/19,C&YPS-Non Delegated,Blaby Fitness Ltd,15/02/19,15.00,Subscriptions-General,"Membership Clubs (Sports, Recreation, Athletic), C",GPC
18/01/19 to 18/02/19,C&YPS-Non Delegated,Blitz Sport,28/01/19,205.70,Materials-General,Sporting Goods Stores,GPC
18/01/19 to 18/02/19,C&YPS-Non Delegated,Boost Trampoline Parks,25/01/19,199.80,Public Transport -  Staff-General,RECREATION SERVICES--NOT ELSEWHERE CLASSIFIED,GPC
18/01/19 to 18/02/19,C&YPS-Non Delegated,Boost Trampoline Parks,25/01/19,159.80,Public Transport -  Staff-General,RECREATION SERVICES--NOT ELSEWHERE CLASSIFIED,GPC
18/01/19 to 18/02/19,C&YPS-Non Delegated,Boots 0020,29/01/19,2.83,Provisions-General,"Drug Stores, Pharmacies",GPC
18/01/19 to 18/02/19,C&YPS-Non Delegated,Bt Bill Payment 2,04/02/19,139.60,IT Equipment-Rental,Telecommunication Equipment Including Telephone Sa,GPC
18/01/19 to 18/02/19,C&YPS-Non Delegated,Bt Bill Payment 2,15/02/19,126.70,IT Equipment-Rental,Telecommunication Equipment Including Telephone Sa,GPC
18/01/19 to 18/02/19,C&YPS-Non Delegated,Bt Bill Payment 2,17/01/19,55.89,Telephones-General,Telecommunication Equipment Including Telephone Sa,GPC
18/01/19 to 18/02/19,C&YPS-Non Delegated,Bt Bill Payment 2,17/01/19,56.88,Telephones-General,Telecommunication Equipment Including Telephone Sa,GPC
18/01/19 to 18/02/19,C&YPS-Non Delegated,Bt Bill Payment 2,14/02/19,55.89,Telephones-General,Telecommunication Equipment Including Telephone Sa,GPC
18/01/19 to 18/02/19,C&YPS-Non Delegated,Bt Bill Payment 2,15/02/19,175.82,Telephones-General,Telecommunication Equipment Including Telephone Sa,GPC
18/01/19 to 18/02/19,C&YPS-Non Delegated,Bt Bill Payment 2,15/02/19,194.63,Telephones-General,Telecommunication Equipment Including Telephone Sa,GPC
18/01/19 to 18/02/19,C&YPS-Non Delegated,Central Co-Op Reta,05/02/19,3.75,General Equipment-General,Department Stores,GPC
18/01/19 to 18/02/19,C&YPS-Non Delegated,Central Eng Coop,11/02/19,20.62,General Equipment-General,Department Stores,GPC
18/01/19 to 18/02/19,C&YPS-Non Delegated,Central Eng Coop,23/01/19,3.88,Hospitality-General,Department Stores,GPC
18/01/19 to 18/02/19,C&YPS-Non Delegated,Central Eng Coop,29/01/19,14.40,Hospitality-General,Department Stores,GPC
18/01/19 to 18/02/19,C&YPS-Non Delegated,Central Eng Coop,05/02/19,9.25,Hospitality-General,Department Stores,GPC
18/01/19 to 18/02/19,C&YPS-Non Delegated,Central Eng Coop,17/01/19,15.48,Other Equipment & Materials-General,Department Stores,GPC
18/01/19 to 18/02/19,C&YPS-Non Delegated,Central Eng Coop,23/01/19,9.53,Other Equipment & Materials-General,Department Stores,GPC
18/01/19 to 18/02/19,C&YPS-Non Delegated,Central Eng Coop,31/01/19,10.90,Other Equipment & Materials-General,Department Stores,GPC
18/01/19 to 18/02/19,C&YPS-Non Delegated,Central Eng Coop,07/02/19,12.13,Other Equipment & Materials-General,Department Stores,GPC
18/01/19 to 18/02/19,C&YPS-Non Delegated,Central Eng Coop,08/02/19,20.24,Other Equipment & Materials-General,Department Stores,GPC
18/01/19 to 18/02/19,C&YPS-Non Delegated,Central Eng Coop,14/02/19,14.46,Other Equipment & Materials-General,Department Stores,GPC
18/01/19 to 18/02/19,C&YPS-Non Delegated,Central Eng Coop,22/01/19,8.05,Other Expenditure-General,Department Stores,GPC
18/01/19 to 18/02/19,C&YPS-Non Delegated,Central Eng Coop,22/01/19,10.00,Other Transfer Payments-Section 24,Department Stores,GPC
18/01/19 to 18/02/19,C&YPS-Non Delegated,Cornwall Council,12/02/19,20.00,Other Transfer Payments-Section 23 Grants,Government Services-Not Elsewhere Classified,GPC
18/01/19 to 18/02/19,C&YPS-Non Delegated,Costa Coffee,04/02/19,4.20,Other Expenditure-General,Fast-Food Restaurants (Quick Payment Service Pilot,GPC
18/01/19 to 18/02/19,C&YPS-Non Delegated,Costa Coffee,15/02/19,3.08,Other Transfer Payments-General,Fast-Food Restaurants (Quick Payment Service Pilot,GPC
18/01/19 to 18/02/19,C&YPS-Non Delegated,Costa Coffee,13/02/19,6.75,Other Transfer Payments-Section 24,Fast-Food Restaurants (Quick Payment Service Pilot,GPC
18/01/19 to 18/02/19,C&YPS-Non Delegated,Costa Coffee 43042555,21/01/19,8.95,Other Expenditure-General,Fast-Food Restaurants (Quick Payment Service Pilot,GPC
18/01/19 to 18/02/19,C&YPS-Non Delegated,Costa Coffee 43042555,22/01/19,8.95,Other Expenditure-General,Fast-Food Restaurants (Quick Payment Service Pilot,GPC
18/01/19 to 18/02/19,C&YPS-Non Delegated,Cosykidzltd,13/02/19,14.51,General Equipment-General,"Artist Supply Stores, Craft Shops",GPC
18/01/19 to 18/02/19,C&YPS-Non Delegated,Countesthorpe Born And Br,30/01/19,45.00,Other Expenditure-General,Bakeries,GPC
18/01/19 to 18/02/19,C&YPS-Non Delegated,Currys Superstore,03/02/19,269.00,Other Transfer Payments-Leaving Care Grants,"RADIO, TELEVISION, AND STEREO STORES (ELECTRONIC STORES)",GPC
18/01/19 to 18/02/19,C&YPS-Non Delegated,Dsa Theory Test,28/01/19,23.00,Other Transfer Payments-Section 23 Grants,Government Services-Not Elsewhere Classified,GPC
18/01/19 to 18/02/19,C&YPS-Non Delegated,Dvla Driver Online,04/02/19,34.00,Other Expenditure-General,Government Services-Not Elsewhere Classified,GPC
18/01/19 to 18/02/19,C&YPS-Non Delegated,Dvla Driver Online,29/01/19,34.00,Other Transfer Payments-General,Government Services-Not Elsewhere Classified,GPC
18/01/19 to 18/02/19,C&YPS-Non Delegated,East Midlands Trai,30/01/19,6.10,Client/Volunteers-General,Passenger Railways,GPC
18/01/19 to 18/02/19,C&YPS-Non Delegated,East Midlands Trai,05/02/19,242.40,Other Transfer Payments-General,Passenger Railways,GPC
18/01/19 to 18/02/19,C&YPS-Non Delegated,Eb *refund To Buyer,22/01/19,8.75,Other Recoverable Charges-General,Business Services-Not Elsewhere Classified,GPC
18/01/19 to 18/02/19,C&YPS-Non Delegated,Eb *refund To Buyer,06/02/19,22.76,Other Recoverable Charges-General,Business Services-Not Elsewhere Classified,GPC
18/01/19 to 18/02/19,C&YPS-Non Delegated,Eb *refund To Buyer,14/02/19,18.09,Other Recoverable Charges-General,Business Services-Not Elsewhere Classified,GPC
18/01/19 to 18/02/19,C&YPS-Non Delegated,Elc-Internet,12/02/19,13.95,General Equipment-General,Department Stores,GPC
18/01/19 to 18/02/19,C&YPS-Non Delegated,Elsa Network,31/01/19,100.00,IT Equipment-Software,Computer Software Stores,GPC
18/01/19 to 18/02/19,C&YPS-Non Delegated,Eric Wright Carpets,21/01/19,375.00,Other Transfer Payments-Leaving Care Grants,Floor Coverings   Stores,GPC
18/01/19 to 18/02/19,C&YPS-Non Delegated,Esp,28/01/19,347.67,General Equipment-General,Miscellaneous General Merchandise Stores,GPC
18/01/19 to 18/02/19,C&YPS-Non Delegated,Facebk Jmbrmjjeq2,31/01/19,9.16,Other Equipment & Materials-General,Advertising Services,GPC
18/01/19 to 18/02/19,C&YPS-Non Delegated,Futures Restaurant,07/02/19,44.55,Other Transfer Payments-General,Schools and Educational Services-Not Elsewhere Cla,GPC
18/01/19 to 18/02/19,C&YPS-Non Delegated,Gen Register Office,30/01/19,23.40,Other Transfer Payments-General,Government Services-Not Elsewhere Classified,GPC
18/01/19 to 18/02/19,C&YPS-Non Delegated,Gen Register Office,11/02/19,23.40,Other Transfer Payments-General,Government Services-Not Elsewhere Classified,GPC
18/01/19 to 18/02/19,C&YPS-Non Delegated,Gen Register Office,30/01/19,9.25,Other Transfer Payments-Section 23 Grants,Government Services-Not Elsewhere Classified,GPC
18/01/19 to 18/02/19,C&YPS-Non Delegated,Gen Register Office,01/02/19,27.75,Other Transfer Payments-Section 23 Grants,Government Services-Not Elsewhere Classified,GPC
18/01/19 to 18/02/19,C&YPS-Non Delegated,Gen Register Office,13/02/19,74.00,Other Transfer Payments-Section 23 Grants,Government Services-Not Elsewhere Classified,GPC
18/01/19 to 18/02/19,C&YPS-Non Delegated,Gl-Assesment.Co.Uk,11/02/19,220.93,General Equipment-General,Book Stores,GPC
18/01/19 to 18/02/19,C&YPS-Non Delegated,Glen Parva Manor,11/02/19,6.60,Other Transfer Payments-Section 23 Grants,"Drinking Places (Alcoholic Beverages)-Bars, Tavern",GPC
18/01/19 to 18/02/19,C&YPS-Non Delegated,Gro Hm Passport Office,21/01/19,23.40,Other Transfer Payments-General,Government Services-Not Elsewhere Classified,GPC
18/01/19 to 18/02/19,C&YPS-Non Delegated,Gro Hm Passport Office,23/01/19,9.25,Other Transfer Payments-Section 23 Grants,Government Services-Not Elsewhere Classified,GPC
18/01/19 to 18/02/19,C&YPS-Non Delegated,Gwr Websales,05/02/19,121.55,Other Transfer Payments-Section 23 Grants,Passenger Railways,GPC
18/01/19 to 18/02/19,C&YPS-Non Delegated,Gynsills Farm (Glenfie,23/01/19,13.19,Other Expenditure-General,"Drinking Places (Alcoholic Beverages)-Bars, Tavern",GPC
18/01/19 to 18/02/19,C&YPS-Non Delegated,Highstreet Vocuhers,06/02/19,204.10,Other Equipment & Materials-General,"Civic, Social, and Fraternal Associations",GPC
18/01/19 to 18/02/19,C&YPS-Non Delegated,Highstreet Vocuhers,07/02/19,1000.00,Other Expenditure-General,"Civic, Social, and Fraternal Associations",GPC
18/01/19 to 18/02/19,C&YPS-Non Delegated,Highstreet Vocuhers,12/02/19,1000.00,Other Expenditure-General,"Civic, Social, and Fraternal Associations",GPC
18/01/19 to 18/02/19,C&YPS-Non Delegated,Hinckley & Distric,29/01/19,35.00,Other Transfer Payments-Leaving Care Grants,Charitable and Social Service Organizations,GPC
18/01/19 to 18/02/19,C&YPS-Non Delegated,Hinckley Golf Club Ltd,08/02/19,280.40,Training Expenses-General,Golf Courses-Public,GPC
18/01/19 to 18/02/19,C&YPS-Non Delegated,Hm Passport Office,16/02/19,58.50,Other Transfer Payments-General,Government Services-Not Elsewhere Classified,GPC
18/01/19 to 18/02/19,C&YPS-Non Delegated,Hm Passport Office,06/02/19,54.00,Other Transfer Payments-Section 23 Grants,Government Services-Not Elsewhere Classified,GPC
18/01/19 to 18/02/19,C&YPS-Non Delegated,Holiday Inn Express,11/02/19,296.64,Other Allowances/Expenses-General,Holiday Inns,GPC
18/01/19 to 18/02/19,C&YPS-Non Delegated,Holiday Inn Express,05/02/19,49.00,Other Expenditure-General,Holiday Inns,GPC
18/01/19 to 18/02/19,C&YPS-Non Delegated,Home Bargains,01/02/19,1.40,Materials-General,Hardware Stores,GPC
18/01/19 to 18/02/19,C&YPS-Non Delegated,Home Bargains Coalvill,08/02/19,7.17,Other Equipment & Materials-General,Hardware Stores,GPC
18/01/19 to 18/02/19,C&YPS-Non Delegated,Horizon Sainsburys Hin,06/02/19,2.00,Other Transfer Payments-General,Automobile Parking Lots and Garages,GPC
18/01/19 to 18/02/19,C&YPS-Non Delegated,Http://Www.Stop-Cse.Or,07/02/19,50.00,Other Services-General,Charitable and Social Service Organizations,GPC
18/01/19 to 18/02/19,C&YPS-Non Delegated,Itunes.Com/Bill,31/01/19,583.32,IT Equipment-General,Record Shops,GPC
18/01/19 to 18/02/19,C&YPS-Non Delegated,Itunes.Com/Bill,31/01/19,133.33,IT Equipment-General,Record Shops,GPC
18/01/19 to 18/02/19,C&YPS-Non Delegated,Itunes.Com/Bill,31/01/19,208.33,IT Equipment-General,Record Shops,GPC
18/01/19 to 18/02/19,C&YPS-Non Delegated,John Skillen Martial Arts,05/02/19,35.00,Materials-General,"Commercial Sports, Professional Sports Clubs, Athl",GPC
18/01/19 to 18/02/19,C&YPS-Non Delegated,Kcjonesconf,17/01/19,133.33,Training Expenses-General,"Theatrical Products (Except Motion Pictures), Tick",GPC
18/01/19 to 18/02/19,C&YPS-Non Delegated,Kcjonesconf,17/01/19,133.33,Training Expenses-General,"Theatrical Products (Except Motion Pictures), Tick",GPC
18/01/19 to 18/02/19,C&YPS-Non Delegated,Kcjonesconf,17/01/19,133.33,Training Expenses-General,"Theatrical Products (Except Motion Pictures), Tick",GPC
18/01/19 to 18/02/19,C&YPS-Non Delegated,Kcjonesconf,17/01/19,133.33,Training Expenses-General,"Theatrical Products (Except Motion Pictures), Tick",GPC
18/01/19 to 18/02/19,C&YPS-Non Delegated,Kcjonesconf,17/01/19,133.33,Training Expenses-General,"Theatrical Products (Except Motion Pictures), Tick",GPC
18/01/19 to 18/02/19,C&YPS-Non Delegated,Kcjonesconf,17/01/19,133.33,Training Expenses-General,"Theatrical Products (Except Motion Pictures), Tick",GPC
18/01/19 to 18/02/19,C&YPS-Non Delegated,Land Registry,14/02/19,3.00,Other Transfer Payments-Sector 17- Other,Government Services-Not Elsewhere Classified,GPC
18/01/19 to 18/02/19,C&YPS-Non Delegated,Lcc Online,07/02/19,11.00,Other Transfer Payments-Section 23 Grants,Government Services-Not Elsewhere Classified,GPC
18/01/19 to 18/02/19,C&YPS-Non Delegated,Leic City Council,13/02/19,24.00,Other Expenditure-General,Government Services-Not Elsewhere Classified,GPC
18/01/19 to 18/02/19,C&YPS-Non Delegated,Leic City Council,21/01/19,34.00,Other Transfer Payments-Section 23 Grants,Government Services-Not Elsewhere Classified,GPC
18/01/19 to 18/02/19,C&YPS-Non Delegated,Leic City Council,22/01/19,14.00,Other Transfer Payments-Section 23 Grants,Government Services-Not Elsewhere Classified,GPC
18/01/19 to 18/02/19,C&YPS-Non Delegated,Leic City Council,22/01/19,14.00,Other Transfer Payments-Section 23 Grants,Government Services-Not Elsewhere Classified,GPC
18/01/19 to 18/02/19,C&YPS-Non Delegated,Leic City Council,22/01/19,34.00,Other Transfer Payments-Section 23 Grants,Government Services-Not Elsewhere Classified,GPC
18/01/19 to 18/02/19,C&YPS-Non Delegated,Leic City Council,23/01/19,24.00,Other Transfer Payments-Section 23 Grants,Government Services-Not Elsewhere Classified,GPC
18/01/19 to 18/02/19,C&YPS-Non Delegated,Leic City Council,23/01/19,24.00,Other Transfer Payments-Section 23 Grants,Government Services-Not Elsewhere Classified,GPC
18/01/19 to 18/02/19,C&YPS-Non Delegated,Leic City Council,24/01/19,-10.00,Other Transfer Payments-Section 23 Grants,Government Services-Not Elsewhere Classified,GPC
18/01/19 to 18/02/19,C&YPS-Non Delegated,Leic City Council,24/01/19,14.00,Other Transfer Payments-Section 23 Grants,Government Services-Not Elsewhere Classified,GPC
18/01/19 to 18/02/19,C&YPS-Non Delegated,Leic City Council,25/01/19,14.00,Other Transfer Payments-Section 23 Grants,Government Services-Not Elsewhere Classified,GPC
18/01/19 to 18/02/19,C&YPS-Non Delegated,Leic City Council,25/01/19,14.00,Other Transfer Payments-Section 23 Grants,Government Services-Not Elsewhere Classified,GPC
18/01/19 to 18/02/19,C&YPS-Non Delegated,Leic City Council,01/02/19,-10.00,Other Transfer Payments-Section 23 Grants,Government Services-Not Elsewhere Classified,GPC
18/01/19 to 18/02/19,C&YPS-Non Delegated,Leic City Council,07/02/19,14.00,Other Transfer Payments-Section 23 Grants,Government Services-Not Elsewhere Classified,GPC
18/01/19 to 18/02/19,C&YPS-Non Delegated,Leic City Council,07/02/19,14.00,Other Transfer Payments-Section 23 Grants,Government Services-Not Elsewhere Classified,GPC
18/01/19 to 18/02/19,C&YPS-Non Delegated,Leic City Council,08/02/19,14.00,Other Transfer Payments-Section 23 Grants,Government Services-Not Elsewhere Classified,GPC
18/01/19 to 18/02/19,C&YPS-Non Delegated,Leic City Council,30/01/19,24.00,Other Transfer Payments-Sector 17- Other,Government Services-Not Elsewhere Classified,GPC
18/01/19 to 18/02/19,C&YPS-Non Delegated,Leic City Council,08/02/19,34.00,Other Transfer Payments-Sector 17- Other,Government Services-Not Elsewhere Classified,GPC
18/01/19 to 18/02/19,C&YPS-Non Delegated,Leic City Council,11/02/19,-30.00,Other Transfer Payments-Sector 17- Other,Government Services-Not Elsewhere Classified,GPC
18/01/19 to 18/02/19,C&YPS-Non Delegated,Leicester Theatre Trus,22/01/19,-201.50,Other Expenditure-Assist/Conts to Schemes,Charitable and Social Service Organizations,GPC
18/01/19 to 18/02/19,C&YPS-Non Delegated,Lidl UK Leicester,30/01/19,16.14,Other Transfer Payments-General,"Grocery Stores, Supermarkets",GPC
18/01/19 to 18/02/19,C&YPS-Non Delegated,Loughborough Sst,28/01/19,64.60,Client/Volunteers-General,Passenger Railways,GPC
18/01/19 to 18/02/19,C&YPS-Non Delegated,Loughborough Sst,29/01/19,6.20,Client/Volunteers-General,Passenger Railways,GPC
18/01/19 to 18/02/19,C&YPS-Non Delegated,Lul Ticket Machine,30/01/19,9.80,Client/Volunteers-General,Passenger Railways,GPC
18/01/19 to 18/02/19,C&YPS-Non Delegated,M6 Toll,21/01/19,5.33,Other Transfer Payments-General,"Bridge and Road Fees, Tolls",GPC
18/01/19 to 18/02/19,C&YPS-Non Delegated,M6 Toll,21/01/19,3.92,Other Transfer Payments-General,"Bridge and Road Fees, Tolls",GPC
18/01/19 to 18/02/19,C&YPS-Non Delegated,M6 Toll,13/02/19,5.33,Other Transfer Payments-General,"Bridge and Road Fees, Tolls",GPC
18/01/19 to 18/02/19,C&YPS-Non Delegated,McDonalds,05/02/19,17.01,Other Expenditure-General,Fast-Food Restaurants (Quick Payment Service Pilot,GPC
18/01/19 to 18/02/19,C&YPS-Non Delegated,McDonalds,06/02/19,7.60,Other Expenditure-General,"Eating Places, Restaurants",GPC
18/01/19 to 18/02/19,C&YPS-Non Delegated,McDonalds,06/02/19,6.48,Other Expenditure-General,Fast-Food Restaurants (Quick Payment Service Pilot,GPC
18/01/19 to 18/02/19,C&YPS-Non Delegated,McDonalds,07/02/19,10.89,Other Expenditure-General,Fast-Food Restaurants (Quick Payment Service Pilot,GPC
18/01/19 to 18/02/19,C&YPS-Non Delegated,McDonalds,04/02/19,3.38,Other Transfer Payments-General,Fast-Food Restaurants (Quick Payment Service Pilot,GPC
18/01/19 to 18/02/19,C&YPS-Non Delegated,McDonalds,05/02/19,6.09,Other Transfer Payments-General,Fast-Food Restaurants (Quick Payment Service Pilot,GPC
18/01/19 to 18/02/19,C&YPS-Non Delegated,McDonalds,22/01/19,6.57,Other Transfer Payments-Section 24,Fast-Food Restaurants (Quick Payment Service Pilot,GPC
18/01/19 to 18/02/19,C&YPS-Non Delegated,McDonalds,24/01/19,6.15,Other Transfer Payments-Section 24,Fast-Food Restaurants (Quick Payment Service Pilot,GPC
18/01/19 to 18/02/19,C&YPS-Non Delegated,McDonalds,09/02/19,7.40,Other Transfer Payments-Section 24,Fast-Food Restaurants (Quick Payment Service Pilot,GPC
18/01/19 to 18/02/19,C&YPS-Non Delegated,McDonalds,17/01/19,0.83,Subsistence-General,"Eating Places, Restaurants",GPC
18/01/19 to 18/02/19,C&YPS-Non Delegated,McDonalds,18/01/19,1.62,Subsistence-General,Fast-Food Restaurants (Quick Payment Service Pilot,GPC
18/01/19 to 18/02/19,C&YPS-Non Delegated,Milk&more,17/01/19,11.80,Provisions-General,Dairy Products Stores,GPC
18/01/19 to 18/02/19,C&YPS-Non Delegated,Milk&more,05/02/19,8.49,Provisions-General,Dairy Products Stores,GPC
18/01/19 to 18/02/19,C&YPS-Non Delegated,Muffin Break,23/01/19,3.90,Other Transfer Payments-General,"Drinking Places (Alcoholic Beverages)-Bars, Tavern",GPC
18/01/19 to 18/02/19,C&YPS-Non Delegated,Nandos Leicester,12/02/19,28.45,Other Expenditure-General,"Eating Places, Restaurants",GPC
18/01/19 to 18/02/19,C&YPS-Non Delegated,National Railcard,23/01/19,30.00,Other Transfer Payments-General,Passenger Railways,GPC
18/01/19 to 18/02/19,C&YPS-Non Delegated,Ncc Card Payment Inter,11/02/19,36.00,Other Transfer Payments-Sector 17- Other,Government Services-Not Elsewhere Classified,GPC
18/01/19 to 18/02/19,C&YPS-Non Delegated,Network Waste,08/02/19,215.00,Other Transfer Payments-Section 23 Grants,"Utilities-Electric, Gas, Sanitary, Water",GPC
18/01/19 to 18/02/19,C&YPS-Non Delegated,Nochex.*sensory Education,13/02/19,36.48,General Equipment-General,"Membership Clubs (Sports, Recreation, Athletic), C",GPC
18/01/19 to 18/02/19,C&YPS-Non Delegated,Optima Low Visions Servic,28/01/19,734.35,General Equipment-General,Laboratory/Medical/Dental/Ophthalmic Hospital Equi,GPC
18/01/19 to 18/02/19,C&YPS-Non Delegated,Optima Low Visions Servic,28/01/19,-51.60,General Equipment-General,Laboratory/Medical/Dental/Ophthalmic Hospital Equi,GPC
18/01/19 to 18/02/19,C&YPS-Non Delegated,Paypal *coop Elec,24/01/19,189.00,Other Transfer Payments-Leaving Care Grants,Camera and Photographic Supply Stores,GPC
18/01/19 to 18/02/19,C&YPS-Non Delegated,Paypal *faizandevil,07/02/19,22.99,Other Equipment & Materials-General,Miscellaneous and Specialty Retail Stores,GPC
18/01/19 to 18/02/19,C&YPS-Non Delegated,Paypal *galaxe Ltd,16/01/19,13.49,Other Transfer Payments-General,Chemicals and Allied Products Not Elsewhere Classi,GPC
18/01/19 to 18/02/19,C&YPS-Non Delegated,Paypal *glitterchic,12/02/19,9.78,Other Expenditure-General,Cosmetic Stores,GPC
18/01/19 to 18/02/19,C&YPS-Non Delegated,Paypal *info,30/01/19,98.50,Other Equipment & Materials-General,Elementary and Secondary Schools,GPC
18/01/19 to 18/02/19,C&YPS-Non Delegated,Paypal *info,30/01/19,-80.00,Other Equipment & Materials-General,Elementary and Secondary Schools,GPC
18/01/19 to 18/02/19,C&YPS-Non Delegated,Paypal *k Beeley,14/02/19,275.33,Training Expenses-General,Business and Secretarial Schools,GPC
18/01/19 to 18/02/19,C&YPS-Non Delegated,Paypal *minglang,12/02/19,3.25,Other Expenditure-General,Variety Stores,GPC
18/01/19 to 18/02/19,C&YPS-Non Delegated,Paypal *nas Uk,28/01/19,1029.60,Materials-General,Charitable and Social Service Organizations,GPC
18/01/19 to 18/02/19,C&YPS-Non Delegated,Paypal *nas Uk,28/01/19,686.40,Materials-General,Charitable and Social Service Organizations,GPC
18/01/19 to 18/02/19,C&YPS-Non Delegated,Paypal *thebeautybo,12/02/19,9.94,Other Expenditure-General,"Artist Supply Stores, Craft Shops",GPC
18/01/19 to 18/02/19,C&YPS-Non Delegated,Post Office Counter,14/02/19,60.00,Other Equipment & Materials-General,Postage Stamps,GPC
18/01/19 to 18/02/19,C&YPS-Non Delegated,Post Office Counter,31/01/19,99.75,Other Transfer Payments-General,Postage Stamps,GPC
18/01/19 to 18/02/19,C&YPS-Non Delegated,Post Office Counter,12/02/19,6.50,Other Transfer Payments-General,Postage Stamps,GPC
18/01/19 to 18/02/19,C&YPS-Non Delegated,Post Office Counter,15/02/19,8.27,Other Transfer Payments-General,Postage Stamps,GPC
18/01/19 to 18/02/19,C&YPS-Non Delegated,Post Office Counter,23/01/19,136.50,Other Transfer Payments-Section 23 Grants,Postage Stamps,GPC
18/01/19 to 18/02/19,C&YPS-Non Delegated,Post Office Counter,25/01/19,219.75,Other Transfer Payments-Section 23 Grants,Postage Stamps,GPC
18/01/19 to 18/02/19,C&YPS-Non Delegated,Post Office Counter,29/01/19,3.54,Other Transfer Payments-Section 23 Grants,Postage Stamps,GPC
18/01/19 to 18/02/19,C&YPS-Non Delegated,Post Office Counter,04/02/19,174.00,Postal Services-General,Postage Stamps,GPC
18/01/19 to 18/02/19,C&YPS-Non Delegated,Post Office Counter,05/02/19,20.88,Postal Services-General,Postage Stamps,GPC
18/01/19 to 18/02/19,C&YPS-Non Delegated,Poundland Ltd,05/02/19,10.00,Other Equipment & Materials-General,Discount Stores,GPC
18/01/19 to 18/02/19,C&YPS-Non Delegated,Poundstretcher 092,24/01/19,8.00,Provisions-General,"Drapery, Window Coverings, and Upholstery Stores",GPC
18/01/19 to 18/02/19,C&YPS-Non Delegated,Premier Inn44024405,13/02/19,86.50,Other Transfer Payments-Section 23 Grants,PREMIER TRAVEL,GPC
18/01/19 to 18/02/19,C&YPS-Non Delegated,Primark,28/01/19,20.00,Other Transfer Payments-Birthday & Christmas Presents,Family Clothing Stores,GPC
18/01/19 to 18/02/19,C&YPS-Non Delegated,Product Support Ag,20/01/19,-2.49,Other Transfer Payments-Leaving Care Grants,Continuity/Subscription Merchants,GPC
18/01/19 to 18/02/19,C&YPS-Non Delegated,Queensway Coffee,17/01/19,6.70,Other Expenditure-General,"Eating Places, Restaurants",GPC
18/01/19 to 18/02/19,C&YPS-Non Delegated,Rnib Charity,11/02/19,30.00,General Equipment-General,Laboratory/Medical/Dental/Ophthalmic Hospital Equi,GPC
18/01/19 to 18/02/19,C&YPS-Non Delegated,Sainsburys S/mkt,29/01/19,0.50,Subsistence-General,"Grocery Stores, Supermarkets",GPC
18/01/19 to 18/02/19,C&YPS-Non Delegated,Sainsburys S/mkts,28/01/19,15.45,General Equipment-General,"Grocery Stores, Supermarkets",GPC
18/01/19 to 18/02/19,C&YPS-Non Delegated,Sainsburys S/mkts,01/02/19,67.08,Provisions-General,"Grocery Stores, Supermarkets",GPC
18/01/19 to 18/02/19,C&YPS-Non Delegated,Sainsburys S/mkts,07/02/19,8.79,Provisions-General,"Grocery Stores, Supermarkets",GPC
18/01/19 to 18/02/19,C&YPS-Non Delegated,Sp * Good Life Innovat,15/02/19,441.25,Other Equipment & Materials-General,Industrial Supplies Not Elsewhere Classified,GPC
18/01/19 to 18/02/19,C&YPS-Non Delegated,Sportsdirect 125,06/02/19,41.00,Other Transfer Payments-Education Costs,Sporting Goods Stores,GPC
18/01/19 to 18/02/19,C&YPS-Non Delegated,Sportsdirect 371,07/02/19,16.04,Other Transfer Payments-Education Costs,Sporting Goods Stores,GPC
18/01/19 to 18/02/19,C&YPS-Non Delegated,St Johns Self Storage,24/01/19,83.33,Other Transfer Payments-General,"Motor Freight Carriers, and Trucking",GPC
18/01/19 to 18/02/19,C&YPS-Non Delegated,Staffordshire County C,14/02/19,12.00,Other Transfer Payments-Section 23 Grants,Government Services-Not Elsewhere Classified,GPC
18/01/19 to 18/02/19,C&YPS-Non Delegated,Subway,24/01/19,3.83,Subsistence-General,"Eating Places, Restaurants",GPC
18/01/19 to 18/02/19,C&YPS-Non Delegated,Subway Allendale,14/02/19,4.41,Subsistence-General,"Eating Places, Restaurants",GPC
18/01/19 to 18/02/19,C&YPS-Non Delegated,Sunderland Cc,17/01/19,44.00,Other Transfer Payments-Section 23 Grants,Government Services-Not Elsewhere Classified,GPC
18/01/19 to 18/02/19,C&YPS-Non Delegated,Teacherspayteachers.Com,25/01/19,3.06,Provisions-General,Schools and Educational Services-Not Elsewhere Cla,GPC
18/01/19 to 18/02/19,C&YPS-Non Delegated,Tesco Pfs 5246,30/01/19,3.25,General Equipment-General,Service Stations (with or without Ancillary Servic,GPC
18/01/19 to 18/02/19,C&YPS-Non Delegated,Tesco Store 2819,24/01/19,68.16,Materials-General,"Grocery Stores, Supermarkets",GPC
18/01/19 to 18/02/19,C&YPS-Non Delegated,Tesco Store 2819,11/02/19,51.25,Materials-General,"Grocery Stores, Supermarkets",GPC
18/01/19 to 18/02/19,C&YPS-Non Delegated,Tesco Store 2819,12/02/19,50.62,Materials-General,"Grocery Stores, Supermarkets",GPC
18/01/19 to 18/02/19,C&YPS-Non Delegated,Tesco Store 2846,25/01/19,90.02,Materials-General,"Grocery Stores, Supermarkets",GPC
18/01/19 to 18/02/19,C&YPS-Non Delegated,Tesco Store 2846,26/01/19,91.28,Materials-General,"Grocery Stores, Supermarkets",GPC
18/01/19 to 18/02/19,C&YPS-Non Delegated,Tesco Store 2846,23/01/19,50.55,Other Transfer Payments-Section 24,"Grocery Stores, Supermarkets",GPC
18/01/19 to 18/02/19,C&YPS-Non Delegated,Tesco Stores 2044,15/02/19,3.63,Subsistence-General,"Grocery Stores, Supermarkets",GPC
18/01/19 to 18/02/19,C&YPS-Non Delegated,Tesco Stores 2849,21/01/19,12.52,Other Equipment & Materials-General,"Grocery Stores, Supermarkets",GPC
18/01/19 to 18/02/19,C&YPS-Non Delegated,Tesco Stores 2849,24/01/19,13.33,Other Equipment & Materials-General,"Grocery Stores, Supermarkets",GPC
18/01/19 to 18/02/19,C&YPS-Non Delegated,Tesco Stores 5182,14/02/19,11.43,General Equipment-General,"Grocery Stores, Supermarkets",GPC
18/01/19 to 18/02/19,C&YPS-Non Delegated,Tesco Stores 5182,22/01/19,3.39,Other Equipment & Materials-General,"Grocery Stores, Supermarkets",GPC
18/01/19 to 18/02/19,C&YPS-Non Delegated,Tesco Stores 5182,21/01/19,3.80,Other Expenditure-General,"Grocery Stores, Supermarkets",GPC
18/01/19 to 18/02/19,C&YPS-Non Delegated,Tesco Stores 5182,30/01/19,11.71,Other Expenditure-General,"Grocery Stores, Supermarkets",GPC
18/01/19 to 18/02/19,C&YPS-Non Delegated,Tesco Stores 5182,22/01/19,10.13,Provisions-General,"Grocery Stores, Supermarkets",GPC
18/01/19 to 18/02/19,C&YPS-Non Delegated,Tesco Stores 5182,29/01/19,16.81,Provisions-General,"Grocery Stores, Supermarkets",GPC
18/01/19 to 18/02/19,C&YPS-Non Delegated,Tesco Stores 5182,05/02/19,17.55,Provisions-General,"Grocery Stores, Supermarkets",GPC
18/01/19 to 18/02/19,C&YPS-Non Delegated,Tesco Stores 5182,12/02/19,21.78,Provisions-General,"Grocery Stores, Supermarkets",GPC
18/01/19 to 18/02/19,C&YPS-Non Delegated,Tesco Stores 6135,11/02/19,6.75,Other Equipment & Materials-General,"Grocery Stores, Supermarkets",GPC
18/01/19 to 18/02/19,C&YPS-Non Delegated,Tesco Stores 6678,23/01/19,1.25,Subsistence-General,"Grocery Stores, Supermarkets",GPC
18/01/19 to 18/02/19,C&YPS-Non Delegated,Tesco Stores 6857,07/02/19,4.05,General Equipment-General,"Grocery Stores, Supermarkets",GPC
18/01/19 to 18/02/19,C&YPS-Non Delegated,Tesco-Stores 2846,06/02/19,19.60,Other Transfer Payments-General,"Grocery Stores, Supermarkets",GPC
18/01/19 to 18/02/19,C&YPS-Non Delegated,The Book People,28/01/19,14.94,General Equipment-General,Book Stores,GPC
18/01/19 to 18/02/19,C&YPS-Non Delegated,The Makaton Charit,14/02/19,120.00,Other Services-General,Schools and Educational Services-Not Elsewhere Cla,GPC
18/01/19 to 18/02/19,C&YPS-Non Delegated,The Post Office,05/02/19,94.75,Other Transfer Payments-Section 24,Postage Stamps,GPC
18/01/19 to 18/02/19,C&YPS-Non Delegated,The Post Office,04/02/19,8.08,Postal Services-General,Postage Stamps,GPC
18/01/19 to 18/02/19,C&YPS-Non Delegated,The Post Office,13/02/19,2.11,Postal Services-General,Postage Stamps,GPC
18/01/19 to 18/02/19,C&YPS-Non Delegated,The Store Room,08/02/19,116.00,Other Transfer Payments-General,"Motor Freight Carriers, and Trucking",GPC
18/01/19 to 18/02/19,C&YPS-Non Delegated,The Store Room,08/02/19,122.68,Other Transfer Payments-General,"Motor Freight Carriers, and Trucking",GPC
18/01/19 to 18/02/19,C&YPS-Non Delegated,Trainline,17/01/19,95.09,Other Transfer Payments-General,Passenger Railways,GPC
18/01/19 to 18/02/19,C&YPS-Non Delegated,Trainline,29/01/19,41.49,Public Transport -  Staff-General,Passenger Railways,GPC
18/01/19 to 18/02/19,C&YPS-Non Delegated,Trainline,22/01/19,264.01,Training Expenses-General,Passenger Railways,GPC
18/01/19 to 18/02/19,C&YPS-Non Delegated,Tramlink Nottingham Limit,30/01/19,50.00,Other Transfer Payments-General,Local and Suburban Commuter Pass Trans,GPC
18/01/19 to 18/02/19,C&YPS-Non Delegated,Travelodge Gb0000,12/02/19,49.00,Other Transfer Payments-Sector 17- Other,Travelodge,GPC
18/01/19 to 18/02/19,C&YPS-Non Delegated,Tvlicensing.Co.Uk,18/01/19,150.50,Other Expenditure-General,"Management, Consulting and Public Relations Servic",GPC
18/01/19 to 18/02/19,C&YPS-Non Delegated,Tvlicensing.Co.Uk,28/01/19,150.50,Other Transfer Payments-Leaving Care Grants,"Management, Consulting and Public Relations Servic",GPC
18/01/19 to 18/02/19,C&YPS-Non Delegated,Uk Open College,07/02/19,82.50,Training Expenses-General,Miscellaneous and Specialty Retail Stores,GPC
18/01/19 to 18/02/19,C&YPS-Non Delegated,Welcome Break,18/01/19,184.00,Other Transfer Payments-Sector 17- Other,"Lodging-Hotels, Motels, Resorts",GPC
18/01/19 to 18/02/19,C&YPS-Non Delegated,Welcome Break,22/01/19,92.00,Other Transfer Payments-Sector 17- Other,"Lodging-Hotels, Motels, Resorts",GPC
18/01/19 to 18/02/19,C&YPS-Non Delegated,West Coast Trains,21/01/19,9.00,Public Transport -  Staff-General,Automobile Parking Lots and Garages,GPC
18/01/19 to 18/02/19,C&YPS-Non Delegated,West Coast Trains,07/02/19,9.00,Public Transport -  Staff-General,Automobile Parking Lots and Garages,GPC
18/01/19 to 18/02/19,C&YPS-Non Delegated,Wh Smith,31/01/19,26.99,General Equipment-General,News Dealers and Newsstands,GPC
18/01/19 to 18/02/19,C&YPS-Non Delegated,Wilko Retail Limit,05/02/19,24.00,Other Equipment & Materials-General,Household Appliance Stores,GPC
18/01/19 to 18/02/19,C&YPS-Non Delegated,Wilko Retail Limit,13/02/19,12.00,Other Equipment & Materials-General,Household Appliance Stores,GPC
18/01/19 to 18/02/19,C&YPS-Non Delegated,Wilko Retail Limit,24/01/19,35.08,Other Expenditure-General,Household Appliance Stores,GPC
18/01/19 to 18/02/19,C&YPS-Non Delegated,Wilko Retail Limit,29/01/19,2.40,Other Expenditure-General,Household Appliance Stores,GPC
18/01/19 to 18/02/19,C&YPS-Non Delegated,Wilko Retail Limit,22/01/19,25.10,Other Transfer Payments-Leaving Care Grants,Household Appliance Stores,GPC
18/01/19 to 18/02/19,C&YPS-Non Delegated,Wilko Retail Limit,13/02/19,29.60,Other Transfer Payments-Leaving Care Grants,Household Appliance Stores,GPC
18/01/19 to 18/02/19,C&YPS-Non Delegated,Wm Morrisons Store,25/01/19,3.08,Subsistence-General,"Grocery Stores, Supermarkets",GPC
18/01/19 to 18/02/19,C&YPS-Non Delegated,Wm Morrisons Store,14/02/19,3.08,Subsistence-General,"Grocery Stores, Supermarkets",GPC
18/01/19 to 18/02/19,C&YPS-Non Delegated,Wordery,08/02/19,8.42,Provisions-General,Book Stores,GPC
18/01/19 to 18/02/19,C&YPS-Non Delegated,Wp-Warwickshire Co,30/01/19,10.67,Other Transfer Payments-Section 23 Grants,Government Services-Not Elsewhere Classified,GPC
18/01/19 to 18/02/19,C&YPS-Non Delegated,Www.Argos.Co.Uk,07/02/19,33.33,Other Transfer Payments-Sector 17- Other,Discount Stores,GPC
18/01/19 to 18/02/19,C&YPS-Non Delegated,Www.Argos.Co.Uk,06/02/19,136.94,Provisions-General,Discount Stores,GPC
18/01/19 to 18/02/19,C&YPS-Non Delegated,Www.Beds.Co.Uk,14/02/19,149.00,Other Transfer Payments-Leaving Care Grants,"Furniture, Home Furnishings and Equipment Stores,",GPC
18/01/19 to 18/02/19,C&YPS-Non Delegated,Www.C2uoffice.Co.U,25/01/19,133.50,Stationery-General,"Stationery, Office, and School Supply Stores",GPC
18/01/19 to 18/02/19,C&YPS-Non Delegated,Www.Citizencard.Com,29/01/19,15.00,Educational Visits-General,Government Services-Not Elsewhere Classified,GPC
18/01/19 to 18/02/19,C&YPS-Non Delegated,Www.Coram.Org.Uk,12/02/19,18.95,Other Services-General,Charitable and Social Service Organizations,GPC
18/01/19 to 18/02/19,C&YPS-Non Delegated,Www.Officefurnitureonl,29/01/19,65.00,Other Equipment & Materials-General,"Furniture, Home Furnishings and Equipment Stores,",GPC
18/01/19 to 18/02/19,C&YPS-Non Delegated,Www.Presco-Uk.Com,15/02/19,48.05,General Equipment-General,"Stationery, Office, and School Supply Stores",GPC
18/01/19 to 18/02/19,C&YPS-Non Delegated,Www.Primaryteaching.Co,13/02/19,15.60,General Equipment-General,"Stationery, Office, and School Supply Stores",GPC
18/01/19 to 18/02/19,C&YPS-Non Delegated,Www.Theworks.Co.Uk,15/02/19,264.00,Other Expenditure-General,Discount Stores,GPC
18/01/19 to 18/02/19,C&YPS-Non Delegated,Wwwsightandsound.Co.Uk,11/02/19,50.00,General Equipment-General,"Computers, Computer Peripheral Equipment, Software",GPC
18/01/19 to 18/02/19,C&YPS-Non Delegated,Yappee Limited,21/01/19,170.00,Other Transfer Payments-Leaving Care Grants,Discount Stores,GPC
18/01/19 to 18/02/19,C&YPS-Non Delegated,Information not known ,01/01/19,-4.99,Other Transfer Payments-General,Misc-Unknown,GPC
18/01/19 to 18/02/19,C&YPS-Non Delegated,Information not known ,28/01/19,0.08,Provisions-General,Misc-Unknown,GPC
18/01/19 to 18/02/19,C&YPS-Schools,Aldi 16 772,22/01/19,18.21,Materials-General,"Grocery Stores, Supermarkets",GPC
18/01/19 to 18/02/19,C&YPS-Schools,Aldi 16 772,22/01/19,28.22,Materials-General,"Grocery Stores, Supermarkets",GPC
18/01/19 to 18/02/19,C&YPS-Schools,Aldi 16 772,28/01/19,5.36,Materials-General,"Grocery Stores, Supermarkets",GPC
18/01/19 to 18/02/19,C&YPS-Schools,Aldi 16 772,30/01/19,5.58,Materials-General,"Grocery Stores, Supermarkets",GPC
18/01/19 to 18/02/19,C&YPS-Schools,Aldi 16 772,04/02/19,24.20,Materials-General,"Grocery Stores, Supermarkets",GPC
18/01/19 to 18/02/19,C&YPS-Schools,Aldi 16 772,05/02/19,2.49,Materials-General,"Grocery Stores, Supermarkets",GPC
18/01/19 to 18/02/19,C&YPS-Schools,Aldi 16 772,07/02/19,20.59,Materials-General,"Grocery Stores, Supermarkets",GPC
18/01/19 to 18/02/19,C&YPS-Schools,Amzn Mktp Uk*mb68p4ug4 Am,25/01/19,13.47,Books-General,Book Stores,GPC
18/01/19 to 18/02/19,C&YPS-Schools,Cherry Lane - Glebe,14/02/19,30.91,Materials-General,Discount Stores,GPC
18/01/19 to 18/02/19,C&YPS-Schools,Cherry Lane - Glebe,14/02/19,5.70,Materials-General,Discount Stores,GPC
18/01/19 to 18/02/19,C&YPS-Schools,Coffee Cosmo,01/02/19,10.25,Subsistence-General,"Eating Places, Restaurants",GPC
18/01/19 to 18/02/19,C&YPS-Schools,Espo,17/01/19,37.18,Other Expenditure-General,Government Services-Not Elsewhere Classified,GPC
18/01/19 to 18/02/19,C&YPS-Schools,Espo,23/01/19,18.08,Other Expenditure-General,Government Services-Not Elsewhere Classified,GPC
18/01/19 to 18/02/19,C&YPS-Schools,Espo,28/01/19,16.68,Other Expenditure-General,Government Services-Not Elsewhere Classified,GPC
18/01/19 to 18/02/19,C&YPS-Schools,Espo,31/01/19,27.48,Other Expenditure-General,Government Services-Not Elsewhere Classified,GPC
18/01/19 to 18/02/19,C&YPS-Schools,Espo,06/02/19,37.88,Other Expenditure-General,Government Services-Not Elsewhere Classified,GPC
18/01/19 to 18/02/19,C&YPS-Schools,Halfords 0813,28/01/19,8.49,Materials-General,Bicycle Shops-Sales and Service,GPC
18/01/19 to 18/02/19,C&YPS-Schools,Highspeedtraining.Co.U,22/01/19,36.00,Training Expenses-General,Business and Secretarial Schools,GPC
18/01/19 to 18/02/19,C&YPS-Schools,Lidl UK South Wigston,12/02/19,37.29,Materials-General,"Grocery Stores, Supermarkets",GPC
18/01/19 to 18/02/19,C&YPS-Schools,Lidl UK South Wigston,12/02/19,3.29,Materials-General,"Grocery Stores, Supermarkets",GPC
18/01/19 to 18/02/19,C&YPS-Schools,The Post Office,13/02/19,3.42,Postal Services-General,Postage Stamps,GPC
18/01/19 to 18/02/19,C&YPS-Schools,Tvlicensing.Co.Uk,14/02/19,150.50,Other Expenditure-General,"Management, Consulting and Public Relations Servic",GPC
18/01/19 to 18/02/19,C&YPS-Schools,Waitrose 141,07/02/19,7.38,Materials-General,"Grocery Stores, Supermarkets",GPC
18/01/19 to 18/02/19,C&YPS-Schools,Wilko Retail Limit,28/01/19,56.17,Materials-General,Household Appliance Stores,GPC
18/01/19 to 18/02/19,C&YPS-Schools,Wm Morrisons Store,17/01/19,4.00,Materials-General,"Grocery Stores, Supermarkets",GPC
18/01/19 to 18/02/19,C&YPS-Schools,Www.Schoolstickers.Co.,17/01/19,41.88,Printing-General,Miscellaneous Publishing and  Printing,GPC
18/01/19 to 18/02/19,Capital,Nwldc Card Payment,29/01/19,620.10,Buildings - Operational-Expenditure,Government Services-Not Elsewhere Classified,GPC
18/01/19 to 18/02/19,Central Items,Amazon.Co.Uk*mb32b1b24,17/01/19,357.32,Administration Expenses-General,Direct Marketers - Other,GPC
18/01/19 to 18/02/19,Chief Executive,Amazon.Co.Uk*mb5k93r94,27/01/19,29.61,Other Expenditure-General,Direct Marketers - Other,GPC
18/01/19 to 18/02/19,Chief Executive,Amazon.Co.Uk*mi0o54fj4,30/01/19,43.20,Other Expenditure-General,Direct Marketers - Other,GPC
18/01/19 to 18/02/19,Chief Executive,Amazon.Co.Uk*mi5ky0xh4,10/02/19,30.62,Other Expenditure-General,Direct Marketers - Other,GPC
18/01/19 to 18/02/19,Chief Executive,Amazon.Co.Uk*mi8da7gh4,10/02/19,9.98,Other Expenditure-General,Direct Marketers - Other,GPC
18/01/19 to 18/02/19,Chief Executive,Amazon.Co.Uk*mi8pz9zt4 Am,02/02/19,24.95,Materials-General,Miscellaneous and Specialty Retail Stores,GPC
18/01/19 to 18/02/19,Chief Executive,Amazon.Co.Uk*mi9iq7es4,06/02/19,73.16,Other Expenditure-General,Direct Marketers - Other,GPC
18/01/19 to 18/02/19,Chief Executive,Amzn Mktp Uk*mi1ea4gi4,10/02/19,170.98,Other Expenditure-General,Book Stores,GPC
18/01/19 to 18/02/19,Chief Executive,Amzn Mktp Uk*mi54v7l24 Am,01/02/19,48.64,Books-General,Book Stores,GPC
18/01/19 to 18/02/19,Chief Executive,Amzn Mktp Uk*mi9lk81d4,07/02/19,18.16,Books-General,Book Stores,GPC
18/01/19 to 18/02/19,Chief Executive,Charnwood Borough Council,31/01/19,2.67,Casual/Essential-General,Automobile Parking Lots and Garages,GPC
18/01/19 to 18/02/19,Chief Executive,Charnwood Borough Council,14/02/19,2.67,Casual/Essential-General,Automobile Parking Lots and Garages,GPC
18/01/19 to 18/02/19,Chief Executive,Currys Online,22/01/19,17.50,Materials-General,"RADIO, TELEVISION, AND STEREO STORES (ELECTRONIC STORES)",GPC
18/01/19 to 18/02/19,Chief Executive,East Midlands Trains,05/02/19,114.60,Public Transport -  Staff-General,Passenger Railways,GPC
18/01/19 to 18/02/19,Chief Executive,Fsprg.Uk,21/01/19,-826.81,Other Expenditure-General,Misc-Unknown,GPC
18/01/19 to 18/02/19,Chief Executive,Fsprg.Uk,21/01/19,1042.44,Other Expenditure-General,Misc-Unknown,GPC
18/01/19 to 18/02/19,Chief Executive,Haymarket Media Group,24/01/19,245.00,Other Expenditure-General,"Management, Consulting and Public Relations Servic",GPC
18/01/19 to 18/02/19,Chief Executive,Jessops,17/01/19,14.15,Materials-General,Camera and Photographic Supply Stores,GPC
18/01/19 to 18/02/19,Chief Executive,Jessops,06/02/19,35.80,Materials-General,Camera and Photographic Supply Stores,GPC
18/01/19 to 18/02/19,Chief Executive,Ladders UK Direct,17/01/19,99.17,Materials-General,Hardware Equipment and Supplies,GPC
18/01/19 to 18/02/19,Chief Executive,Lcc Npu 1,04/02/19,25.00,Operational Equipment-General,Government Services-Not Elsewhere Classified,GPC
18/01/19 to 18/02/19,Chief Executive,Makro Self Service Leices,06/02/19,21.23,Materials-General,Wholesale Clubs,GPC
18/01/19 to 18/02/19,Chief Executive,Ncp Limited,15/02/19,10.83,Casual/Essential-General,Automobile Parking Lots and Garages,GPC
18/01/19 to 18/02/19,Chief Executive,No 5 Chambers Ltd,06/02/19,185.00,Training Expenses-General,"Legal Services, Attorneys",GPC
18/01/19 to 18/02/19,Chief Executive,Parking Leic Cc,17/01/19,3.33,Other Expenditure-General,Government Services-Not Elsewhere Classified,GPC
18/01/19 to 18/02/19,Chief Executive,Post Office Counter,07/02/19,4.45,Postal Services-General,Postage Stamps,GPC
18/01/19 to 18/02/19,Chief Executive,Premier Inn44521435,04/02/19,71.50,Training Expenses-General,PREMIER TRAVEL,GPC
18/01/19 to 18/02/19,Chief Executive,Royal Mail,24/01/19,58.00,Postal Services-General,Postage Stamps,GPC
18/01/19 to 18/02/19,Chief Executive,Royal Mail,31/01/19,67.00,Postal Services-General,Postage Stamps,GPC
18/01/19 to 18/02/19,Chief Executive,Royal Mail Online Shop,04/02/19,58.00,Postal Services-General,Postage Stamps,GPC
18/01/19 to 18/02/19,Chief Executive,Smartvision Europe,05/02/19,375.00,Other Expenditure-General,Computer Software Stores,GPC
18/01/19 to 18/02/19,Chief Executive,Travelodge Gb0000,28/01/19,60.00,Subsistence-General,Travelodge,GPC
18/01/19 to 18/02/19,Chief Executive,Vodafone Ps,12/02/19,34.85,Telephones-General,Telecommunication Service Including Local and Long,GPC
18/01/19 to 18/02/19,Chief Executive,Watershed Packaging Lt,23/01/19,160.80,Materials-General,Business Services-Not Elsewhere Classified,GPC
18/01/19 to 18/02/19,Chief Executive,Westminster Forum,21/01/19,114.00,Other Expenditure-General,"Management, Consulting and Public Relations Servic",GPC
18/01/19 to 18/02/19,Chief Executive,Wilko.Com,07/02/19,56.00,Personal Accounts - Other-General,Miscellaneous General Merchandise Stores,GPC
18/01/19 to 18/02/19,Chief Executive,Www.Neopost.Co.Uk,12/02/19,500.00,Stationery-General,"Stationary, Office Supplies, Printing and Writing",GPC
18/01/19 to 18/02/19,Corporate Resources,Abrsm,04/02/19,66.50,Materials-General,Miscellaneous and Specialty Retail Stores,GPC
18/01/19 to 18/02/19,Corporate Resources,Abrsm,08/02/19,41.50,Materials-General,Miscellaneous and Specialty Retail Stores,GPC
18/01/19 to 18/02/19,Corporate Resources,Abrsm,08/02/19,79.00,Materials-General,Miscellaneous and Specialty Retail Stores,GPC
18/01/19 to 18/02/19,Corporate Resources,Abrsm,15/02/19,62.50,Materials-General,Miscellaneous and Specialty Retail Stores,GPC
18/01/19 to 18/02/19,Corporate Resources,Amazon Prime,04/02/19,-6.66,Training Expenses-General,Continuity/Subscription Merchants,GPC
18/01/19 to 18/02/19,Corporate Resources,Amazon Prime Amzn.Co.Uk/P,04/02/19,-6.66,Training Expenses-General,Continuity/Subscription Merchants,GPC
18/01/19 to 18/02/19,Corporate Resources,Amazon Prime*mb9yc96j4,19/01/19,6.66,Other Expenditure-General,Continuity/Subscription Merchants,GPC
18/01/19 to 18/02/19,Corporate Resources,Amazon Prime*mi4094ot4 Am,30/01/19,6.66,Training Expenses-General,Continuity/Subscription Merchants,GPC
18/01/19 to 18/02/19,Corporate Resources,Amazon.Co.Uk*mb3ht4b64 Am,17/01/19,15.00,Materials-General,Miscellaneous and Specialty Retail Stores,GPC
18/01/19 to 18/02/19,Corporate Resources,Amazon.Co.Uk*mi0kv7qc4 Am,15/02/19,16.13,IT Equipment-Purchase - Hardware,Miscellaneous and Specialty Retail Stores,GPC
18/01/19 to 18/02/19,Corporate Resources,Amazon.Co.Uk*mi19w1zo4,01/02/19,71.90,Hospitality-General,Direct Marketers - Other,GPC
18/01/19 to 18/02/19,Corporate Resources,Amazon.Co.Uk*mi1cb5zp4 Am,01/02/19,8.32,Other Expenditure-General,Miscellaneous and Specialty Retail Stores,GPC
18/01/19 to 18/02/19,Corporate Resources,Amazon.Co.Uk*mi1vt8ei4 Am,06/02/19,10.67,Materials-General,Miscellaneous and Specialty Retail Stores,GPC
18/01/19 to 18/02/19,Corporate Resources,Amazon.Co.Uk*mi27t3j94,04/02/19,155.98,Other Expenditure-General,Direct Marketers - Other,GPC
18/01/19 to 18/02/19,Corporate Resources,Amazon.Co.Uk*mi3e57v64,11/02/19,13.19,Other Expenditure-General,Direct Marketers - Other,GPC
18/01/19 to 18/02/19,Corporate Resources,Amazon.Co.Uk*mi42f4084 Am,08/02/19,49.99,Operational Equipment-General,Miscellaneous and Specialty Retail Stores,GPC
18/01/19 to 18/02/19,Corporate Resources,Amazon.Co.Uk*mi6cm4ms4,12/02/19,4.49,Other Expenditure-General,Direct Marketers - Other,GPC
18/01/19 to 18/02/19,Corporate Resources,Amazon.Co.Uk*mi6lb9e44,06/02/19,8.73,Other Equipment & Materials-General,Direct Marketers - Other,GPC
18/01/19 to 18/02/19,Corporate Resources,Amazon.Co.Uk*mi8nv9fm4 Am,30/01/19,11.65,Other Expenditure-General,Miscellaneous and Specialty Retail Stores,GPC
18/01/19 to 18/02/19,Corporate Resources,Amazon.Co.Uk*mi9dz5fw4,30/01/19,19.80,Other Equipment & Materials-General,Direct Marketers - Other,GPC
18/01/19 to 18/02/19,Corporate Resources,Amazon.Co.Uk*mi9i91oq4 Am,30/01/19,58.94,Other Expenditure-General,Miscellaneous and Specialty Retail Stores,GPC
18/01/19 to 18/02/19,Corporate Resources,Amz*bargains Wholesale,11/02/19,-3.95,Materials-General,Miscellaneous and Specialty Retail Stores,GPC
18/01/19 to 18/02/19,Corporate Resources,Amzn Mktp Uk*mb0fp6bo4 Am,16/01/19,9.98,Books-General,Book Stores,GPC
18/01/19 to 18/02/19,Corporate Resources,Amzn Mktp Uk*mb0xr2244,22/01/19,6.66,Books-General,Book Stores,GPC
18/01/19 to 18/02/19,Corporate Resources,Amzn Mktp Uk*mb19c2224,21/01/19,4.92,Cleaning Materials-General,Book Stores,GPC
18/01/19 to 18/02/19,Corporate Resources,Amzn Mktp Uk*mb3jb02e4,22/01/19,11.22,Cleaning Materials-General,Book Stores,GPC
18/01/19 to 18/02/19,Corporate Resources,Amzn Mktp Uk*mb3rt07g4 Am,23/01/19,6.29,Other Equipment & Materials-General,Book Stores,GPC
18/01/19 to 18/02/19,Corporate Resources,Amzn Mktp Uk*mb48k22f4 Am,22/01/19,4.71,Other Equipment & Materials-General,Book Stores,GPC
18/01/19 to 18/02/19,Corporate Resources,Amzn Mktp Uk*mb4n039z4,24/01/19,4.98,Stationery-General,Book Stores,GPC
18/01/19 to 18/02/19,Corporate Resources,Amzn Mktp Uk*mb5fb3744,23/01/19,9.97,Training Expenses-General,Book Stores,GPC
18/01/19 to 18/02/19,Corporate Resources,Amzn Mktp Uk*mb5hp2s54,21/01/19,5.41,Books-General,Book Stores,GPC
18/01/19 to 18/02/19,Corporate Resources,Amzn Mktp Uk*mb6mn7kq4,22/01/19,7.99,Other Equipment & Materials-General,Book Stores,GPC
18/01/19 to 18/02/19,Corporate Resources,Amzn Mktp Uk*mb6y63694 Am,19/01/19,35.18,Books-General,Book Stores,GPC
18/01/19 to 18/02/19,Corporate Resources,Amzn Mktp Uk*mb7ky0y64 Am,28/01/19,10.78,Books-General,Book Stores,GPC
18/01/19 to 18/02/19,Corporate Resources,Amzn Mktp Uk*mb7ub0ku4 Am,22/01/19,3.32,Books-General,Book Stores,GPC
18/01/19 to 18/02/19,Corporate Resources,Amzn Mktp Uk*mb7z81kv4,22/01/19,3.83,Stationery-General,Book Stores,GPC
18/01/19 to 18/02/19,Corporate Resources,Amzn Mktp Uk*mb8617ks4,22/01/19,13.29,Stationery-General,Book Stores,GPC
18/01/19 to 18/02/19,Corporate Resources,Amzn Mktp Uk*mb8f16ko4,22/01/19,31.58,Training Expenses-General,Book Stores,GPC
18/01/19 to 18/02/19,Corporate Resources,Amzn Mktp Uk*mb8f35kc4,22/01/19,86.68,Publicity/Marketing-General,Book Stores,GPC
18/01/19 to 18/02/19,Corporate Resources,Amzn Mktp Uk*mb8yw4yr4,28/01/19,88.08,IT Equipment-Repairs,Book Stores,GPC
18/01/19 to 18/02/19,Corporate Resources,Amzn Mktp Uk*mb98172p4 Am,22/01/19,17.26,Other Equipment & Materials-General,Book Stores,GPC
18/01/19 to 18/02/19,Corporate Resources,Amzn Mktp Uk*mb9ms1kl4 Am,22/01/19,10.46,Other Equipment & Materials-General,Book Stores,GPC
18/01/19 to 18/02/19,Corporate Resources,Amzn Mktp Uk*mi04j4ps4,09/02/19,19.97,Site Licences-General,Book Stores,GPC
18/01/19 to 18/02/19,Corporate Resources,Amzn Mktp Uk*mi0y02to4,05/02/19,18.49,Books-General,Book Stores,GPC
18/01/19 to 18/02/19,Corporate Resources,Amzn Mktp Uk*mi0z954j4 Am,31/01/19,22.97,Other Equipment & Materials-General,Book Stores,GPC
18/01/19 to 18/02/19,Corporate Resources,Amzn Mktp Uk*mi10f50p4,07/02/19,54.92,Books-General,Book Stores,GPC
18/01/19 to 18/02/19,Corporate Resources,Amzn Mktp Uk*mi11y3ca4 Am,29/01/19,5.92,Books-General,Book Stores,GPC
18/01/19 to 18/02/19,Corporate Resources,Amzn Mktp Uk*mi15m4q64,15/02/19,1.81,General Equipment-General,Book Stores,GPC
18/01/19 to 18/02/19,Corporate Resources,Amzn Mktp Uk*mi1et9ow4,30/01/19,18.32,IT Equipment-Purchase - Hardware,Book Stores,GPC
18/01/19 to 18/02/19,Corporate Resources,Amzn Mktp Uk*mi1y22ta4,05/02/19,19.92,Books-General,Book Stores,GPC
18/01/19 to 18/02/19,Corporate Resources,Amzn Mktp Uk*mi2fi2m74 Am,11/02/19,21.98,Books-General,Book Stores,GPC
18/01/19 to 18/02/19,Corporate Resources,Amzn Mktp Uk*mi2nu46c4 Am,17/02/19,19.98,Books-General,Book Stores,GPC
18/01/19 to 18/02/19,Corporate Resources,Amzn Mktp Uk*mi2wi3pn4,08/02/19,15.78,Other Equipment & Materials-General,Book Stores,GPC
18/01/19 to 18/02/19,Corporate Resources,Amzn Mktp Uk*mi32y6qv4,15/02/19,71.43,Books-General,Book Stores,GPC
18/01/19 to 18/02/19,Corporate Resources,Amzn Mktp Uk*mi36d8654,16/02/19,10.48,General Equipment-General,Book Stores,GPC
18/01/19 to 18/02/19,Corporate Resources,Amzn Mktp Uk*mi3rs3394,04/02/19,3.32,Other Equipment & Materials-General,Book Stores,GPC
18/01/19 to 18/02/19,Corporate Resources,Amzn Mktp Uk*mi4498ae4,06/02/19,53.88,Books-General,Book Stores,GPC
18/01/19 to 18/02/19,Corporate Resources,Amzn Mktp Uk*mi4jb2tp4,05/02/19,23.59,Books-General,Book Stores,GPC
18/01/19 to 18/02/19,Corporate Resources,Amzn Mktp Uk*mi4kf0ei4,06/02/19,3.29,Books-General,Book Stores,GPC
18/01/19 to 18/02/19,Corporate Resources,Amzn Mktp Uk*mi4l77xz4 Am,11/02/19,20.94,Books-General,Book Stores,GPC
18/01/19 to 18/02/19,Corporate Resources,Amzn Mktp Uk*mi4mk13l4,03/02/19,8.33,Other Equipment & Materials-General,Book Stores,GPC
18/01/19 to 18/02/19,Corporate Resources,Amzn Mktp Uk*mi4yh1lp4 Am,01/02/19,25.52,Other Equipment & Materials-General,Book Stores,GPC
18/01/19 to 18/02/19,Corporate Resources,Amzn Mktp Uk*mi5fi4m94,11/02/19,25.53,IT Equipment-Purchase - Hardware,Book Stores,GPC
18/01/19 to 18/02/19,Corporate Resources,Amzn Mktp Uk*mi5g371o4,08/02/19,74.88,Other Expenditure-General,Book Stores,GPC
18/01/19 to 18/02/19,Corporate Resources,Amzn Mktp Uk*mi5ms5ly4,31/01/19,47.08,Training Expenses-General,Book Stores,GPC
18/01/19 to 18/02/19,Corporate Resources,Amzn Mktp Uk*mi5ur76j4,16/02/19,1.58,General Equipment-General,Book Stores,GPC
18/01/19 to 18/02/19,Corporate Resources,Amzn Mktp Uk*mi5zv4fh4,31/01/19,7.88,Other Equipment & Materials-General,Book Stores,GPC
18/01/19 to 18/02/19,Corporate Resources,Amzn Mktp Uk*mi6337b84,14/02/19,3.32,Other Equipment & Materials-General,Book Stores,GPC
18/01/19 to 18/02/19,Corporate Resources,Amzn Mktp Uk*mi63w6ce4 Am,29/01/19,13.30,IT Equipment-General,Book Stores,GPC
18/01/19 to 18/02/19,Corporate Resources,Amzn Mktp Uk*mi65404k4,31/01/19,4.78,Provisions-General,Book Stores,GPC
18/01/19 to 18/02/19,Corporate Resources,Amzn Mktp Uk*mi68s3vb4 Am,11/02/19,14.99,Books-General,Book Stores,GPC
18/01/19 to 18/02/19,Corporate Resources,Amzn Mktp Uk*mi6j718e4 Am,15/02/19,18.99,Books-General,Book Stores,GPC
18/01/19 to 18/02/19,Corporate Resources,Amzn Mktp Uk*mi6vv6qg4 Am,15/02/19,52.87,Stationery-General,Book Stores,GPC
18/01/19 to 18/02/19,Corporate Resources,Amzn Mktp Uk*mi6yr76t4,16/02/19,14.99,Books-General,Book Stores,GPC
18/01/19 to 18/02/19,Corporate Resources,Amzn Mktp Uk*mi71n0hg4,13/02/19,8.82,Protective Clothing & Uniforms-School Uniforms,Book Stores,GPC
18/01/19 to 18/02/19,Corporate Resources,Amzn Mktp Uk*mi77i0o94,30/01/19,12.18,Books-General,Book Stores,GPC
18/01/19 to 18/02/19,Corporate Resources,Amzn Mktp Uk*mi7fd0j44,04/02/19,58.27,Operational Equipment-General,Book Stores,GPC
18/01/19 to 18/02/19,Corporate Resources,Amzn Mktp Uk*mi7fg43m4,03/02/19,20.40,Other Expenditure-General,Book Stores,GPC
18/01/19 to 18/02/19,Corporate Resources,Amzn Mktp Uk*mi7w62vn4,11/02/19,9.57,Training Expenses-General,Book Stores,GPC
18/01/19 to 18/02/19,Corporate Resources,Amzn Mktp Uk*mi7xl96n4,17/02/19,3.32,Other Expenditure-General,Book Stores,GPC
18/01/19 to 18/02/19,Corporate Resources,Amzn Mktp Uk*mi8f23lu4,01/02/19,8.10,Other Equipment & Materials-General,Book Stores,GPC
18/01/19 to 18/02/19,Corporate Resources,Amzn Mktp Uk*mi8tv7n24,03/02/19,6.37,Other Equipment & Materials-General,Book Stores,GPC
18/01/19 to 18/02/19,Corporate Resources,Amzn Mktp Uk*mi8uo4mx4 Am,11/02/19,26.98,Books-General,Book Stores,GPC
18/01/19 to 18/02/19,Corporate Resources,Amzn Mktp Uk*mi91g9l94,01/02/19,2.65,Other Equipment & Materials-General,Book Stores,GPC
18/01/19 to 18/02/19,Corporate Resources,Amzn Mktp Uk*mi95080i4,06/02/19,22.09,Books-General,Book Stores,GPC
18/01/19 to 18/02/19,Corporate Resources,Amzn Mktp Uk*mi9i22q64,15/02/19,10.76,General Equipment-General,Book Stores,GPC
18/01/19 to 18/02/19,Corporate Resources,Amzn Mktp Uk*mi9p82vy4,11/02/19,5.55,IT Equipment-Purchase - Hardware,Book Stores,GPC
18/01/19 to 18/02/19,Corporate Resources,Amzn Mktp Uk*mi9ul84i4 Am,31/01/19,2.87,Other Equipment & Materials-General,Book Stores,GPC
18/01/19 to 18/02/19,Corporate Resources,Amzn Mktp Uk*mi9xs9ge4 Am,10/02/19,9.16,Books-General,Book Stores,GPC
18/01/19 to 18/02/19,Corporate Resources,Asda Groceries Online,01/02/19,9.00,Cleaning Materials-General,"Grocery Stores, Supermarkets",GPC
18/01/19 to 18/02/19,Corporate Resources,Asda Groceries Online,23/01/19,-8.00,Provisions-General,"Grocery Stores, Supermarkets",GPC
18/01/19 to 18/02/19,Corporate Resources,Asda Groceries Online,23/01/19,28.00,Provisions-General,"Grocery Stores, Supermarkets",GPC
18/01/19 to 18/02/19,Corporate Resources,Asda Groceries Online,23/01/19,27.00,Provisions-General,"Grocery Stores, Supermarkets",GPC
18/01/19 to 18/02/19,Corporate Resources,Asda Groceries Online,23/01/19,-24.00,Provisions-General,"Grocery Stores, Supermarkets",GPC
18/01/19 to 18/02/19,Corporate Resources,Asda Stores 4477,12/02/19,3.25,Materials-General,"Grocery Stores, Supermarkets",GPC
18/01/19 to 18/02/19,Corporate Resources,Asda Stores 4477,24/01/19,4.73,Other Expenditure-General,"Grocery Stores, Supermarkets",GPC
18/01/19 to 18/02/19,Corporate Resources,Asda Stores 4477,07/02/19,6.44,Other Expenditure-General,"Grocery Stores, Supermarkets",GPC
18/01/19 to 18/02/19,Corporate Resources,Asda Stores 4477,08/02/19,7.50,Other Expenditure-General,"Grocery Stores, Supermarkets",GPC
18/01/19 to 18/02/19,Corporate Resources,Asda Stores 4477,11/02/19,6.00,Other Expenditure-General,"Grocery Stores, Supermarkets",GPC
18/01/19 to 18/02/19,Corporate Resources,Asda Stores 4477,13/02/19,19.97,Other Expenditure-General,"Grocery Stores, Supermarkets",GPC
18/01/19 to 18/02/19,Corporate Resources,Asda Stores 4477,15/02/19,1.57,Other Expenditure-General,"Grocery Stores, Supermarkets",GPC
18/01/19 to 18/02/19,Corporate Resources,Asda Stores 4477,05/02/19,9.00,Provisions-General,"Grocery Stores, Supermarkets",GPC
18/01/19 to 18/02/19,Corporate Resources,Asda Superstore,21/01/19,6.50,Materials-General,"Grocery Stores, Supermarkets",GPC
18/01/19 to 18/02/19,Corporate Resources,Asda Superstore,12/02/19,2.00,Materials-General,"Grocery Stores, Supermarkets",GPC
18/01/19 to 18/02/19,Corporate Resources,B & Q 1012,30/01/19,117.51,Materials-General,"Building Materials, Lumber Stores",GPC
18/01/19 to 18/02/19,Corporate Resources,B & Q 1012,28/01/19,6.30,Other Services-General,"Building Materials, Lumber Stores",GPC
18/01/19 to 18/02/19,Corporate Resources,B & Q 1052,31/01/19,22.50,R & M of Buildings-General,"Building Materials, Lumber Stores",GPC
18/01/19 to 18/02/19,Corporate Resources,B&m Retail Ltd,31/01/19,52.96,Other Equipment & Materials-General,Discount Stores,GPC
18/01/19 to 18/02/19,Corporate Resources,B2b Quote Ltd,18/01/19,345.00,IT Equipment-Software,Schools and Educational Services-Not Elsewhere Cla,GPC
18/01/19 to 18/02/19,Corporate Resources,Bls*monday.Com,19/01/19,30.00,IT Equipment-General,Business Services-Not Elsewhere Classified,GPC
18/01/19 to 18/02/19,Corporate Resources,Bouncy Castle/ Sof,30/01/19,42.75,Other Equipment & Materials-General,"Equipment Rental and Leasing Services, Tool Rental",GPC
18/01/19 to 18/02/19,Corporate Resources,Central Eng Coop,17/01/19,5.40,Other Expenditure-General,Department Stores,GPC
18/01/19 to 18/02/19,Corporate Resources,Central Eng Coop,17/02/19,5.83,Other Expenditure-General,Department Stores,GPC
18/01/19 to 18/02/19,Corporate Resources,Central Eng Coop,28/01/19,9.55,Provisions-General,Department Stores,GPC
18/01/19 to 18/02/19,Corporate Resources,Central Eng Coop,04/02/19,13.20,Provisions-General,Department Stores,GPC
18/01/19 to 18/02/19,Corporate Resources,Central Eng Coop R,06/02/19,4.82,Provisions-General,"Grocery Stores, Supermarkets",GPC
18/01/19 to 18/02/19,Corporate Resources,Cooks Farm Shop,24/01/19,5.45,Other Expenditure-Public Enquiry fees,"Lawn and Garden Supply Stores, Nurseries",GPC
18/01/19 to 18/02/19,Corporate Resources,Cooks Farm Shop,31/01/19,68.90,Other Expenditure-Public Enquiry fees,"Lawn and Garden Supply Stores, Nurseries",GPC
18/01/19 to 18/02/19,Corporate Resources,Co-Op Group 070412,23/01/19,19.42,Other Expenditure-General,"Grocery Stores, Supermarkets",GPC
18/01/19 to 18/02/19,Corporate Resources,Co-Op Group 070412,03/02/19,22.35,Other Expenditure-General,"Grocery Stores, Supermarkets",GPC
18/01/19 to 18/02/19,Corporate Resources,Co-Op Group 070412,13/02/19,15.78,Other Expenditure-General,"Grocery Stores, Supermarkets",GPC
18/01/19 to 18/02/19,Corporate Resources,Costa Coalville,30/01/19,4.90,Other Expenditure-General,Fast-Food Restaurants (Quick Payment Service Pilot,GPC
18/01/19 to 18/02/19,Corporate Resources,Costcutter,14/02/19,1.00,Other Expenditure-General,"Grocery Stores, Supermarkets",GPC
18/01/19 to 18/02/19,Corporate Resources,Cross Country Trains,22/01/19,233.20,Training Expenses-General,Passenger Railways,GPC
18/01/19 to 18/02/19,Corporate Resources,Cross Country Trains,11/02/19,83.70,Training Expenses-General,Passenger Railways,GPC
18/01/19 to 18/02/19,Corporate Resources,Dvla Vehicle Tax,07/02/19,252.50,Road Licences-General,Government Services-Not Elsewhere Classified,GPC
18/01/19 to 18/02/19,Corporate Resources,Dvla Vehicle Tax,07/02/19,252.50,Road Licences-General,Government Services-Not Elsewhere Classified,GPC
18/01/19 to 18/02/19,Corporate Resources,East Midlands Trains,17/01/19,116.10,Public Transport -  Staff-General,Passenger Railways,GPC
18/01/19 to 18/02/19,Corporate Resources,East Midlands Trains,23/01/19,12.00,Publicity/Marketing-General,Passenger Railways,GPC
18/01/19 to 18/02/19,Corporate Resources,Eb *health And Care Ex,18/01/19,150.00,Publicity/Marketing-General,Business Services-Not Elsewhere Classified,GPC
18/01/19 to 18/02/19,Corporate Resources,Eb *nhs Delivering The,07/02/19,245.00,Training Expenses-General,Business Services-Not Elsewhere Classified,GPC
18/01/19 to 18/02/19,Corporate Resources,Eb *the 2019 Nlp Amp C,31/01/19,66.67,Training Expenses-General,Business Services-Not Elsewhere Classified,GPC
18/01/19 to 18/02/19,Corporate Resources,Facebk *dbmgmkste2,31/01/19,330.44,Publicity/Marketing-General,Advertising Services,GPC
18/01/19 to 18/02/19,Corporate Resources,Facebk F6wb9jel52,29/01/19,600.00,Publicity/Marketing-General,Advertising Services,GPC
18/01/19 to 18/02/19,Corporate Resources,Facebk Mt5wjh6l52,18/01/19,600.00,Publicity/Marketing-General,Advertising Services,GPC
18/01/19 to 18/02/19,Corporate Resources,Facebk Ug8t6kn3k2,31/01/19,20.00,Publicity/Marketing-General,Advertising Services,GPC
18/01/19 to 18/02/19,Corporate Resources,Facebk Vwbkyjwk52,31/01/19,30.33,Publicity/Marketing-General,Advertising Services,GPC
18/01/19 to 18/02/19,Corporate Resources,Google *ads3070599614,23/01/19,500.00,Advertising-General,Continuity/Subscription Merchants,GPC
18/01/19 to 18/02/19,Corporate Resources,Google *ads3070599614,12/02/19,250.00,Other Expenditure-General,Continuity/Subscription Merchants,GPC
18/01/19 to 18/02/19,Corporate Resources,Harvest Forecast,29/01/19,38.30,IT Equipment-Purchase - Hardware,Computer Software Stores,GPC
18/01/19 to 18/02/19,Corporate Resources,Haymarket Media Group,12/02/19,954.00,Recruitment Advertising-General,"Management, Consulting and Public Relations Servic",GPC
18/01/19 to 18/02/19,Corporate Resources,Heart Of England Nhs,25/01/19,189.00,Training Expenses-General,Membership Organizations-Not Elsewhere Classified,GPC
18/01/19 to 18/02/19,Corporate Resources,Highstreet Vocuhers,25/01/19,100.00,Publicity/Marketing-General,"Civic, Social, and Fraternal Associations",GPC
18/01/19 to 18/02/19,Corporate Resources,Highstreet Vocuhers,25/01/19,40.00,Publicity/Marketing-General,"Civic, Social, and Fraternal Associations",GPC
18/01/19 to 18/02/19,Corporate Resources,Highstreet Vocuhers,25/01/19,20.00,Publicity/Marketing-General,"Civic, Social, and Fraternal Associations",GPC
18/01/19 to 18/02/19,Corporate Resources,Highstreet Vocuhers,25/01/19,20.00,Publicity/Marketing-General,"Civic, Social, and Fraternal Associations",GPC
18/01/19 to 18/02/19,Corporate Resources,Highstreet Vocuhers,25/01/19,63.50,Publicity/Marketing-General,"Civic, Social, and Fraternal Associations",GPC
18/01/19 to 18/02/19,Corporate Resources,Highstreet Vocuhers,25/01/19,83.50,Publicity/Marketing-General,"Civic, Social, and Fraternal Associations",GPC
18/01/19 to 18/02/19,Corporate Resources,Himan & Company,13/02/19,76.55,R & M of Buildings-General,Business Services-Not Elsewhere Classified,GPC
18/01/19 to 18/02/19,Corporate Resources,Himan & Company,15/02/19,145.96,R & M of Buildings-General,Business Services-Not Elsewhere Classified,GPC
18/01/19 to 18/02/19,Corporate Resources,Hinckley Toolbox,02/02/19,9.49,Other Expenditure-General,Hardware Stores,GPC
18/01/19 to 18/02/19,Corporate Resources,Hoo*hootsuite Inc,23/01/19,90.90,Other Equipment & Materials-General,Business Services-Not Elsewhere Classified,GPC
18/01/19 to 18/02/19,Corporate Resources,Hoo*hootsuite Inc,30/01/19,8.48,Publicity/Marketing-General,Business Services-Not Elsewhere Classified,GPC
18/01/19 to 18/02/19,Corporate Resources,Http://ace.Apprentices,06/02/19,110.00,Training Expenses-General,"Management, Consulting and Public Relations Servic",GPC
18/01/19 to 18/02/19,Corporate Resources,Js Online Grocery,24/01/19,109.00,Provisions-General,"Grocery Stores, Supermarkets",GPC
18/01/19 to 18/02/19,Corporate Resources,Just Eat,31/01/19,51.47,Subsistence-General,Fast-Food Restaurants (Quick Payment Service Pilot,GPC
18/01/19 to 18/02/19,Corporate Resources,Just Eat,15/02/19,19.00,Subsistence-General,Fast-Food Restaurants (Quick Payment Service Pilot,GPC
18/01/19 to 18/02/19,Corporate Resources,Lcc Online,04/02/19,10.00,Other Expenditure-General,Government Services-Not Elsewhere Classified,GPC
18/01/19 to 18/02/19,Corporate Resources,Lcc Online,05/02/19,10.00,Other Expenditure-General,Government Services-Not Elsewhere Classified,GPC
18/01/19 to 18/02/19,Corporate Resources,Lcc Online,13/02/19,10.00,Other Expenditure-General,Government Services-Not Elsewhere Classified,GPC
18/01/19 to 18/02/19,Corporate Resources,Linkedin-448*1978123,07/02/19,152.03,Recruitment Advertising-General,Continuity/Subscription Merchants,GPC
18/01/19 to 18/02/19,Corporate Resources,Linkedin-448*9688413,12/02/19,20.06,Advertising-General,Continuity/Subscription Merchants,GPC
18/01/19 to 18/02/19,Corporate Resources,Linkedin-449*7983303,16/02/19,80.65,Other Expenditure-General,Continuity/Subscription Merchants,GPC
18/01/19 to 18/02/19,Corporate Resources,M M Leggett Vet. Surge,13/02/19,82.50,Other Expenditure-Public Enquiry fees,Veterinary Services,GPC
18/01/19 to 18/02/19,Corporate Resources,M M Leggett Vet. Surge,13/02/19,69.45,Other Expenditure-Public Enquiry fees,Veterinary Services,GPC
18/01/19 to 18/02/19,Corporate Resources,Marks&spencer Plc Saca,01/02/19,194.55,Protective Clothing & Uniforms-General,"Grocery Stores, Supermarkets",GPC
18/01/19 to 18/02/19,Corporate Resources,Marks&spencer Plc Sf,07/02/19,-194.50,Protective Clothing & Uniforms-General,"Grocery Stores, Supermarkets",GPC
18/01/19 to 18/02/19,Corporate Resources,Marks&spencer Plc Sf,07/02/19,58.50,Protective Clothing & Uniforms-General,"Grocery Stores, Supermarkets",GPC
18/01/19 to 18/02/19,Corporate Resources,Marks&spencer Plc Sf,08/02/19,-58.50,Protective Clothing & Uniforms-General,"Grocery Stores, Supermarkets",GPC
18/01/19 to 18/02/19,Corporate Resources,Martin McColls,08/02/19,5.87,Other Expenditure-General,"Miscellaneous Food Stores-Convenience Stores, Mark",GPC
18/01/19 to 18/02/19,Corporate Resources,Media & Communications L,14/02/19,90.00,Communications Equipment-General,Telecommunication Equipment Including Telephone Sa,GPC
18/01/19 to 18/02/19,Corporate Resources,Mfg Measham,23/01/19,1.59,Other Expenditure-General,Service Stations (with or without Ancillary Servic,GPC
18/01/19 to 18/02/19,Corporate Resources,Mfg Measham,06/02/19,1.65,Other Expenditure-General,Service Stations (with or without Ancillary Servic,GPC
18/01/19 to 18/02/19,Corporate Resources,Mfg Measham,13/02/19,1.59,Other Expenditure-General,Service Stations (with or without Ancillary Servic,GPC
18/01/19 to 18/02/19,Corporate Resources,Mole Country Stores,28/01/19,28.00,Other Expenditure-Public Enquiry fees,Agricultural Cooperatives,GPC
18/01/19 to 18/02/19,Corporate Resources,Msft *<e02007cg1r>,08/02/19,376.10,IT Equipment-Software,"Computers, Computer Peripheral Equipment, Software",GPC
18/01/19 to 18/02/19,Corporate Resources,Myfonts,06/02/19,59.46,Publicity/Marketing-General,Professional Services-Not Elsewhere Classified,GPC
18/01/19 to 18/02/19,Corporate Resources,Next Leicester 0852,01/02/19,222.00,Protective Clothing & Uniforms-General,Family Clothing Stores,GPC
18/01/19 to 18/02/19,Corporate Resources,Next Retail Ltd,07/02/19,-98.00,Protective Clothing & Uniforms-General,Family Clothing Stores,GPC
18/01/19 to 18/02/19,Corporate Resources,Next Retail Ltd,14/02/19,-124.00,Protective Clothing & Uniforms-General,Family Clothing Stores,GPC
18/01/19 to 18/02/19,Corporate Resources,One Stop 2777,17/02/19,7.50,Materials-General,"Grocery Stores, Supermarkets",GPC
18/01/19 to 18/02/19,Corporate Resources,Online Turf,24/01/19,188.80,Other Premises Expenses-General,"Lawn and Garden Supply Stores, Nurseries",GPC
18/01/19 to 18/02/19,Corporate Resources,Opp Sterling Web,14/02/19,28.10,Other Expenditure-General,Business Services-Not Elsewhere Classified,GPC
18/01/19 to 18/02/19,Corporate Resources,P & R Building Supplie,31/01/19,50.00,Other Services-General,"Building Materials, Lumber Stores",GPC
18/01/19 to 18/02/19,Corporate Resources,Park Plaza Westminster Br,01/02/19,738.00,Hospitality-General,"Lodging-Hotels, Motels, Resorts",GPC
18/01/19 to 18/02/19,Corporate Resources,Paypal *soundconnec,11/02/19,85.00,Training Expenses-General,Schools and Educational Services-Not Elsewhere Cla,GPC
18/01/19 to 18/02/19,Corporate Resources,Paypal *surplusandl,14/02/19,49.98,Other Equipment & Materials-General,Chemicals and Allied Products Not Elsewhere Classi,GPC
18/01/19 to 18/02/19,Corporate Resources,Post Office Counter,14/02/19,58.00,Postal Services-General,Postage Stamps,GPC
18/01/19 to 18/02/19,Corporate Resources,Premier Inn 44534170,16/01/19,146.67,Training Expenses-General,"Eating Places, Restaurants",GPC
18/01/19 to 18/02/19,Corporate Resources,Premier Inn 44534170,17/01/19,123.33,Training Expenses-General,"Eating Places, Restaurants",GPC
18/01/19 to 18/02/19,Corporate Resources,Premier Inn 44536600,05/02/19,64.16,Publicity/Marketing-General,PREMIER TRAVEL,GPC
18/01/19 to 18/02/19,Corporate Resources,Premier Inn44521250,14/02/19,66.00,Training Expenses-General,PREMIER TRAVEL,GPC
18/01/19 to 18/02/19,Corporate Resources,Premier Inn44521250,15/02/19,38.00,Training Expenses-General,PREMIER TRAVEL,GPC
18/01/19 to 18/02/19,Corporate Resources,Premier Inn44521250,15/02/19,49.00,Training Expenses-General,PREMIER TRAVEL,GPC
18/01/19 to 18/02/19,Corporate Resources,Premier Inn44521250,15/02/19,38.00,Training Expenses-General,PREMIER TRAVEL,GPC
18/01/19 to 18/02/19,Corporate Resources,Rich Tone Music,22/01/19,234.00,Materials-General,"Music Stores-Musical Instruments, Pianos, Sheet Mu",GPC
18/01/19 to 18/02/19,Corporate Resources,Rics,14/02/19,192.00,Training Expenses-General,Membership Organizations-Not Elsewhere Classified,GPC
18/01/19 to 18/02/19,Corporate Resources,Rics Com Gbp Cybs,13/02/19,192.00,Training Expenses-General,Membership Organizations-Not Elsewhere Classified,GPC
18/01/19 to 18/02/19,Corporate Resources,Rics Subs UK Cybs,24/01/19,554.00,Subscriptions-General,Membership Organizations-Not Elsewhere Classified,GPC
18/01/19 to 18/02/19,Corporate Resources,Royal Mail Charges,08/02/19,2.00,Postal Services-General,Postage Stamps,GPC
18/01/19 to 18/02/19,Corporate Resources,Rs Components,25/01/19,61.86,Materials-General,Electrical Parts and Equipment,GPC
18/01/19 to 18/02/19,Corporate Resources,Safetysignsup.Couk,01/02/19,185.84,Materials-General,"Commercial Photography, Art, Graphics",GPC
18/01/19 to 18/02/19,Corporate Resources,Safetysignsup.Couk,21/01/19,181.00,Other Equipment & Materials-General,"Commercial Photography, Art, Graphics",GPC
18/01/19 to 18/02/19,Corporate Resources,Sainsburys S/Mkts,17/02/19,4.25,Hospitality-General,"Grocery Stores, Supermarkets",GPC
18/01/19 to 18/02/19,Corporate Resources,Sainsburys S/mkts,31/01/19,21.00,Provisions-General,"Grocery Stores, Supermarkets",GPC
18/01/19 to 18/02/19,Corporate Resources,Screwfix Coalville,12/02/19,98.68,Other Services-General,"Building Materials, Lumber Stores",GPC
18/01/19 to 18/02/19,Corporate Resources,Screwfix Direct,16/02/19,14.98,Other Services-General,"Building Materials, Lumber Stores",GPC
18/01/19 to 18/02/19,Corporate Resources,Screwfix Direct Lt,02/02/19,9.99,Other Expenditure-General,"Building Materials, Lumber Stores",GPC
18/01/19 to 18/02/19,Corporate Resources,Sig,24/01/19,70.19,Other Equipment & Materials-General,Industrial Supplies Not Elsewhere Classified,GPC
18/01/19 to 18/02/19,Corporate Resources,Slb Supplies,28/01/19,56.00,Other Services-General,Pet Shops-Pet Food and Supplies,GPC
18/01/19 to 18/02/19,Corporate Resources,Slb Supplies,01/02/19,14.00,Other Services-General,Pet Shops-Pet Food and Supplies,GPC
18/01/19 to 18/02/19,Corporate Resources,Sparkol,07/02/19,18.00,Publicity/Marketing-General,Computer Software Stores,GPC
18/01/19 to 18/02/19,Corporate Resources,Sportsdirect.Com,19/01/19,7.00,Other Expenditure-General,Sporting Goods Stores,GPC
18/01/19 to 18/02/19,Corporate Resources,Suffolk Barrel Pro,05/02/19,17.99,General Equipment-General,Direct Marketers - Other,GPC
18/01/19 to 18/02/19,Corporate Resources,Sunnyside Garden Centr,31/01/19,5.50,Other Services-General,"Florists Supplies, Nursery Stock, and Flowers",GPC
18/01/19 to 18/02/19,Corporate Resources,Tesco Store 2849,06/02/19,39.35,Provisions-General,"Grocery Stores, Supermarkets",GPC
18/01/19 to 18/02/19,Corporate Resources,Tesco Stores 2044,31/01/19,13.00,Other Expenditure-General,"Grocery Stores, Supermarkets",GPC
18/01/19 to 18/02/19,Corporate Resources,Tesco Stores 2849,27/01/19,4.40,Provisions-General,"Grocery Stores, Supermarkets",GPC
18/01/19 to 18/02/19,Corporate Resources,Tesco Stores-2044,17/02/19,3.60,Hospitality-General,"Grocery Stores, Supermarkets",GPC
18/01/19 to 18/02/19,Corporate Resources,The Post Office,05/02/19,3.45,Postal Services-General,Postage Stamps,GPC
18/01/19 to 18/02/19,Corporate Resources,The Post Office,12/02/19,10.35,Postal Services-General,Postage Stamps,GPC
18/01/19 to 18/02/19,Corporate Resources,Timpson Ltd,07/02/19,14.50,Materials-General,"Shoe Repair Shops, Shoe Shine Parlors, Hat Cleanin",GPC
18/01/19 to 18/02/19,Corporate Resources,Trainline,18/01/19,132.72,Public Transport -  Staff-General,Passenger Railways,GPC
18/01/19 to 18/02/19,Corporate Resources,Trainline,05/02/19,31.07,Publicity/Marketing-General,Passenger Railways,GPC
18/01/19 to 18/02/19,Corporate Resources,Turpin44(0)01767604800,04/02/19,54.57,Materials-General,CombinationMail/Phones and Retail Merchants,GPC
18/01/19 to 18/02/19,Corporate Resources,Udemy,07/02/19,12.99,Training Expenses-General,Computer and Data Processing Services,GPC
18/01/19 to 18/02/19,Corporate Resources,Udemy,07/02/19,12.99,Training Expenses-General,Computer and Data Processing Services,GPC
18/01/19 to 18/02/19,Corporate Resources,Udemy,07/02/19,19.99,Training Expenses-General,Computer and Data Processing Services,GPC
18/01/19 to 18/02/19,Corporate Resources,Verdon Timber Group Li,21/01/19,52.00,Other Services-General,"Building Materials, Lumber Stores",GPC
18/01/19 to 18/02/19,Corporate Resources,Verifone (U.K.) Limite,06/02/19,96.97,IT Equipment-General,Computer and Data Processing Services,GPC
18/01/19 to 18/02/19,Corporate Resources,Wh Smith,13/02/19,18.98,Other Services-General,News Dealers and Newsstands,GPC
18/01/19 to 18/02/19,Corporate Resources,Wickes,17/01/19,17.50,Other Services-General,"Building Materials, Lumber Stores",GPC
18/01/19 to 18/02/19,Corporate Resources,Wickes,31/01/19,9.00,R & M of Buildings-General,"Building Materials, Lumber Stores",GPC
18/01/19 to 18/02/19,Corporate Resources,Wilko Retail Limit,29/01/19,14.05,Other Expenditure-General,Household Appliance Stores,GPC
18/01/19 to 18/02/19,Corporate Resources,Wilko Retail Limit,16/02/19,4.00,Other Services-General,Household Appliance Stores,GPC
18/01/19 to 18/02/19,Corporate Resources,Wm Morrisons Store,17/02/19,47.38,Materials-General,"Grocery Stores, Supermarkets",GPC
18/01/19 to 18/02/19,Corporate Resources,Wm Morrisons Store,20/01/19,10.00,Other Expenditure-General,"Grocery Stores, Supermarkets",GPC
18/01/19 to 18/02/19,Corporate Resources,Wm Morrisons Store,02/02/19,21.07,Other Expenditure-General,"Grocery Stores, Supermarkets",GPC
18/01/19 to 18/02/19,Corporate Resources,Wm Morrisons Store,16/02/19,16.00,Other Expenditure-General,"Grocery Stores, Supermarkets",GPC
18/01/19 to 18/02/19,Corporate Resources,Www Oppassessment Eu Com,22/01/19,396.00,Training Expenses-General,Business Services-Not Elsewhere Classified,GPC
18/01/19 to 18/02/19,Corporate Resources,Www.Apm.Org.Uk,17/01/19,156.00,Other Services-General,Membership Organizations-Not Elsewhere Classified,GPC
18/01/19 to 18/02/19,Corporate Resources,Www.Apm.Org.Uk,21/01/19,160.00,Other Services-General,Membership Organizations-Not Elsewhere Classified,GPC
18/01/19 to 18/02/19,Corporate Resources,Www.Bishopg.Ac.Uk,31/01/19,20.00,Training Expenses-General,"Colleges, Universities, Professional Schools, and",GPC
18/01/19 to 18/02/19,Corporate Resources,Www.Bpp Prof Devlm,11/02/19,624.00,Training Expenses-General,"Colleges, Universities, Professional Schools, and",GPC
18/01/19 to 18/02/19,Corporate Resources,Www.Chas.Co.Uk,04/02/19,575.00,Subscriptions-General,Government Services-Not Elsewhere Classified,GPC
18/01/19 to 18/02/19,Corporate Resources,Www.Cips.Org,13/02/19,315.00,Training Expenses-General,Membership Organizations-Not Elsewhere Classified,GPC
18/01/19 to 18/02/19,Corporate Resources,Www.Conssultationi,15/02/19,594.00,Training Expenses-General,Vocational and Trade Schools,GPC
18/01/19 to 18/02/19,Corporate Resources,Www.Conssultationi,15/02/19,594.00,Training Expenses-General,Vocational and Trade Schools,GPC
18/01/19 to 18/02/19,Corporate Resources,Www.Cskills.Org,21/01/19,30.00,Training Expenses-General,Vocational and Trade Schools,GPC
18/01/19 to 18/02/19,Corporate Resources,Www.Gear4music.Com,04/02/19,4.70,Materials-General,"Music Stores-Musical Instruments, Pianos, Sheet Mu",GPC
18/01/19 to 18/02/19,Corporate Resources,Www.Gov.Uk,29/01/19,10.00,Other Expenditure-Legal Expenses,Professional Services-Not Elsewhere Classified,GPC
18/01/19 to 18/02/19,Corporate Resources,Www.Gov.Uk,07/02/19,10.00,Other Expenditure-Legal Expenses,Professional Services-Not Elsewhere Classified,GPC
18/01/19 to 18/02/19,Corporate Resources,Www.Hortejobs.Com,22/01/19,114.00,Recruitment Advertising-General,"Employment Agencies, Temporary Help Services",GPC
18/01/19 to 18/02/19,Corporate Resources,Www.Ikea.Com,02/02/19,28.29,Other Equipment & Materials-General,"Furniture, Home Furnishings and Equipment Stores,",GPC
18/01/19 to 18/02/19,Corporate Resources,Www.Inn-Dispensable.Com,06/02/19,280.00,Training Expenses-General,Business and Secretarial Schools,GPC
18/01/19 to 18/02/19,Corporate Resources,Www.Kcom.Co.Uk,11/02/19,17.98,Communications Equipment-General,Telecommunication Service Including Local and Long,GPC
18/01/19 to 18/02/19,Corporate Resources,Www.Letsrecycle.Com,17/01/19,184.66,Training Expenses-General,Advertising Services,GPC
18/01/19 to 18/02/19,Corporate Resources,Www.Letsrecycle.Com,17/01/19,177.52,Training Expenses-General,Advertising Services,GPC
18/01/19 to 18/02/19,Corporate Resources,Www.Letsrecycle.Com,05/02/19,153.88,Training Expenses-General,Advertising Services,GPC
18/01/19 to 18/02/19,Corporate Resources,Www.Lisssport.Co.Uk,18/01/19,28.08,Materials-General,Sporting Goods Stores,GPC
18/01/19 to 18/02/19,Corporate Resources,Www.Local.Gov.Uk,15/02/19,199.00,Training Expenses-General,Business Services-Not Elsewhere Classified,GPC
18/01/19 to 18/02/19,Corporate Resources,Www.Musicroom.Com,17/01/19,16.96,Other Services-General,"Music Stores-Musical Instruments, Pianos, Sheet Mu",GPC
18/01/19 to 18/02/19,Corporate Resources,Www.Sterlingevents.Co.,24/01/19,65.00,Training Expenses-General,Miscellaneous and Specialty Retail Stores,GPC
18/01/19 to 18/02/19,Corporate Resources,Www.Stonewall.Org.,18/01/19,598.00,Publicity/Marketing-General,Charitable and Social Service Organizations,GPC
18/01/19 to 18/02/19,Corporate Resources,Www.Tinybox.Com,14/02/19,27.31,Stationery-General,"Gift, Card, Novelty, and Souvenir Shops",GPC
18/01/19 to 18/02/19,Corporate Resources,Www.Workgloves.Co.Uk,18/01/19,164.60,Other Services-General,Miscellaneous and Specialty Retail Stores,GPC
18/01/19 to 18/02/19,Corporate Resources,Information not known ,30/01/19,1.05,IT Equipment-Purchase - Hardware,Misc-Unknown,GPC
18/01/19 to 18/02/19,Corporate Resources,Information not known ,24/01/19,3.19,Other Equipment & Materials-General,Misc-Unknown,GPC
18/01/19 to 18/02/19,Corporate Resources,Information not known ,31/01/19,0.32,Publicity/Marketing-General,Misc-Unknown,GPC
18/01/19 to 18/02/19,E&T,4x4 Accessories & Tyre,06/02/19,843.32,R&M of Vehicles-Non Contract-General,"Automotive Parts, Accessories Stores",GPC
18/01/19 to 18/02/19,E&T,Amazon.Co.Uk*mb5bf2uf4 Am,24/01/19,67.85,Books-General,Miscellaneous and Specialty Retail Stores,GPC
18/01/19 to 18/02/19,E&T,Amazon.Co.Uk*mb5h66r94 Am,27/01/19,12.90,Materials-General,Miscellaneous and Specialty Retail Stores,GPC
18/01/19 to 18/02/19,E&T,Amazon.Co.Uk*mi2th7v74,11/02/19,34.55,Books-General,Direct Marketers - Other,GPC
18/01/19 to 18/02/19,E&T,Amazon.Co.Uk*mi69453k4 Am,03/02/19,137.69,Other Equipment & Materials-General,Miscellaneous and Specialty Retail Stores,GPC
18/01/19 to 18/02/19,E&T,Amz*durapro,31/01/19,-11.16,Stationery-General,Miscellaneous and Specialty Retail Stores,GPC
18/01/19 to 18/02/19,E&T,Amzn Mktp Uk*mb5xr4it4,26/01/19,32.37,Books-General,Book Stores,GPC
18/01/19 to 18/02/19,E&T,Amzn Mktp Uk*mi0fd1884,14/02/19,132.45,Books-General,Book Stores,GPC
18/01/19 to 18/02/19,E&T,Amzn Mktp Uk*mi0i87gw4 Am,09/02/19,17.34,Other Expenditure-General,Book Stores,GPC
18/01/19 to 18/02/19,E&T,Amzn Mktp Uk*mi0m65j04 Am,04/02/19,17.28,Books-General,Book Stores,GPC
18/01/19 to 18/02/19,E&T,Amzn Mktp Uk*mi2jn7eq4,06/02/19,6.28,Books-General,Book Stores,GPC
18/01/19 to 18/02/19,E&T,Amzn Mktp Uk*mi30365y4,13/02/19,3.24,Books-General,Book Stores,GPC
18/01/19 to 18/02/19,E&T,Amzn Mktp Uk*mi5sm9384 Am,04/02/19,5.95,Books-General,Book Stores,GPC
18/01/19 to 18/02/19,E&T,Amzn Mktp Uk*mi6112ml4,11/02/19,23.98,Publicity/Marketing-General,Book Stores,GPC
18/01/19 to 18/02/19,E&T,Amzn Mktp Uk*mi7n17hm4,13/02/19,3.81,Books-General,Book Stores,GPC
18/01/19 to 18/02/19,E&T,Amzn Mktp Uk*mi7v94zb4 Am,02/02/19,5.99,Books-General,Book Stores,GPC
18/01/19 to 18/02/19,E&T,Amzn Mktp Uk*mi7yb1jo4 Am,04/02/19,2.29,Books-General,Book Stores,GPC
18/01/19 to 18/02/19,E&T,Amzn Mktp Uk*mi9d464p4,31/01/19,3.24,Books-General,Book Stores,GPC
18/01/19 to 18/02/19,E&T,Amzn Mktp Uk*mi9lp4564,12/02/19,43.16,Books-General,Book Stores,GPC
18/01/19 to 18/02/19,E&T,Amzn Mktp Uk*mi9zr75l4,12/02/19,16.66,Books-General,Book Stores,GPC
18/01/19 to 18/02/19,E&T,Argos Retail Group,05/02/19,419.94,Operational Equipment-Purchase,Discount Stores,GPC
18/01/19 to 18/02/19,E&T,Dvla Vehicle Tax,24/01/19,252.50,Road Licences-General,Government Services-Not Elsewhere Classified,GPC
18/01/19 to 18/02/19,E&T,Dvla Vehicle Tax,25/01/19,252.50,Road Licences-General,Government Services-Not Elsewhere Classified,GPC
18/01/19 to 18/02/19,E&T,Dvla Vehicle Tax,25/01/19,252.50,Road Licences-General,Government Services-Not Elsewhere Classified,GPC
18/01/19 to 18/02/19,E&T,Dvla Vehicle Tax,07/02/19,252.50,Road Licences-General,Government Services-Not Elsewhere Classified,GPC
18/01/19 to 18/02/19,E&T,Dvla Vehicle Tax,07/02/19,167.50,Road Licences-General,Government Services-Not Elsewhere Classified,GPC
18/01/19 to 18/02/19,E&T,Dvla Vehicle Tax,07/02/19,252.50,Road Licences-General,Government Services-Not Elsewhere Classified,GPC
18/01/19 to 18/02/19,E&T,Dvla Vehicle Tax,07/02/19,252.50,Road Licences-General,Government Services-Not Elsewhere Classified,GPC
18/01/19 to 18/02/19,E&T,Dvla Vehicle Tax,07/02/19,628.10,Road Licences-General,Government Services-Not Elsewhere Classified,GPC
18/01/19 to 18/02/19,E&T,Dvla Vehicle Tax,11/02/19,167.50,Road Licences-General,Government Services-Not Elsewhere Classified,GPC
18/01/19 to 18/02/19,E&T,Dvla Vehicle Tax,11/02/19,167.50,Road Licences-General,Government Services-Not Elsewhere Classified,GPC
18/01/19 to 18/02/19,E&T,Dvla Vehicle Tax,11/02/19,167.50,Road Licences-General,Government Services-Not Elsewhere Classified,GPC
18/01/19 to 18/02/19,E&T,Dvla Vehicle Tax,11/02/19,167.50,Road Licences-General,Government Services-Not Elsewhere Classified,GPC
18/01/19 to 18/02/19,E&T,Dvla Vehicle Tax,11/02/19,167.50,Road Licences-General,Government Services-Not Elsewhere Classified,GPC
18/01/19 to 18/02/19,E&T,Dvla Vehicle Tax,11/02/19,252.50,Road Licences-General,Government Services-Not Elsewhere Classified,GPC
18/01/19 to 18/02/19,E&T,Dvla Vehicle Tax,11/02/19,167.50,Road Licences-General,Government Services-Not Elsewhere Classified,GPC
18/01/19 to 18/02/19,E&T,Dvla Vehicle Tax,11/02/19,252.50,Road Licences-General,Government Services-Not Elsewhere Classified,GPC
18/01/19 to 18/02/19,E&T,Dvla Vehicle Tax,11/02/19,252.50,Road Licences-General,Government Services-Not Elsewhere Classified,GPC
18/01/19 to 18/02/19,E&T,Dvla Vehicle Tax,11/02/19,167.50,Road Licences-General,Government Services-Not Elsewhere Classified,GPC
18/01/19 to 18/02/19,E&T,Dvla Vehicle Tax,11/02/19,617.50,Road Licences-General,Government Services-Not Elsewhere Classified,GPC
18/01/19 to 18/02/19,E&T,Dvla Vehicle Tax,11/02/19,167.50,Road Licences-General,Government Services-Not Elsewhere Classified,GPC
18/01/19 to 18/02/19,E&T,Dvla Vehicle Tax,11/02/19,617.50,Road Licences-General,Government Services-Not Elsewhere Classified,GPC
18/01/19 to 18/02/19,E&T,Dvla Vehicle Tax,11/02/19,167.50,Road Licences-General,Government Services-Not Elsewhere Classified,GPC
18/01/19 to 18/02/19,E&T,Dvla Vehicle Tax,11/02/19,167.50,Road Licences-General,Government Services-Not Elsewhere Classified,GPC
18/01/19 to 18/02/19,E&T,Dvla Vehicle Tax,11/02/19,167.50,Road Licences-General,Government Services-Not Elsewhere Classified,GPC
18/01/19 to 18/02/19,E&T,Dvla Vehicle Tax,11/02/19,167.50,Road Licences-General,Government Services-Not Elsewhere Classified,GPC
18/01/19 to 18/02/19,E&T,Dvla Vehicle Tax,11/02/19,167.50,Road Licences-General,Government Services-Not Elsewhere Classified,GPC
18/01/19 to 18/02/19,E&T,Dvla Vehicle Tax,11/02/19,167.50,Road Licences-General,Government Services-Not Elsewhere Classified,GPC
18/01/19 to 18/02/19,E&T,Dvla Vehicle Tax,11/02/19,167.50,Road Licences-General,Government Services-Not Elsewhere Classified,GPC
18/01/19 to 18/02/19,E&T,Dvla Vehicle Tax,11/02/19,167.50,Road Licences-General,Government Services-Not Elsewhere Classified,GPC
18/01/19 to 18/02/19,E&T,Dvla Vehicle Tax,11/02/19,167.50,Road Licences-General,Government Services-Not Elsewhere Classified,GPC
18/01/19 to 18/02/19,E&T,Dvla Vehicle Tax,11/02/19,167.50,Road Licences-General,Government Services-Not Elsewhere Classified,GPC
18/01/19 to 18/02/19,E&T,Dvla Vehicle Tax,11/02/19,167.50,Road Licences-General,Government Services-Not Elsewhere Classified,GPC
18/01/19 to 18/02/19,E&T,Dvla Vehicle Tax,11/02/19,167.50,Road Licences-General,Government Services-Not Elsewhere Classified,GPC
18/01/19 to 18/02/19,E&T,Dvla Vehicle Tax,11/02/19,252.50,Road Licences-General,Government Services-Not Elsewhere Classified,GPC
18/01/19 to 18/02/19,E&T,Dvla Vehicle Tax,11/02/19,252.50,Road Licences-General,Government Services-Not Elsewhere Classified,GPC
18/01/19 to 18/02/19,E&T,Dvla Vehicle Tax,11/02/19,252.50,Road Licences-General,Government Services-Not Elsewhere Classified,GPC
18/01/19 to 18/02/19,E&T,East Midlands Trains,07/02/19,141.20,Casual/Essential-General,Passenger Railways,GPC
18/01/19 to 18/02/19,E&T,East Midlands Trains,17/01/19,59.10,Public Transport -  Staff-General,Passenger Railways,GPC
18/01/19 to 18/02/19,E&T,East Midlands Trains,17/01/19,138.50,Public Transport -  Staff-General,Passenger Railways,GPC
18/01/19 to 18/02/19,E&T,East Midlands Trains,17/01/19,20.55,Public Transport -  Staff-General,Passenger Railways,GPC
18/01/19 to 18/02/19,E&T,East Midlands Trains,17/01/19,136.00,Public Transport -  Staff-General,Passenger Railways,GPC
18/01/19 to 18/02/19,E&T,East Midlands Trains,17/01/19,143.20,Public Transport -  Staff-General,Passenger Railways,GPC
18/01/19 to 18/02/19,E&T,East Midlands Trains,17/01/19,136.00,Public Transport -  Staff-General,Passenger Railways,GPC
18/01/19 to 18/02/19,E&T,East Midlands Trains,17/01/19,143.20,Public Transport -  Staff-General,Passenger Railways,GPC
18/01/19 to 18/02/19,E&T,East Midlands Trains,23/01/19,64.50,Public Transport -  Staff-General,Passenger Railways,GPC
18/01/19 to 18/02/19,E&T,East Midlands Trains,23/01/19,20.55,Public Transport -  Staff-General,Passenger Railways,GPC
18/01/19 to 18/02/19,E&T,East Midlands Trains,28/01/19,9.20,Public Transport -  Staff-General,Passenger Railways,GPC
18/01/19 to 18/02/19,E&T,East Midlands Trains,31/01/19,38.30,Public Transport -  Staff-General,Passenger Railways,GPC
18/01/19 to 18/02/19,E&T,East Midlands Trains,31/01/19,20.55,Public Transport -  Staff-General,Passenger Railways,GPC
18/01/19 to 18/02/19,E&T,East Midlands Trains,01/02/19,156.20,Public Transport -  Staff-General,Passenger Railways,GPC
18/01/19 to 18/02/19,E&T,East Midlands Trains,04/02/19,216.20,Public Transport -  Staff-General,Passenger Railways,GPC
18/01/19 to 18/02/19,E&T,East Midlands Trains,07/02/19,260.00,Public Transport -  Staff-General,Passenger Railways,GPC
18/01/19 to 18/02/19,E&T,East Midlands Trains,07/02/19,167.50,Public Transport -  Staff-General,Passenger Railways,GPC
18/01/19 to 18/02/19,E&T,East Midlands Trains,11/02/19,179.50,Public Transport -  Staff-General,Passenger Railways,GPC
18/01/19 to 18/02/19,E&T,East Midlands Trains,12/02/19,90.00,Public Transport -  Staff-General,Passenger Railways,GPC
18/01/19 to 18/02/19,E&T,East Midlands Trains,12/02/19,150.70,Public Transport -  Staff-General,Passenger Railways,GPC
18/01/19 to 18/02/19,E&T,East Midlands Trains,12/02/19,-80.00,Public Transport -  Staff-General,Passenger Railways,GPC
18/01/19 to 18/02/19,E&T,East Midlands Trains,13/02/19,-140.70,Public Transport -  Staff-General,Passenger Railways,GPC
18/01/19 to 18/02/19,E&T,East Midlands Trains,15/02/19,556.30,Public Transport -  Staff-General,Passenger Railways,GPC
18/01/19 to 18/02/19,E&T,Espo,08/02/19,332.28,Other Equipment & Materials-General,Government Services-Not Elsewhere Classified,GPC
18/01/19 to 18/02/19,E&T,Grayson Automotive Ser,15/02/19,828.00,R&M of Vehicles-Non Contract-General,"Automotive Parts, Accessories Stores",GPC
18/01/19 to 18/02/19,E&T,Lcc Npu 1,28/01/19,35.00,Other Expenditure-General,Government Services-Not Elsewhere Classified,GPC
18/01/19 to 18/02/19,E&T,Media & Communications L,25/01/19,288.00,IT Equipment-General,Telecommunication Equipment Including Telephone Sa,GPC
18/01/19 to 18/02/19,E&T,Phoenixseat,13/02/19,134.34,Operational Equipment-Purchase,"Automotive Parts, Accessories Stores",GPC
18/01/19 to 18/02/19,E&T,Safetyspecs Co Uk,22/01/19,91.74,Other Equipment & Materials-General,Durable Goods Not Elsewhere Classified,GPC
18/01/19 to 18/02/19,E&T,Slrhut,25/01/19,449.00,Materials-General,Camera and Photographic Supply Stores,GPC
18/01/19 to 18/02/19,E&T,Snowbee (UK) Ltd,01/02/19,119.98,Materials-General,Sporting Goods Stores,GPC
18/01/19 to 18/02/19,E&T,Sq *atco,31/01/19,105.00,Conference-General,Membership Organizations-Not Elsewhere Classified,GPC
18/01/19 to 18/02/19,E&T,Travelodge Gb0000,18/01/19,75.83,Subsistence-General,Travelodge,GPC
18/01/19 to 18/02/19,E&T,Travelodge Gb0000,25/01/19,488.67,Training Expenses-General,Travelodge,GPC
18/01/19 to 18/02/19,E&T,Www.Incarsafetycentre.,25/01/19,70.00,Operational Equipment-Purchase,"Automotive Parts, Accessories Stores",GPC
18/01/19 to 18/02/19,E&T,Www.Planningportal.Co.,24/01/19,254.00,Other Equipment & Materials-General,Business Services-Not Elsewhere Classified,GPC
18/01/19 to 18/02/19,E&T,Www.Transportxtra.Com,13/02/19,146.25,Conference-General,Business Services-Not Elsewhere Classified,GPC
18/01/19 to 18/02/19,Public Health,3c_*blaby District Cou,17/01/19,0.50,Subsistence-General,Automobile Parking Lots and Garages,GPC
18/01/19 to 18/02/19,Public Health,3c_*blaby District Cou,22/01/19,0.30,Subsistence-General,Automobile Parking Lots and Garages,GPC
18/01/19 to 18/02/19,Public Health,Amz*ckb__ltd,11/02/19,18.50,Other Equipment & Materials-General,Computer Network/Information Services,GPC
18/01/19 to 18/02/19,Public Health,Amzn Mktp Uk*mb7wa1k84 Am,22/01/19,14.88,Other Expenditure-General,Book Stores,GPC
18/01/19 to 18/02/19,Public Health,Amzn Mktp Uk*mi37o2lq4,01/02/19,13.90,Stationery-General,Book Stores,GPC
18/01/19 to 18/02/19,Public Health,Amzn Mktp Uk*mi3e45by4 Am,14/02/19,7.98,Other Equipment & Materials-General,Book Stores,GPC
18/01/19 to 18/02/19,Public Health,Amzn Mktp Uk*mi7xf35m4,13/02/19,17.40,IT Equipment-Purchase - Hardware,Book Stores,GPC
18/01/19 to 18/02/19,Public Health,Eb *bizz Buzz Speed Ne,04/02/19,15.58,Conference-General,Business Services-Not Elsewhere Classified,GPC
18/01/19 to 18/02/19,Public Health,Facebk *cyrx7j2x32,09/02/19,243.60,Advertising-General,Advertising Services,GPC
18/01/19 to 18/02/19,Public Health,Linkedin-358*8168616,01/02/19,8.40,Advertising-General,Continuity/Subscription Merchants,GPC
18/01/19 to 18/02/19,Public Health,Makro Self Service,30/01/19,21.98,Provisions-General,Wholesale Clubs,GPC
18/01/19 to 18/02/19,Public Health,Makro Self Service,15/02/19,37.97,Provisions-General,Wholesale Clubs,GPC
18/01/19 to 18/02/19,Public Health,Paperstone Limited,13/02/19,54.85,Provisions-General,"Stationery, Office, and School Supply Stores",GPC
18/01/19 to 18/02/19,Public Health,Spar,07/02/19,6.05,Contract Catering-General,"Miscellaneous Food Stores-Convenience Stores, Mark",GPC
18/01/19 to 18/02/19,Public Health,Spotify Uk,10/02/19,9.99,Advertising-General,"Digital Goods - Media, Books, Movies, Music",GPC
18/01/19 to 18/02/19,Public Health,Technical Converters Ltd,11/02/19,500.00,Materials-General,Miscellaneous and Specialty Retail Stores,GPC
18/01/19 to 18/02/19,Public Health,Technical Converters Ltd,11/02/19,217.00,Materials-General,Miscellaneous and Specialty Retail Stores,GPC
18/01/19 to 18/02/19,Public Health,Tesco Store 2849,29/01/19,46.00,Materials-General,"Grocery Stores, Supermarkets",GPC
18/01/19 to 18/02/19,Public Health,Trainline,28/01/19,136.79,Public Transport -  Staff-General,Passenger Railways,GPC
18/01/19 to 18/02/19,Public Health,Trybooking UK Coaching,12/02/19,125.00,Conference-General,"Theatrical Products (Except Motion Pictures), Tick",GPC
18/01/19 to 18/02/19,Public Health,Www.Pshe-Association.O,13/02/19,108.00,Other Services-General,Charitable and Social Service Organizations,GPC
"**Amounts are net of VAT, except where VAT has not been reclaimed.",,,,,,,
